{"text_format":"3","workbook":"xlsx","n_sheets":23,"sheets":["Cover Page","Summary","S1-B1 P&G","S2 - B1  Alterations","S2 - B2 EarthWorks","S2 - B3 Concrete etc)","S2 - B4 Masonry","S2 - B5 Waterproofing","S2 - B6 Roof Covering","S2 - B7 Carpentry & Joinery)","S2 - B8 Ceilings etc","S2 - B9 Floor Covering","S2 - B10 Ironmongery","S2 - B11 Metalwork","S2 - B12 Structural Steel","S2 - B13 Plastering)","S2 - B14 Tiling","S2 - B15 Plumbing and Drainage","S2 - B16 Glazing","S2 - B17 Painting","S3 - B1 External works","S4 - B1 Provisional Sum","Day Works"],"not_rendered":{"images":1,"defined_names":49},"read":"whole","date_system":"1900"}

{"sheet":"Cover Page","index":0,"n_rows":24,"n_cols":5,"rows_kept":24,"merged":[[13,1,18,8]]}
[]
[]
[]
[{"$nulls":4},"TSHWANE GROUP PROPERTY MANAGEMENT"]
[]
[]
[]
[]
[{"$nulls":4},"TENDER REFERENCE: GPM 03 -2023/24"]
[]
[]
[]
[]
[null,"TENDER TO APPOINT CONTRACTORS FOR CIVIL MAINTENANCE AND REPAIRS OF CITY OF TSHWANE BUILDINGS AND FACILITIES FOR A PERIOD OF THREE (3) YEARS AS AND WHEN REQUIRED."]
{"$rows_empty":7}
[{"$nulls":4},"ANNEXTURE A"]
[]
[{"$nulls":4},"PRICING SCHEDULE"]

{"sheet":"Summary","index":1,"n_rows":75,"n_cols":5,"rows_kept":75,"merged":[[1,1,1,4]]}
[]
[null,"CITY OF TSWANE - GROUP PROPERTY DEPARTMENT\nTENDER NO: GPM 03 – 2023/24\nTENDER:  MAINTENANCE "]
[]
[]
[]
[null,null,"SUMMARY"]
[]
[null,null,"SECTION 1 "]
[]
[null,"BILL NO","SECTION SUMMARY - PRELIMINARIES","Page No","Amount"]
[]
[null,1,"PRELIMINARIES @ 15%",null,{"$f":"'S1-B1 P&G'!G442","v":0}]
[]
[null,null,"SECTION 2"]
[]
[null,null,"SECTION SUMMARY - BUILDING WORKS"]
[]
[null,1,"ALTERATIONS ",null,{"$f":"'S2 - B1  Alterations'!H844","v":0}]
[]
[null,2,"EARTHWORKS ",null,{"$f":"'S2 - B2 EarthWorks'!I76","v":0}]
[]
[null,3,"CONCRETE, FORMWORK AND REINFORCEMENT",null,{"$f":"'S2 - B3 Concrete etc)'!I155","v":0}]
[]
[null,4,"MASONRY",null,{"$f":"'S2 - B4 Masonry'!I149","v":0}]
[]
[null,5,"WATERPROOFING ",null,{"$f":"'S2 - B5 Waterproofing'!I73","v":0}]
[]
[null,6,"ROOF COVERINGS ",null,{"$f":"'S2 - B6 Roof Covering'!H102","v":0}]
[]
[null,7,"CARPENTRY AND JOINERY ",null,{"$f":"'S2 - B7 Carpentry & Joinery)'!H106","v":0}]
[]
[null,8,"CEILINGS, PARTITIONS AND ACCESS FLOORING",null,{"$f":"'S2 - B8 Ceilings etc'!H110","v":0}]
[]
[null,9," FLOOR COVERINGS ",null,{"$f":"'S2 - B9 Floor Covering'!H44","v":0}]
[]
[null,10,"IRONMONGERY ",null,{"$f":"'S2 - B10 Ironmongery'!I231","v":0}]
[]
[null,11,"METALWORK",null,{"$f":"'S2 - B11 Metalwork'!I148","v":0}]
[]
[null,12,"STRUCTURAL STEEL",null,{"$f":"'S2 - B12 Structural Steel'!I75","v":0}]
[]
[null,13,"PLASTERING ",null,{"$f":"'S2 - B13 Plastering)'!I100","v":0}]
[]
[null,14,"TILING ",null,{"$f":"'S2 - B14 Tiling'!I82","v":0}]
[]
[null,15,"PLUMBING ",null,{"$f":"'S2 - B15 Plumbing and Drainage'!I340","v":0}]
[]
[null,16,"GLAZING ",null,{"$f":"'S2 - B16 Glazing'!I77","v":0}]
[]
[null,17,"PAINTING ",null,{"$f":"'S2 - B17 Painting'!I206","v":0}]
[]
[null,null,"SECTION 3"]
[]
[null,null,"SECTION SUMMARY - EXTERNAL WORKS"]
[]
[null,null,"PAVING",null,{"$f":"'S3 - B1 External works'!I45","v":0}]
[]
[null,null,"SECTION 4"]
[]
[null,null,"SECTION SUMMARY - PROVISIONAL SUMS"]
[]
[null,null,"PROVISIONAL SUM",null,{"$f":"'S4 - B1 Provisional Sum'!I61","v":{"v":5750000,"d":"R5,750,000.00"}}]
[]
[]
[null,null,"SUB TOTAL 1",null,{"$f":"SUM(E12:E63)","v":{"v":5750000,"d":"R5,750,000.00"}}]
[]
[null,null,"ADD 10% CONTINGENCY",null,{"$f":"E65*10%","v":{"v":575000,"d":"R575,000.00"}}]
[]
[null,null,"ADD 3% ESCALATION",null,{"$f":"E65*3%","v":{"v":172500,"d":"R172,500.00"}}]
[]
[null,null,"SUB TOTAL 2",null,{"$f":"E65+E67+E69","v":{"v":6497500,"d":"R6,497,500.00"}}]
[]
[null,null,"ADD 15% VAT",null,{"$f":"E71*15%","v":{"v":974625,"d":"R974,625.00"}}]
[]
[null,null,"GRAND TOTAL",null,{"$f":"E71+E73","v":{"v":7472125,"d":"R7,472,125.00"}}]

{"sheet":"S1-B1 P&G","index":2,"n_rows":442,"n_cols":7,"rows_kept":442,"merged":[[0,0,0,4],[441,0,441,5]]}
["CITY OF TSWANE - GROUP PROPERTY DEPARTMENT\nTENDER NO: GPM 03 – 2023/24\nTENDER:  MAINTENANCE "]
[]
["ITEM NO","PAYMENT CLAUSE","DESCRIPTION","UNIT","QTY","RATE","TENDER AMOUNT"]
[]
[null,null,"SECTION NO. 1"]
[]
[null,null,"BILL NO. 1"]
[]
[null,null,"PRELIMINARIES"]
[]
[null,null,"PREAMBLES FOR TRADES"]
[]
[null,null,"The Model Preambles for Trades (1999 edition) as published by the Association of South African Quantity Surveyors shall be deemed to be incorporated in these bills of quantities and no claims arising from brevity of description of items fully described in the said Model Preambles will be entertained "]
[]
[null,null,"Supplementary preambles are incorporated in these bills of quantities to satisfy the requirements of this project. Such supplementary preambles shall take precedence over the provisions of the said Model Preambles"]
[]
[null,null,"The contractor's prices for all items throughout these bills of quantities must take account of and include for all of the obligations, requirements and specifications given in the said Model Preambles and in any supplementary preambles"]
[]
[null,null,"PRICING OF PRELIMINARIES"]
[]
[null,null,"Should the contractor select Option A in terms of subclause 3.2.1 in the Contract Data - Contractor to Employer (CE) for the purpose of adjustment of these preliminaries, the amount entered into the amount column in these preliminaries is to be divided into one or more of the three categories provided namely Fixed (F), Value Related (V) and Time Related (T)"]
[]
[null,null,"SECTION A - PRINCIPAL BUILDING\nAGREEMENT"]
[]
[null,1,"PRELIMINARIES AT 15.0%","Item"]
[]
[null,null,"Definitions"]
[]
[null,2,"Clause 1.0 - Definitions and interpretation","Item",null,null,"Not Priced"]
[]
[null,null,"F:.......................... V:.........................\nT:........................."]
[]
[null,null,"Objective and preparations"]
[]
[null,3,"Clause 2.0 - Offer acceptance and performance\nobligations","Item",null,null,"Not Priced"]
[]
[null,null,"F:.......................... V:.........................\nT:........................."]
[]
[null,4,"Clause 3.0 - Documents","Item",null,null,"Not Priced"]
[]
[null,null,"F:.......................... V:.........................\nT:........................."]
[]
[null,5,"Clause 4.0 - Design responsibility","Item",null,null,"Not Priced"]
[]
[null,null,"F:.......................... V:.........................\nT:........................."]
[]
[null,6,"Clause 5.0 - Employer's agents","Item",null,null,"Not Priced"]
[]
[null,null,"F:.......................... V:.........................\nT:........................."]
[]
[null,7,"Clause 6.0 - Contractor's site representative","Item",null,null,"Not Priced"]
[]
[null,null,"F:.......................... V:.........................\nT:........................."]
[]
[null,8,"Clause 7.0 - Compliance with laws and regulations","Item",null,null,"Not Priced"]
[]
[null,null,"F:.......................... V:.........................\nT:........................."]
[]
[null,null,"Without limiting the generality of the provisions of clause 7.0, the contractor's attention is drawn to the of the Construction Regulations, 2003 issued in terms of the Occupational Health and Safety Act, 1993. It is specifically stated that the employer shall prepare a documented health and safety specification for the works and that the employer shall ensure that the contractor has made provision for the cost of health and safety measures during the execution of the works. The contractor shall price opposite this item for compliance with the act and the regulations and the reasonable provisions of the aforementioned health and safety specifications "]
[]
[null,9,"Clause 8.0 - Works risk","Item",null,null,"Not Priced"]
[]
[null,null,"F:.......................... V:.........................\nT:........................."]
[]
[null,10,"Clause 9.0 - Indemnities","Item",null,null,"Not Priced"]
[]
[null,null,"F:.......................... V:.........................\nT:........................."]
[]
[null,11,"Clause 10.0 - General insurances","Item",null,null,"Not Priced"]
[]
[null,null,"F:.......................... V:.........................\nT:........................."]
[]
[null,12,"Clause 11.0 - Special insurances","Item",null,null,"Not Priced"]
[]
[null,null,"F:.......................... V:.........................\nT:........................."]
[]
[null,13,"Clause 12.0 - Effecting insurances","Item",null,null,"Not Priced"]
[]
[null,null,"F:.......................... V:.........................\nT:........................."]
[]
[null,14,"Clause 13.0 - Assignment","Item",null,null,"Not Priced"]
[]
[null,null,"F:.......................... V:.........................\nT:........................."]
[]
[null,15,"Clause 14.0 - Security","Item",null,null,"Not Priced"]
[]
[null,null,"F:.......................... V:.........................\nT:........................."]
[]
[null,null,"Execution"]
[]
[null,16,"Clause 15.0 - Preparation for and execution of the\nworks","Item",null,null,"Not Priced"]
[]
[null,null,"F:.......................... V:.........................\nT:........................."]
[]
[null,17,"Clause 16.0 - Site and access","Item",null,null,"Not Priced"]
[null,null,"          Clause 16.7 - Known services"]
[null,null,"          Clause 16.8 - Protection of trees (All trees must be protected and preserved)"]
[]
[null,null,"F:.......................... V:.........................\nT:........................."]
[]
[null,18,"Clause 17.0 - Contract instructions","Item",null,null,"Not Priced"]
[]
[null,null,"F:.......................... V:.........................\nT:........................."]
[]
[null,19,"Clause 18.0 - Setting out of the works","Item",null,null,"Not Priced"]
[]
[null,null,"The contractor shall notify the principal agent if any encroachments of adjoining foundations, buildings, structures, pavements, boundaries, etc. exist in order that the necessary arrangements may be made for the rectification of any such encroachments."]
[]
[null,null,"F:.......................... V:.........................\nT:........................."]
[]
[null,20,"Clause 19.0 - Temporary works and plant","Item",null,null,"Not Priced"]
[null,null,"          Subclause 19.1.1 - Enclosure of the works"]
[null,null,"          Subclause 19.1.2 - Office accommodation"]
[null,null,"          Clause 19.2 - Notice boards"]
[]
[null,null,"F:.......................... V:.........................\nT:........................."]
[]
[null,21,"Clause 20.0 - Nominated subcontractors","Item",null,null,"Not Priced"]
[]
[null,null,"F:.......................... V:.........................\nT:........................."]
[]
[null,22,"Clause 21.0 - Selected subcontractors","Item",null,null,"Not Priced"]
[]
[null,null,"F:.......................... V:.........................\nT:........................."]
[]
[null,23,"Clause 22.0 - Employer's direct contractors","Item",null,null,"Not Priced"]
[]
[null,null,"F:.......................... V:.........................\nT:........................."]
[]
[null,24,"Clause 23.0 - Contractor's domestic subcontractors","Item",null,null,"Not Priced"]
[]
[null,null,"F:.......................... V:.........................\nT:........................."]
[]
[null,null,"Completion"]
[]
[null,25,"Clause 24.0 - Practical completion","Item",null,null,"Not Priced"]
[]
[null,null,"The contractor shall not receive any mark-up for overheads and profit on any omission of tenant installation work or tenant installation work by others. Claims of loss of profit shall not be entertained"]
[]
[null,null,"F:.......................... V:.........................\nT:........................."]
[]
[null,26,"Clause 25.0 - Works completion","Item",null,null,"Not Priced"]
[]
[null,null,"F:.......................... V:.........................\nT:........................."]
[]
[null,27,"Clause 26.0 - Final completion","Item",null,null,"Not Priced"]
[]
[null,null,"F:.......................... V:.........................\nT:........................."]
[]
[null,28,"Clause 27.0 - Latent defects liability period","Item",null,null,"Not Priced"]
[]
[null,null,"F:.......................... V:.........................\nT:........................."]
[]
[null,29,"Clause 28.0 - Sectional completion","Item",null,null,"Not Priced"]
[]
[null,null,"F:.......................... V:.........................\nT:........................."]
[]
[null,30,"Clause 29.0 - Revision of date for practical\ncompletion","Item",null,null,"Not Priced"]
[]
[null,null,"The removal and replacement of materials and/or workmanship which do not conform to specification or drawing shall not constitute grounds for the extension of the construction period nor for the adjustment of the contract value (Clause 29.3) "]
[]
[null,null,"F:.......................... V:.........................\nT:........................."]
[]
[null,31,"Clause 30.0 - Penalty for late or non-completion","Item",null,null,"Not Priced"]
[]
[null,null,"F:.......................... V:.........................\nT:........................."]
[]
[null,null,"Payment"]
[]
[null,32,"Clause 31.0 - Interim payment","Item",null,null,"Not Priced"]
[]
[null,null,"The inclusion of materials and goods stored off site in the amount authorised for payment in terms of clause 31.4 shall be at the sole discretion of the principal agent and such inclusion shall only be considered upon the provision, by the contractor, of an approved guarantee issued by a registered commercial bank. Clause 31.6.5 is therefore not applicable "]
[]
[null,null,"Materials and goods stored off site shall not be included in the amount authorised for payment "]
[]
[null,null,"F:.......................... V:.........................\nT:........................."]
[]
[null,33,"Clause 32.0 - Adjustment to the contract value","Item",null,null,"Not Priced"]
[]
[null,null,"All fluctuations in costs, with the exception of fluctuations in the rate of Value Added Tax, shall be for the account of the contractor "]
[]
[null,null,"Where prices are submitted by the contractor or n/s subcontractor during the progress of the works in respect of contract instructions or in regard to a claim under the terms of the contract and notwithstanding the fact that such prices may be used in an interim payment certificate, there is to be no presumption of acceptance. Should the principal agent wish to accept any such prices prior to the issue of the final payment certificate, it shall be in writing "]
[]
[null,34,"Clause 33.0 - Recovery of expense and loss","Item",null,null,"Not Priced"]
[]
[null,null,"F:.......................... V:.........................\nT:........................."]
[]
[null,35,"Clause 34.0 - Final account and final payment","Item",null,null,"Not Priced"]
[]
[null,null,"F:.......................... V:.........................\nT:........................."]
[]
[null,36,"Clause 35.0 - Payment to other parties","Item",null,null,"Not Priced"]
[]
[null,null,"F:.......................... V:.........................\nT:........................."]
[]
[null,null,"Termination"]
[]
[null,37,"Clause 36.0 - Termination by employer -\ncontractor's default","Item",null,null,"Not Priced"]
[]
[null,null,"F:.......................... V:.........................\nT:........................."]
[]
[null,38,"Clause 37.0 - Termination by employer - loss and damage","Item",null,null,"Not Priced"]
[]
[null,null,"F:.......................... V:.........................\nT:........................."]
[]
[null,39,"Clause 38.0 - Termination by contractor - employer's default","Item",null,null,"Not Priced"]
[]
[null,null,"F:.......................... V:.........................\nT:........................."]
[]
[null,40,"Clause 39.0 - Termination - cessation of the works","Item",null,null,"Not Priced"]
[]
[null,null,"F:.......................... V:.........................\nT:........................."]
[]
[null,null,"Dispute"]
[]
[null,41,"Clause 40.0 - Settlement of disputes","Item",null,null,"Not Priced"]
[]
[null,null,"F:.......................... V:.........................\nT:........................."]
[]
[null,null,"Contract agreement"]
[]
[null,42,"Clause 41.0 - Post tender provisions","Item",null,null,"Not Priced"]
[]
[null,null,"The required post tender information shall be inserted in the post tender provisions after consultation with the contractor"]
[]
[null,43,"Clause 42.0 - Contractual agreement","Item",null,null,"Not Priced"]
[]
[null,null,"The required information of the contracting parties and the amount of the accepted contract sum shall be inserted in the contractual agreement for signature of the agreement by the contracting parties "]
[]
[null,null,"SECTION B - PRELIMINARIES"]
[]
[null,null,"Definitions and interpretation"]
[]
[null,44,"Clause 1.0 - Definitions and interpretation","Item",null,null,"Not Priced"]
[]
[null,null,"F:.......................... V:.........................\nT:........................."]
[]
[null,null,"Documents"]
[]
[null,45,"Clause 2.1 - Checking of documents","Item",null,null,"Not Priced"]
[]
[null,null,"F:.......................... V:.........................\nT:........................."]
[]
[null,46,"Clause 2.2 - Provisional bills of quantities","Item",null,null,"Not Priced"]
[]
[null,null,"These bills of quantities are in \"trades\" format i.e - foundations, concretework, masonry, waterproofing, roof coverings, carpentry and joinery, ceilings and partitions, ironmongery, metalworks, plastering, tiling, glazing, painting and are provisional schedule of rates"]
[]
[null,null,"F:.......................... V:.........................\nT:........................."]
[]
[null,47,"Clause 2.3 - Availability of construction documentation","Item",null,null,"Not Priced"]
[]
[null,null,"F:.......................... V:.........................\nT:........................."]
[]
[null,null,"Previous work and adjoining properties"]
[]
[null,48,"Clause 3.1 - Previous work - dimensional accuracy","Item",null,null,"Not Priced"]
[]
[null,null,"F:.......................... V:.........................\nT:........................."]
[]
[null,49,"Clause 3.2 - Previous work - defects","Item",null,null,"Not Priced"]
[]
[null,null,"F:.......................... V:.........................\nT:........................."]
[]
[null,50,"Clause 3.3 - Inspection of adjoining properties","Item",null,null,"Not Priced"]
[]
[null,null,"F:.......................... V:.........................\nT:........................."]
[]
[null,null,"Samples, shop drawings and manufacturer's\ninstructions"]
[]
[null,51,"Clause 4.1 - Samples of materials","Item",null,null,"Not Priced"]
[]
[null,null,"F:.......................... V:.........................\nT:........................."]
[]
[null,52,"Clause 4.2 - Workmanship samples","Item",null,null,"Not Priced"]
[]
[null,null,"F:.......................... V:.........................\nT:........................."]
[]
[null,53,"Clause 4.3 - Shop drawings","Item",null,null,"Not Priced"]
[]
[null,null,"F:.......................... V:.........................\nT:........................."]
[]
[null,54,"Clause 4.4 - Compliance with manufacturer's\ninstructions","Item",null,null,"Not Priced"]
[]
[null,null,"F:.......................... V:.........................\nT:........................."]
[]
[null,null,"Deposits and fees"]
[]
[null,55,"Clause 5.1 - Deposits and fees","Item",null,null,"Not Priced"]
[]
[null,null,"F:.......................... V:.........................\nT:........................."]
[]
[null,null,"Temporary services"]
[]
[null,56,"Clause 6.1 - Water","Item",null,null,"Not Priced"]
[]
[null,null,"F:.......................... V:.........................\nT:........................."]
[]
[null,57,"Clause 6.2 - Electricity","Item",null,null,"Not Priced"]
[]
[null,null,"F:.......................... V:.........................\nT:........................."]
[]
[null,58,"Clause 6.3 - Telecommunication facilities","Item",null,null,"Not Priced"]
[]
[null,null,"F:.......................... V:.........................\nT:........................."]
[]
[null,59,"Clause 6.4 - Ablution facilities","Item",null,null,"Not Priced"]
[]
[null,null,"F:.......................... V:.........................\nT:........................."]
[]
[null,null,"Prime cost amounts"]
[]
[null,60,"Clause 7.1 - Responsibility for prime cost amounts","Item",null,null,"Not Priced"]
[]
[null,null,"F:.......................... V:.........................\nT:........................."]
[]
[null,null,"Special attendance on n/s subcontractors"]
[]
[null,61,"Clause 8.1 - Special attendance","Item",null,null,"Not Priced"]
[]
[null,null,"General attendance is defined in the n/s\nsubcontract agreement"]
[]
[null,null,"F:.......................... V:.........................\nT:........................."]
[]
[null,null,"General"]
[]
[null,62,"Clause 9.1 - Protection of the works","Item",null,null,"Not Priced"]
[]
[null,null,"F:.......................... V:.........................\nT:........................."]
[]
[null,63,"Clause 9.2 - Protection/isolation of\nexisting/sectionally occupied works","Item",null,null,"Not Priced"]
[]
[null,null,"F:.......................... V:.........................\nT:........................."]
[]
[null,64,"Clause 9.3 - Security of the works","Item",null,null,"Not Priced"]
[]
[null,null,"F:.......................... V:.........................\nT:........................."]
[]
[null,65,"Clause 9.4 - Notice before covering work","Item",null,null,"Not Priced"]
[]
[null,null,"F:.......................... V:.........................\nT:........................."]
[]
[null,66,"Clause 9.5 - Disturbance","Item",null,null,"Not Priced"]
[]
[null,null,"F:.......................... V:.........................\nT:........................."]
[]
[null,67,"Clause 9.6 - Environmental disturbance","Item",null,null,"Not Priced"]
[]
[null,null,"Where the employer has prepared an environmental management plan, a copy of the plan will be attached as an annexure. The contractor shall then price opposite this item for compliance with all the requirements of such environmental management plan "]
[]
[null,null,"F:.......................... V:.........................\nT:........................."]
[]
[null,68,"Clause 9.7 - Works cleaning and clearing","Item",null,null,"Not Priced"]
[]
[null,null,"F:.......................... V:.........................\nT:........................."]
[]
[null,69,"Clause 9.8 - Vermin","Item",null,null,"Not Priced"]
[]
[null,null,"F:.......................... V:.........................\nT:........................."]
[]
[null,70,"Clause 9.9 - Overhand work","Item",null,null,"Not Priced"]
[]
[null,null,"F:.......................... V:.........................\nT:........................."]
[]
[null,null,"Schedule of variables"]
[]
[null,null,"Information necessary for elections and completion of those clauses contained in the schedule which are necessary for tender purposes is given hereunder. Where no information is given it shall mean that no specific requirements are expected or that the clause is not relevant to this specific contract "]
[]
[null,null,"10.1 - Provisional bills of quantities [clause 2.2]\nThe quantities are provisional\nYes"]
[]
[null,null,"10.2 - Availability of construction documentation\n[clause 2.3]\nConstruction documentation is complete\nNo"]
[]
[null,null,"10.3 - Previous work - dimensional accuracy [clause\n3.1]"]
[]
[null,null,"10.4 - Previous work - defects [clause 3.2]"]
[]
[null,null,"10.5 - Inspection of adjoining properties [clause 3.3]"]
[]
[null,null,"10.6 - Water [clause 7.2]\nOption A (by contractor)\nyes\nOption B (by employer - free of charge)\nno\nOption C (by employer - metered)\nno"]
[]
[null,null,"10.7 - Electricity [clause 7.3]\nOption A (by contractor)\nyes\nOption B (by employer - free of charge)\nno\nOption C (by employer - metered)\nno"]
[]
[null,null,"10.8 - Telecommunications [clause 7.4]\nTelephone\nyes\nFacsimile\nyes\nE-mail\nyes"]
[]
[null,null,"10.9 - Ablution facilities [clause 7.5]\nOption A (by contractor)\nyes\nOption B (by employer)\nno"]
[]
[null,null,"10.10 - Protection of the works [clause 9.1]"]
[]
[null,null,"10.11 - Protection/isolation of existing/sectionally\noccupied works [clause 9.2] Protection/isolation\nis require\nYes"]
[]
[null,null,"10.12 - Disturbance [clause 9.5]"]
[]
[null,null,"10.13 - Environmental disturbance [clause 9.6]"]
[]
[null,null,"SECTION C - SPECIFIC PRELIMINARIES"]
[]
[null,71,"Site instructions","Item",null,null,"Not Priced"]
[]
[null,null,"Instructions issued on site are to be recorded in triplicate in a site instruction book which is to be maintained on site by the contractor "]
[]
[null,null,"F:.......................... V:.........................\nT:........................."]
[]
[null,72,"Warranties for material and workmanship","Item",null,null,"Not Priced"]
[]
[null,null,"Where warranties for materials and/or workmanship are called for, the contractor shall obtain a written warranty, addressed to the employer, from the firm supplying the materials and/or doing the work andshall deliver same to the principal agent on the certified completion of the contract. The warranty shall state that workmanship, materials and installation are warranteed for a specified period from the date of final completion and that any defects that may arise during the specified period shall be made good at the expense of the firm supplying the materials and/or doing the work, upon written notice to do so. The warranty will not be enforced if the work is damaged by defects in the construction of the building in which case the responsibility for replacement shall rest entirely with the contractor"]
[]
[null,null,"F:.......................... V:.........................\nT:........................."]
[]
[null,73,"Co-operation of contractor for cost management","Item",null,null,"Not Priced"]
[]
[null,null,"It is specifically agreed that the contractor accepts the obligation of assisting the principal agent in implementing proper cost management. The contractor will be advised by the principal agent of all cost management procedures which will be implemented to ensure that the final building cost does not exceed the budget. The principal agent undertakes to make available to the contractor all budgetary allowances and cost assessments/reports to enable the proper procedure to be implemented and the contractor shall attend all cost plan review and cost management meetings. The contractor undertakes to extend these procedures, as necessary, to all subcontractors "]
[]
[null,null,"F:.......................... V:.........................\nT:........................."]
[]
[null,74,"Propping of floors below","Item",null,null,"Not Priced"]
[]
[null,null,"The contractor is advised that propping of floors below may be required if he wishes to use any areas of completed suspended reinforced concrete slabs for vehicle access, storage of materials and goods and location of plant, scaffolding, etc. The location of these areas and any necessary propping shall be approved by the principal agent and the cost thereof shall be borne by the contractor"]
[]
[null,null,"F:.......................... V:.........................\nT:........................."]
[]
[null,75,"Testing of windows for watertightness","Item",null,null,"Not Priced"]
[]
[null,null,"Each window shall be tested for watertightness with water sprayed on using adequate pressure. If in the opinion of the principal agent, the pressure proves to be inadequate, then the pressure shall be boosted by means of compressed air or other approved means "]
[]
[null,null,"F:.......................... V:.........................\nT:........................."]
[]
[null,76,"Testing of flat roof waterproofing for\nwatertightness","Item",null,null,"Not Priced"]
[]
[null,null,"Flat roof waterproof areas shall be prepared with small sand dykes around them of a size and enclosing an area approved by the principal agent, flooded with water and kept \"ponded\" for at least 36 hours as a test to ensure the watertightness of the waterproofing and before any further construction work is carried out above the waterproofing "]
[]
[null,null,"F:.......................... V:.........................\nT:........................."]
[]
[null,null,"SUMMARY OF CATEGORIES"]
[]
[null,null,"Category : Fixed R........................................................."]
[]
[null,null,"Category : Value R........................................................."]
[]
[null,null,"Category : Time R........................................................."]
[]
[]
[]
["TOTAL FOR SECTION A: CARRIED FORWARD TO SUMMARY PAGE ",{"$nulls":5},{"$f":"SUM(G25:G440)","v":{"v":0,"d":"R0.00"}}]

{"sheet":"S2 - B1  Alterations","index":3,"n_rows":845,"n_cols":10,"rows_kept":845,"merged":[[0,1,0,3]]}
[null,"CITY OF TSWANE - GROUP PROPERTY DEPARTMENT\nTENDER NO: GPM 03 – 2023/24\nTENDER:  MAINTENANCE "]
[]
[null,"ITEM NO","LI","DESCRIPTION","UNIT","QTY","RATE","TENDER AMOUNT",null,"``"]
[]
[{"$nulls":3},"SECTION 2 "]
[]
[{"$nulls":3},"BILL NO 1"]
[]
[{"$nulls":3},"ALTERATIONS"]
[]
[{"$nulls":3},"The Contractor must read each description throughout this bill of quantities in conjunction with the relevant specifications and in the context of the obligations, requirements and specifications stated in the descriptions, the Model Preambles for Trades (2008 edition) and any Supplementary Preambles to the Model Preambles forming part of these Bills of Quantities."]
[]
[{"$nulls":3},"No claim arising from brevity of description of items fully described in the said Model Preambles for Trades and any Supplementary Preambles to the Model Preambles will be granted."]
[]
[{"$nulls":3},"View site"]
[]
[{"$nulls":3},"Before submitting his tender the tenderer shall visit the site and satisfy himself as to the nature and extent of the work to be done and the value of the materials salvageable from the alterations.  No claim for any variations of the contract sum in respect of the nature and extent of the work or of inferior or damaged materials will be entertained"]
[]
[{"$nulls":3},"Explosives"]
[]
[{"$nulls":3},"No explosives whatsoever may be used for alteration purposes unless otherwise stated"]
[]
[{"$nulls":3},"General"]
[]
[{"$nulls":3},"The contractor shall carry out the whole of the works with as little mess and noise as possible and with a minimum of disturbance to tenants in the building and to adjoining premises and their tenants.  He shall provide proper protection and provide, erect and remove when directed, any temporary tarpaulins that may be necessary during the progress of the works, all to the satisfaction of the supervisor"]
[]
[{"$nulls":3},"Doors, fanlights, windows, fittings, frames, linings, etc. which are to remain the property of the employer shall be carefully taken out, temporarily stored, transported over a specified distance to store and handed over to the employer"]
[]
[{"$nulls":3},"Doors, fanlights, windows, fittings, frames, linings, etc. which are to be re-used shall be thoroughly overhauled before re-fixing including taking off, easing and rehanging, cramping up, re-wedging as required and making good cramps, dowels, etc., and oiling, adjusting and repairing ironmongery as necessary, replacing any glass damaged in removal or subsequently and stopping up all nail and screw holes with tinted plastic wood to match timber, unless otherwise described. Re-painting or re-varnishing is given separately"]
[]
[{"$nulls":3},"Prices for taking out of doors, windows, etc. shall include for removal of all beads, architraves, ironmongery, etc."]
[]
[{"$nulls":3},"Prices for taking out and removing doors and frames shall include for removing door stops, cabin hooks, etc."]
[]
[{"$nulls":3},"With regard to building up of openings in existing walls, cement screeds and pavings, granolithic, tops of walls, etc., shall be levelled and prepared for raising of brickwork"]
[]
[{"$nulls":3},"Making good of finishes shall include making good of the brick and concrete surfaces onto which the new finishes are applied, where necessary"]
[]
[{"$nulls":3},"The contractor will be required to take all dimensions affecting the existing buildings on the site and he will be held solely responsible for the accuracy of all such dimensions where used in the manufacture of new items (doors, windows, fittings, etc.)"]
[]
[{"$nulls":3},"TEMPORARY BARRICADES, SCREENS, ETC"]
[]
[{"$nulls":3},"Temporary barricades, screens, roofs, etc. including removal"]
[]
[null,{"v":1,"d":"1 "},null,"Dust screen average 2m high between concrete floor and ceiling, of suitable timber framing with 375 micron polyethylene sheeting stapled on  one side, including corners, ends, etc.","m",{"v":102,"d":"102 "},null,{"$f":"F45*G45","v":{"v":0,"d":"R0.00"}}]
[]
[{"$nulls":3},"REMOVAL OF EXISTING WORK"]
[]
[{"$nulls":3},"Breakup and removing mass concrete"]
[]
[null,{"v":2,"d":"2 "},null,"Concrete steps","m3",{"v":100,"d":"100 "},null,{"$f":"F51*G51","v":{"v":0,"d":"R0.00"}}]
[]
[null,{"v":3,"d":"3 "},null,"150mm Thick Surface beds","m3",{"v":100,"d":"100 "},null,{"v":0,"d":"R0.00"}]
[]
[null,{"v":4,"d":"4 "},null,"200mm Thick Surface beds","m3",{"v":100,"d":"100 "},null,{"v":0,"d":"R0.00"}]
[]
[{"$nulls":3},"Break Up and Remove Reinforced Concrete, Including Cutting Off And Removing Reinforcement"]
[]
[null,{"v":5,"d":"5 "},null,"Reinforced concrete stairs and landings","m3",{"v":100,"d":"100 "},null,{"v":0,"d":"R0.00"}]
[]
[null,{"v":6,"d":"6 "},null,"Beams","m3",{"v":100,"d":"100 "},null,{"v":0,"d":"R0.00"}]
[]
[null,{"v":7,"d":"7 "},null,"Columns","m3",{"v":100,"d":"100 "},null,{"v":0,"d":"R0.00"}]
[]
[null,{"v":8,"d":"8 "},null,"200mm thick slab","m3",{"v":100,"d":"100 "},null,{"v":0,"d":"R0.00"}]
[]
[{"$nulls":3},"Breaking down and removing brickwork, etc. complete and making good to match existing, all to the satisfaction of the supervisor"]
[]
[null,{"v":9,"d":"9 "},null,"Brick piers etc","m3",{"v":1000,"d":"1,000 "},null,{"v":0,"d":"R0.00"}]
[]
[null,{"v":10,"d":"10 "},null,"90mm block walls","m2",{"v":1000,"d":"1,000 "},null,{"v":0,"d":"R0.00"}]
[]
[null,{"v":11,"d":"11 "},null,"110mm brick walls","m²",{"v":1000,"d":"1,000 "},null,{"v":0,"d":"R0.00"}]
[]
[null,{"v":12,"d":"12 "},null,"140mm block walls","m2",{"v":1000,"d":"1,000 "},null,{"v":0,"d":"R0.00"}]
[]
[null,{"v":13,"d":"13 "},null,"220mm brick walls","m²",{"v":1000,"d":"1,000 "},null,{"v":0,"d":"R0.00"}]
[]
[null,{"v":14,"d":"14 "},null,"270mm Cavitty walls","m2",{"v":1000,"d":"1,000 "},null,{"v":0,"d":"R0.00"}]
[]
[{"$nulls":3},"Carefully take out and remove existing paved surface including layer works, complete and prepare to receive new paving, all to the satisfaction of the supervisor"]
[]
[null,{"v":15,"d":"15 "},null,"60mm paved surfaces","m²",{"v":1000,"d":"1,000 "},null,{"v":0,"d":"R0.00"}]
[]
[null,{"v":16,"d":"16 "},null,"80mm paved surfaces","m2",{"v":1000,"d":"1,000 "},null,{"v":0,"d":"R0.00"}]
[]
[{"$nulls":3},"Taking out and removing glass and mirrors"]
[]
[null,{"v":17,"d":"17 "},null,"Glass from steel doors and windows including cleaning out rebates and preparing with primer for new glass","m2",{"v":1000,"d":"1,000 "},null,{"v":0,"d":"R0.00"}]
[]
[{"$nulls":3},"Taking out and removing doors, windows, etc from brickwork to be demolished"]
[]
[null,{"v":18,"d":"18 "},null,"Timber single door and frame not exceeding 2,5m2","No",{"v":100,"d":"100 "},null,{"v":0,"d":"R0.00"}]
[]
[null,{"v":19,"d":"19 "},null,"Timber double door and frame exceeding 2.5m2 and not exceeding 3.5m2","No",{"v":100,"d":"100 "},null,{"v":0,"d":"R0.00"}]
[]
[null,{"v":20,"d":"20 "},null,"Glazed timber window not exceeding 2.5m²","No",100,null,{"v":0,"d":"R0.00"}]
[]
[null,{"v":21,"d":"21 "},null,"Glazed timber window exceeding 2.5m² and not exceeding 5m2","No",100,null,{"v":0,"d":"R0.00"}]
[]
[null,{"v":22,"d":"22 "},null,"Glazed steel window not exceeding 2.5m²","No",100,null,{"v":0,"d":"R0.00"}]
[]
[null,{"v":23,"d":"23 "},null,"Glazed steel window exceeding 2.5m² and not exceeding 5m²","No",100,null,{"v":0,"d":"R0.00"}]
[]
[null,{"v":24,"d":"24 "},null,"Glazed aluminium window not exceeding 2.5m²","No",100,null,{"v":0,"d":"R0.00"}]
[]
[null,{"v":25,"d":"25 "},null,"Glazed aluminium window exceeding 2.5m² and not exceeding 5m²","No",100,null,{"v":0,"d":"R0.00"}]
[]
[null,{"v":26,"d":"26 "},null,"Roller shutter 3.00 x 3.00m high","No",100,null,{"v":0,"d":"R0.00"}]
[]
[{"$nulls":3},"Taking out and removing doors, windows, etc\nincluding thresholds, sills, etc (building up openings\nelsewhere)"]
[]
[null,{"v":27,"d":"27 "},null,"Timber single door and frame 930mm x 2090mm high overall from 110mm brick wall","No",{"v":250,"d":"250 "},null,{"$f":"F113*G113","v":{"v":0,"d":"R0.00"}}]
[]
[null,{"v":28,"d":"28 "},null,"Timber double door and frame 1620 x 2090mm high overall from 220mm brick wall","No",{"v":250,"d":"250 "},null,{"v":0,"d":"R0.00"}]
[]
[null,{"v":29,"d":"29 "},null,"Glazed timber window 1500 x 1000mm high from 230mm brick wall","No",{"v":250,"d":"250 "},null,{"v":0,"d":"R0.00"}]
[]
[null,{"v":30,"d":"30 "},null,"Glazed steel window 1510 x 1250m high from 230mm brick wall","No",{"v":250,"d":"250 "},null,{"v":0,"d":"R0.00"}]
[]
[{"$nulls":3},"Taking out doors, windows, etc including\nthresholds, sills, etc and setting aside for re-use\n(refixing and building up openings elsewhere measured)"]
[]
[null,{"v":31,"d":"31 "},null,"Timber single door and frame 930 x 2090mm high overall","No",250,null,{"v":0,"d":"R0.00"}]
[]
[null,{"v":32,"d":"32 "},null,"Timber single door and frame not exceeding 2,5m2","No",250,null,{"v":0,"d":"R0.00"}]
[]
[null,{"v":33,"d":"33 "},null,"Timber double door and frame 1626 x 2032mm\nhigh","No",250,null,{"v":0,"d":"R0.00"}]
[]
[null,{"v":34,"d":"34 "},null,"Timber double door and frame exceeding 2.5m2 and not exceeding 3.5m2","No",250,null,{"v":0,"d":"R0.00"}]
[]
[null,{"v":35,"d":"35 "},null,"Glazed steel window 1510 x 1250mm high","No",250,null,{"v":0,"d":"R0.00"}]
[]
[{"$nulls":3},"Taking out and removing doors, windows, etc\nincluding thresholds, sills, etc and building up\nopenings in brick walls including making good\ncement plaster on both sides (making good\npaintwork elsewhere)"]
[]
[null,{"v":36,"d":"36 "},null,"Timber single door and frame 930mm x 2090mm high overall from 110mm brick wall","No",250,null,{"v":0,"d":"R0.00"}]
[]
[null,{"v":37,"d":"37 "},null,"Timber double door and frame 1620 x 2090mm high overall from 230mm brick wall","No",250,null,{"v":0,"d":"R0.00"}]
[]
[null,{"v":38,"d":"38 "},null,"Glazed timber window 1500 x 1000mm high from 230mm brick wall","No",250,null,{"v":0,"d":"R0.00"}]
[]
[null,{"v":39,"d":"39 "},null,"Glazed steel window 1510 x 1250mm high from 230mm brick wall","No",250,null,{"v":0,"d":"R0.00"}]
[]
[{"$nulls":3},"Taking out and removing doors, windows, etc\nincluding thresholds, sills, etc and building up\nopenings in brick walls including making good face\nbrickwork on one side and cement plaster on other\nside (making good paintwork elsewhere"]
[]
[null,{"v":40,"d":"40 "},null,"Timber single door and frame not exceeding 2,5m2","No",{"v":150,"d":"150 "},null,{"v":0,"d":"R0.00"}]
[]
[null,{"v":41,"d":"41 "},null,"Timber single door and frame 813 x 2032mm high","No",{"v":150,"d":"150 "},null,{"v":0,"d":"R0.00"}]
[]
[null,{"v":42,"d":"42 "},null,"Timber double door and frame exceeding 2.5m2\nand not exceeding 3.5m2","No",{"v":150,"d":"150 "},null,{"v":0,"d":"R0.00"}]
[]
[null,{"v":43,"d":"43 "},null,"Timber double door and frame 1626 x 2032mm\nhigh","No",{"v":150,"d":"150 "},null,{"v":0,"d":"R0.00"}]
[]
[null,{"v":44,"d":"44 "},null,"Timber single door and steel frame not exceeding\n2,5m2","No",{"v":150,"d":"150 "},null,{"v":0,"d":"R0.00"}]
[]
[{"$nulls":3},"Refixing of existing doors, windows, etc (removal\nand setting aside elsewhere)"]
[]
[null,{"v":45,"d":"45 "},null,"Setting up and building in timber door frame in\nbrickwork, rehanging single door on new 100mm\nbrass hinges and replacing lock with mortice lock\n(mortice lock elsewhere measured)","No",{"v":100,"d":"100 "},null,{"v":0,"d":"R0.00"}]
[]
[null,{"v":46,"d":"46 "},null,"Setting up steel window 1000 x 1000mm high in\nbrickwork and replacing any broken glass panes\nwith 3mm clear float glass","No",{"v":100,"d":"100 "},null,{"v":0,"d":"R0.00"}]
[]
[{"$nulls":3},"Taking out/off and removing sundry metalwork"]
[]
[null,{"v":47,"d":"47 "},null,"Steel pipe handrail from walls including making\ngood plaster finish","m",{"v":100,"d":"100 "},null,{"v":0,"d":"R0.00"}]
[]
[null,{"v":48,"d":"48 "},null,"Steel balustrade 900mm high from concrete stairs\nincluding making good granolithic/tile finish","m",{"v":100,"d":"100 "},null,{"v":0,"d":"R0.00"}]
[]
[{"$nulls":3},"Taking out and removing sundry joinery work"]
[]
[null,{"v":49,"d":"49 "},null,"Timber cornices from brickwork","m",{"v":500,"d":"500 "},null,{"v":0,"d":"R0.00"}]
[]
[null,{"v":50,"d":"50 "},null,"Timber skirtings from brickwork","m",{"v":500,"d":"500 "},null,{"v":0,"d":"R0.00"}]
[]
[null,{"v":51,"d":"51 "},null,"Timber sills from brickwork","m",{"v":500,"d":"500 "},null,{"v":0,"d":"R0.00"}]
[]
[{"$nulls":3},"Taking out and removing joinery fittings etc"]
[]
[null,{"v":52,"d":"52 "},null,"Timber wall cupboard 1500 x 300 x 600mm high","No",{"v":150,"d":"150 "},null,{"$f":"F177*G177","v":{"v":0,"d":"R0.00"}}]
[]
[null,{"v":53,"d":"53 "},null,"Timber floor cupboard 2000 x 600 x 900mm high","No",{"v":150,"d":"150 "},null,{"v":0,"d":"R0.00"}]
[]
[null,{"v":54,"d":"54 "},null,"Timber sink cupboard 2000 x 600 x 900mm high\nincluding disconnecting waste pipe (new trap and\nconnecting to new waste pipe elsewhere)\n","No",{"v":150,"d":"150 "},null,{"v":0,"d":"R0.00"}]
[null,{"v":55,"d":"55 "},null,"Timber counter 2500 x 600 x 1200mm high","No",{"v":150,"d":"150 "},null,{"v":0,"d":"R0.00"}]
[]
[{"$nulls":3},"Taking out sundry joinery work,  fittings etc, set aside for re-use and later refix in similar new position"]
[]
[null,{"v":56,"d":"56 "},null,"Timber skirtings ","m",1000,null,{"v":0,"d":"R0.00"}]
[]
[null,{"v":57,"d":"57 "},null,"Timber wall cupboard 1500 x 300 x 600mm high","No",1000,null,{"v":0,"d":"R0.00"}]
[]
[null,{"v":58,"d":"58 "},null,"Timber floor cupboard 2000 x 600 x 900mm high","No",1000,null,{"v":0,"d":"R0.00"}]
[]
[null,{"v":59,"d":"59 "},null,"Timber sink cupboard 2000 x 600 x 900mm high, including disconnecting waste pipe (new trap and connecting to new waste pipe elsewhere)","No",1000,null,{"v":0,"d":"R0.00"}]
[]
[null,{"v":60,"d":"60 "},null,"Timber counter 2500 x 600 x 1200mm high","No",1000,null,{"v":0,"d":"R0.00"}]
[]
[{"$nulls":3},"Taking up and removing wood block coverings, vinyl floor coverings, \ncarpeting, etc and prepare screeds for new floor finishes"]
[]
[null,{"v":61,"d":"61 "},null,"Vinyl tile floor coverings","m²",1000,null,{"v":0,"d":"R0.00"}]
[]
[null,{"v":62,"d":"62 "},null,"Vinyl sheet floor coverings","m²",1000,null,{"v":0,"d":"R0.00"}]
[]
[null,{"v":63,"d":"63 "},null,"Carpet tile floor coverings","m²",1000,null,{"v":0,"d":"R0.00"}]
[]
[null,{"v":64,"d":"64 "},null,"Carpet sheet floor coverings, including underfelt","m²",1000,null,{"v":0,"d":"R0.00"}]
[]
[null,{"v":65,"d":"65 "},null,"Epoxy flooring","m²",1000,null,{"v":0,"d":"R0.00"}]
[]
[{"$nulls":3},"Hacking up/off and removing granolithic, screeds, plaster, etc from concrete\n or brickwork and preparing surfaces for new screeds, plaster, etc\n"]
[null,{"v":66,"d":"66 "},null,"30mm Granolithic from floors","m²",{"v":1000,"d":"1,000 "}]
[]
[null,{"v":67,"d":"67 "},null,"30mm Granolithic from treads and risers of stairs","m²",{"v":1000,"d":"1,000 "},null,{"v":0,"d":"R0.00"}]
[]
[null,{"v":68,"d":"68 "},null,"Granolithic skirting 15mm high","m²",{"v":1000,"d":"1,000 "},null,{"v":0,"d":"R0.00"}]
[]
[null,{"v":69,"d":"69 "},null,"25mm Screed from floors","m²",{"v":1000,"d":"1,000 "},null,{"v":0,"d":"R0.00"}]
[]
[null,{"v":70,"d":"70 "},null,"Internal plaster from walls and columns","m²",{"v":1000,"d":"1,000 "},null,{"v":0,"d":"R0.00"}]
[]
[null,{"v":71,"d":"71 "},null,"Internal plaster from ceilings and beams","m²",{"v":1000,"d":"1,000 "},null,{"v":0,"d":"R0.00"}]
[]
[null,{"v":72,"d":"72 "},null,"External plaster from walls, columns and beams","m²",{"v":1000,"d":"1,000 "},null,{"v":0,"d":"R0.00"}]
[]
[{"$nulls":3},"Hacking up/off and removing ceramic tile floor and wall finishes including\nremoving mortar bed orbacking and preparing concrete or brick surfaces for new\nscreed, plaster or tile finishes\n"]
[null,{"v":73,"d":"73 "},null,"Tiles to floors","m²",{"v":1000,"d":"1,000 "},null,{"v":0,"d":"R0.00"}]
[]
[null,{"v":74,"d":"74 "},null,"Tiles to walls","m²",{"v":1000,"d":"1,000 "},null,{"v":0,"d":"R0.00"}]
[]
[null,{"v":75,"d":"75 "},null,"Tile skirting 20mm high","m²",{"v":1000,"d":"1,000 "},null,{"v":0,"d":"R0.00"}]
[]
[{"$nulls":3},"Taking out and removing piping, sanitary fittings, etc including disconnecting piping\nfrom fittings and making good floor and wall finishes (making good tiling and paintwork elsewhere)"]
[]
[null,{"v":76,"d":"76 "},null,"Stainless steel sink, including timber cupboard 1200 x 600 x 900mm high","No",1000,null,{"v":0,"d":"R0.00"}]
[]
[null,{"v":77,"d":"77 "},null,"Wall mounted hand wash porcelain basin ","No",1000,null,{"v":0,"d":"R0.00"}]
[]
[null,{"v":78,"d":"78 "},null,"Flush water closet porcelain pan with cistern ","No",1000,null,{"v":0,"d":"R0.00"}]
[]
[null,{"v":79,"d":"79 "},null,"Flush water closet porcelain pan with flush valve ","No",1000,null,{"$f":"F238*G238","v":{"v":0,"d":"R0.00"}}]
[]
[null,{"v":80,"d":"80 "},null,"Front flush wall hung porcelain urinal with flush valve ","No",1000,null,{"v":0,"d":"R0.00"}]
[]
[{"$nulls":3},"Taking out and removing glass and mirrors"]
[]
[null,{"v":81,"d":"81 "},null,"Carefully remove cracked or broken glazing in panes not exceeding 0,1m2 in existing metal\nwindows and doors including scraping out putty on reveals and prepare windows and or \ndoors to receive new glazing (New glazing elsewhere measured)","No",{"v":100,"d":"100 "},null,{"v":0,"d":"R0.00"}]
[]
[null,{"v":82,"d":"82 "},null,"Carefully remove cracked or broken glazing in panes exceeding 0,1m2 and not exceeding 0,5m2 in existing metal windows and doors including scraping out putty on reveals and prepare windows and or doors to receive new glazing (New glazing elsewhere measured)","No",{"v":100,"d":"100 "},null,{"v":0,"d":"R0.00"}]
[]
[null,{"v":83,"d":"83 "},null,"Carefully remove cracked or broken glazing in panes exceeding 0,5m2 and not exceeding 2m2 in existing metal windows and doors including scraping out putty on reveals and prepare windows and or doors to receive new glazing (New glazing elsewhere measured)","No",{"v":100,"d":"100 "},null,{"v":0,"d":"R0.00"}]
[]
[null,{"v":84,"d":"84 "},null,"Carefully remove cracked or broken glazing in panes exceeding 2m2 and not exceeding 4m2 in\nexisting metal windows and doors including scraping out putty on reveals and prepare windows\nand or doors to receive new glazing (New glazing elsewhere measured)","No",{"v":100,"d":"100 "},null,{"v":0,"d":"R0.00"}]
[{"$nulls":7},{"v":0,"d":"R0.00"}]
[null,{"v":85,"d":"85 "},null,"Carefully remove cracked or broken glazing in panes not exceeding 0,1m2 in existing timber\nwindows and doors including removal of timber beads and prepare windows and doors to receive new glazing (New glazing elsewhere measured)","No",{"v":100,"d":"100 "},null,{"v":0,"d":"R0.00"}]
[]
[null,{"v":86,"d":"86 "},null,"Carefully remove cracked or broken glazing in panes exceeding 0,1m2 and not exceeding 0,5m2 in existing timber windows and doors including removal of timber beads and prepare windows and doors to receive new glazing (New glazing elsewhere measured)","No",{"v":100,"d":"100 "},null,{"v":0,"d":"R0.00"}]
[]
[null,{"v":87,"d":"87 "},null,"Carefully remove cracked or broken glazing in panes exceeding 0,5m2 and not exceeding 2m2 in existing timber windows and doors including removal of timber beads and prepare windows and doors to receive new glazing (New glazing elsewhere measured)","No",{"v":100,"d":"100 "},null,{"v":0,"d":"R0.00"}]
[]
[null,{"v":88,"d":"88 "},null,"Carefully remove cracked or broken glazing in panes exceeding 2m2 and not exceeding 4m2 in existing timber windows and doors including removal of timber beads and prepare windows and doors to receive new glazing (New glazing elsewhere measured)","No",{"v":100,"d":"100 "},null,{"v":0,"d":"R0.00"}]
[]
[null,{"v":89,"d":"89 "},null,"Carefully remove cracked or broken mirrors not exceeding 0,5m2 including making good painted or tiled backing and prepare surface to receive new mirrors (New mirrors elsewhere measured)","No",{"v":100,"d":"100 "},null,{"v":0,"d":"R0.00"}]
[]
[null,{"v":90,"d":"90 "},null,"Carefully remove cracked or broken mirrors exceeding 0,5m2 and not exceeding 1,0m2 including making good painted or tiled backing and prepare surface to receive new mirrors (New mirrors elsewhere measured)","No",{"v":100,"d":"100 "},null,{"v":0,"d":"R0.00"}]
[]
[null,{"v":91,"d":"91 "},null,"Carefully remove cracked or broken mirrors exceeding 1m2 and not exceeding 2m2 including making good painted or tiled backing and prepare surface to receive new mirrors (New mirrors elsewhere measured)","No",{"v":100,"d":"100 "},null,{"v":0,"d":"R0.00"}]
[]
[null,{"v":92,"d":"92 "},null,"Carefully remove cracked or broken mirrors exceeding 2m2 and not exceeding 4m2 including making good painted or tiled backing and prepare surface to receive new mirrors (New mirrors elsewhere measured)","No",{"v":100,"d":"100 "},null,{"v":0,"d":"R0.00"}]
[]
[]
[{"$nulls":3},"Taking down and removing roofs, floors, panelling, ceilings, partitions, etc."]
[]
[null,{"v":93,"d":"93 "},null,"Carefully remove and dispose by specialist existing Corrugated Asbestors Cement roof covering","m²",{"v":600,"d":"600 "},null,{"v":0,"d":"R0.00"}]
[]
[null,{"v":94,"d":"94 "},null,"Carefully take out and remove damaged existing corrugated / concrete tiles / IBR roofing sheet","m²",1000,null,{"v":0,"d":"R0.00"}]
[]
[null,{"v":95,"d":"95 "},null,"Carefully take out and remove damaged existing timber roof trusses and make good brickwork to receive new roof trusses (New roof trusses elsewhere measured)","m²",1000,null,{"v":0,"d":"R0.00"}]
[]
[null,{"v":96,"d":"96 "},null,"Carefully take out and remove existing corrugated roofing sheet and make good trusses to receive new roof covering","m²",1000,null,{"v":0,"d":"R0.00"}]
[]
[null,{"v":97,"d":"97 "},null,"Carefully take out and remove existing concrete roof tiles and make good trusses to receive new roof covering","m²",1000,null,{"v":0,"d":"R0.00"}]
[]
[null,{"v":98,"d":"98 "},null,"Carefully take out and remove existing slate roof tiles and make good trusses to receive new roof covering","m²",1000,null,{"v":0,"d":"R0.00"}]
[]
[{"$nulls":3},"Taking down and removing ceilings, e.t.c"]
[]
[null,{"v":99,"d":"99 "},null,"Make good cracks not more than 5mm wide on plastered ceiling with poly-filler to flush and match existing","m",250,null,{"v":0,"d":"R0.00"}]
[]
[null,{"v":100,"d":"100 "},null,"Make good cracks more than 5mm wide on plastered ceiling by hacking out and removing plaster 150mm wide on both sides of cracks and make good with wired chicken mesh and cover with new plaster","m",250,null,{"v":0,"d":"R0.00"}]
[]
[null,{"v":101,"d":"101 "},null,"Carefully hack out and remove damp, loose and flaking plaster to ceilings, prepare surface and replaster in patches not exceeding 0,3m2 to flush and match existing","No",150,null,{"v":0,"d":"R0.00"}]
[]
[null,{"v":102,"d":"102 "},null,"Carefully hack out and remove damp, loose and flaking plaster to ceilings prepare surface and replaster in patches exceeding 0,3m2 but not exceeding 0,6m2 to flush and match existing","No",150,null,{"v":0,"d":"R0.00"}]
[]
[null,{"v":103,"d":"103 "},null,"Carefully hack out and remove damp, loose and flaking plaster to ceilings prepare surface and replaster in patches exceeding 0,6m2 but not exceeding 1,0m2 to flush and match existing","No",150,null,{"v":0,"d":"R0.00"}]
[]
[null,{"v":104,"d":"104 "},null,"Carefully hack out and remove damp, loose and flaking plaster to ceilings exceeding 1,0m2 and prepare soffit of ceiling to receive new plaster (New plaster elsewhere measured)","m2",200,null,{"v":0,"d":"R0.00"}]
[]
[null,{"v":105,"d":"105 "},null,"Patch cracks in gypsum cement ceiling board not exceeding 5mm wide with gypsum plaster and mesh","m",300,null,{"v":0,"d":"R0.00"}]
[]
[null,{"v":106,"d":"106 "},null,"Patch holes in gypsum ceiling board not exceeding 50mm diameter with gypsum plaster and mesh","No",250,null,{"$f":"F299*G299","v":{"v":0,"d":"R0.00"}}]
[]
[null,{"v":107,"d":"107 "},null,"Patch holes in gypsum ceiling board exceeding 50mm but not exceeding 100mm diameter with gypsum plaster and mesh","No",250,null,{"v":0,"d":"R0.00"}]
[]
[null,{"v":108,"d":"108 "},null,"Carefully remove damaged portions of existing gypsum ceiling boards including removal of damaged brandering and cornices and prepare existing to receive new (New boards elsewhere measured)","m2",500,null,{"v":0,"d":"R0.00"}]
[]
[null,{"v":109,"d":"109 "},null,"Patch cracks in gypsum cement ceiling board not exceeding 5mm wide with gypsum plaster and mesh","m",600,null,{"v":0,"d":"R0.00"}]
[]
[null,{"v":110,"d":"110 "},null,"Patch holes in gypsum ceiling board not exceeding 50mm diameter with gypsum plaster and mesh","No",250,null,{"v":0,"d":"R0.00"}]
[]
[null,{"v":111,"d":"111 "},null,"Patch holes in gypsum ceiling board exceeding 50mm but not exceeding 100mm diameter with gypsum plaster and mesh","No",250,null,{"v":0,"d":"R0.00"}]
[]
[null,{"v":112,"d":"112 "},null,"Carefully remove damaged sections of existing gypsum ceiling boards including removal of damaged brandering and prepare existing to receive new (New boards elsewhere measured)","m2",500,null,{"v":0,"d":"R0.00"}]
[]
[null,{"v":113,"d":"113 "},null,"Patch cracks in fibre cement ceiling boards not exceeding 5mm wide","m",600,null,{"v":0,"d":"R0.00"}]
[]
[null,{"v":114,"d":"114 "},null,"Patch holes in fibre cement ceiling boards not exceeding 50mm diameter","No",250,null,{"v":0,"d":"R0.00"}]
[]
[null,{"v":115,"d":"115 "},null,"Patch holes in fibre cement ceiling boards exceeding 50mm but not exceeding 100mm diameter","No",250,null,{"v":0,"d":"R0.00"}]
[]
[null,{"v":116,"d":"116 "},null,"Carefully remove damaged portions of existing fibre cement ceiling boards including removal of damaged brandering and prepare existing to receive new (New boards elsewhere measured)","m2",500,null,{"v":0,"d":"R0.00"}]
[]
[null,{"v":117,"d":"117 "},null,"Carefully remove damaged sections of existing gypsum cornices in lengths not exceeding 3,0m and make good walls and ceilings to receive new (New cornice elsewhere measured)","m",600,null,{"v":0,"d":"R0.00"}]
[]
[null,{"v":118,"d":"118 "},null,"Carefully remove damaged sections of existing gypsum cornices in lengths exceeding 3,0m and make good walls and ceilings to receive new","m",600,null,{"v":0,"d":"R0.00"}]
[]
[{"$nulls":3},"SERVICING EXISTING ITEMS"]
[]
[{"$nulls":3},"Service existing sanitary fittings, accessories, etc."]
[]
[null,{"v":119,"d":"119 "},null,"Carefully examine hydroboil, for any leaks, worn parts, etc repair and fully service same to ensure functionality, all to the satisfaction of the Principal Agent","No",100,null,{"v":0,"d":"R0.00"}]
[]
[null,{"v":120,"d":"120 "},null,"Carefully examine wash hand basins, taps, traps and piping for any leaks, worn parts, etc. repair and fully service same to ensure functionality, all to the satisfaction of the Principal Agent ","No",100,null,{"v":0,"d":"R0.00"}]
[]
[null,{"v":121,"d":"121 "},null,"Carefully examine sinks, taps, traps and piping for any leaks, worn parts, etc. repair and fully service same to ensure functionality, all to the satisfaction of the Principal Agent","No",100,null,{"v":0,"d":"R0.00"}]
[]
[null,{"v":123,"d":"123 "},null,"Carefully examine bath tub, taps, traps and piping for any leaks, worn parts, etc. repair and fully service same to ensure functionality, all to the satisfaction of the Principal Agent","No",100,null,{"v":0,"d":"R0.00"}]
[]
[null,{"v":124,"d":"124 "},null,"Carefully examine laundry sinks, size 1300 x 500 x 900mm high, taps, traps and piping for any leaks, worn parts, etc. repair and fully service same to ensure functionality, all to the satisfaction of the Principal Agent","No",100,null,{"v":0,"d":"R0.00"}]
[]
[{"$nulls":3},"Servicing existing windows"]
[]
[null,{"v":125,"d":"125 "},null,"Carefully examine hinges, handles and stays to steel windows, replace putty to glazing of steel windows and fully service same to facilitate smooth functionality, all to the satisfaction of the Principal Agent, various sizes but n.e 300mm high","No",100,null,{"v":0,"d":"R0.00"}]
[]
[null,{"v":126,"d":"126 "},null,"Carefully examine hinges, handles and stays to steel windows, replace putty to glazing of steel windows and fully service same to facilitate smooth functionality, all to the satisfaction of the Principal Agent, various sizes but n.e 500mm high","No",100,null,{"v":0,"d":"R0.00"}]
[]
[null,{"v":127,"d":"127 "},null,"Carefully examine hinges, handles and stays to steel windows, replace putty to glazing of steel windows and fully service same to facilitate smooth functionality, all to the satisfaction of the Principal Agent, various sizes but n.e 600mm high","No",100,null,{"v":0,"d":"R0.00"}]
[]
[null,{"v":128,"d":"128 "},null,"Carefully examine hinges, handles and stays to steel windows, replace putty to glazing of steel windows and fully service same to facilitate smooth functionality, all to the satisfaction of the Principal Agent, various sizes but n.e 600mm high","No",100,null,{"v":0,"d":"R0.00"}]
[]
[null,{"v":129,"d":"129 "},null,"Carefully examine hinges, handles and stays to steel windows, replace putty to glazing of steel windows and fully service same to facilitate smooth functionality, all to the satisfaction of the Principal Agent, various sizes but n.e 800mm high","No",100,null,{"v":0,"d":"R0.00"}]
[]
[null,{"v":130,"d":"130 "},null,"Carefully examine hinges, handles and stays to steel windows, replace putty to glazing of steel windows and fully service same to facilitate smooth functionality, all to the satisfaction of the Principal Agent, various sizes but n.e 1000mm high","No",100,null,{"v":0,"d":"R0.00"}]
[]
[null,{"v":131,"d":"131 "},null,"Carefully examine hinges, handles and stays to steel windows, replace putty to glazing of steel windows and fully service same to facilitate smooth functionality, all to the satisfaction of the Principal Agent, various sizes but n.e 1200mm high","No",100,null,{"v":0,"d":"R0.00"}]
[]
[null,{"v":132,"d":"132 "},null,"Carefully examine hinges, handles and stays to steel windows, replace putty to glazing of steel windows and fully service same to facilitate smooth functionality, all to the satisfaction of the Principal Agent, various sizes but n.e 1500mm high","No",100,null,{"v":0,"d":"R0.00"}]
[]
[null,{"v":133,"d":"133 "},null,"Carefully examine hinges, handles and stays to steel windows, replace putty to glazing of steel windows and fully service same to facilitate smooth functionality, all to the satisfaction of the Principal Agent, various sizes but n.e 1800mm high","No",100,null,{"v":0,"d":"R0.00"}]
[]
[null,{"v":134,"d":"134 "},null,"Carefully examine hinges, handles and stays to steel windows, replace putty to glazing of steel windows and fully service same to facilitate smooth functionality, all to the satisfaction of the Principal Agent, various sizes but n.e 2000mm high","No",100,null,{"v":0,"d":"R0.00"}]
[]
[{"$nulls":3},"CUTTING THROUGH FLOORS AND CEILINGS"]
[]
[null,{"v":135,"d":"135 "},null,"50 x 50mm chase formed for plumbing pipework","m",100,null,{"$f":"F363*G363","v":{"v":0,"d":"R0.00"}}]
[]
[null,{"v":136,"d":"136 "},null,"110 x 110mm chase formed for plumbing pipework","m",100,null,{"v":0,"d":"R0.00"}]
[]
[null,{"v":137,"d":"137 "},null,"Cutting through 100mm thick concrete surface bed for 500mm wide concrete wall footing including making good concrete on both sides of new 220mm brick wall","m",100,null,{"v":0,"d":"R0.00"}]
[]
[{"$nulls":3},"CUTTING THROUGH WALLS"]
[]
[null,{"v":138,"d":"138 "},null,"Opening through 110mm brick wall.","m²",100,null,{"v":0,"d":"R0.00"}]
[]
[null,{"v":139,"d":"139 "},null,"Opening through 230mm brick wall.","m²",100,null,{"v":0,"d":"R0.00"}]
[]
[null,{"v":140,"d":"140 "},null,"Opening through 270mm brick wall.","m²",100,null,{"v":0,"d":"R0.00"}]
[]
[null,{"v":141,"d":"141 "},null,"Opening through drywall partitioning for door with aluminium frame 0.88 x 2.06m high overall ","Unit",100,null,{"v":0,"d":"R0.00"}]
[]
[null,{"v":142,"d":"142 "},null,"Opening through 110mm concrete wall ","m²",100,null,{"v":0,"d":"R0.00"}]
[]
[null,{"v":143,"d":"143 "},null,"Opening through 230mm concrete wall","m²",100,null,{"v":0,"d":"R0.00"}]
[]
[]
[{"$nulls":3},"BUILDING UP OPENINGS"]
[]
[{"$nulls":3},"Brickwork in NFP bricks in class II mortar in\nbuilding up openings"]
[]
[null,{"v":144,"d":"144 "},null,"Half brick walls","m²",100,null,{"v":0,"d":"R0.00"}]
[]
[null,{"v":145,"d":"145 "},null,"One brick walls","m²",250,null,{"v":0,"d":"R0.00"}]
[]
[{"$nulls":3},"Sundries"]
[]
[null,{"v":146,"d":"146 "},null,"Cutting toothings and bonding new brickwork to\nexisting","m2",50,null,{"v":0,"d":"R0.00"}]
[]
[{"$nulls":3},"220mm face bricks pointed with flush horizontal and\nvertical joints"]
[]
[null,{"v":147,"d":"147 "},null,"Extra over brickwork for face brickwork in patches","m2",200,null,{"v":0,"d":"R0.00"}]
[]
[null,{"v":148,"d":"148 "},null,"1000mm Wide brick-on-edge header course sill set\nsloping and slightly projecting","m",100,null,{"v":0,"d":"R0.00"}]
[]
[null,{"v":149,"d":"149 "},null,"Cutting toothings and bonding new face brickwork\nto existing","m",100,null,{"v":0,"d":"R0.00"}]
[]
[null,{"v":150,"d":"150 "},null,"PREPARATORY WORK TO EXISTING\nSURFACES"]
[]
[{"$nulls":3},"Scabble existing surface of plastered wall and\nprepare surface to receive new tiling (new tiling\nelsewhere measured"]
[]
[null,{"v":151,"d":"151 "},null,"On walls","m2",500,null,{"v":0,"d":"R0.00"}]
[]
[{"$nulls":3},"Scabble existing surface of fair faced wall and\nprepare surface to receive new plaster (new plaster\nelsewhere measured)"]
[]
[null,{"v":152,"d":"152 "},null,"On walls"]
[{"$nulls":4},"m2",500,null,{"v":0,"d":"R0.00"}]
[{"$nulls":3},"SCREEDS"]
[]
[null,{"v":153,"d":"153 "},null,"Make good cracks not more than 5mm wide with\ncement grout (1:3) on steel or wood floated screed,\nflush and match existing floor texture","m",100,null,{"v":0,"d":"R0.00"}]
[]
[null,{"v":154,"d":"154 "},null,"Make good cracks on steel or wood floated screed\nmore than 5mm thick by hacking out 150mm wide\nand 25mm deep minimum on both sides of cracks,\nprepare the surface and lay new screed to flush\nand match existing","m",100,null,{"v":0,"d":"R0.00"}]
[]
[null,{"v":155,"d":"155 "},null,"Make good holes not exceeding 0,1m2 in existing\nsteel or wood floated floor screed including\nremoving damaged sections and patching with new\nscreed to flush and match existing","No",100,null,{"v":0,"d":"R0.00"}]
[]
[null,{"v":156,"d":"156 "},null,"Make good holes exceeding 0,1m2 but not\nexceeding 0,3m2 in existing steel or wood floated\nfloor screed including removing damaged sections\nand patching with new screed to flush and match\nexisting","No",100,null,{"v":0,"d":"R0.00"}]
[]
[null,{"v":157,"d":"157 "},null,"Make good holes exceeding 0,3m2 but not\nexceeding 0,5m2 in existing steel or wood floated\nfloor screed including removing damaged sections\nand patching with new screed to flush and match\nexisting","No",100,null,{"v":0,"d":"R0.00"}]
[]
[null,{"v":158,"d":"158 "},null,"Make good holes exceeding 0,5m2 but not\nexceeding 1,0m2 in existing steel or wood floated\nfloor screed including removing damaged sections\nand patching with new screed to flush and match\nexisting","No",100,null,{"v":0,"d":"R0.00"}]
[]
[null,{"v":159,"d":"159 "},null,"Hack off and remove damaged steel or wood\nfloated floor screed exceeding 1,0m2 and prepare\nsurface to receive new floor screed (New floor\nscreed measured elsewhere)","m2",150,null,{"$f":"F428*G428","v":{"v":0,"d":"R0.00"}}]
[]
[{"$nulls":3},"INTERNAL PLASTER"]
[]
[null,{"v":160,"d":"160 "},null,"Fill cracks not more than 5mm wide with crack-filler and touch-up paint to match existing colour","m",250,null,{"v":0,"d":"R0.00"}]
[]
[null,{"v":161,"d":"161 "},null,"Make good holes, chips, dents and cracks not\nexceeding 0,1m2 in existing plaster including\nremoving damaged sections and patching with new\nplaster to flush and match existing","No",100,null,{"v":0,"d":"R0.00"}]
[]
[null,{"v":162,"d":"162 "},null,"Make good cracks more than 5mm wide by hacking\nout and removing existing plaster 150mm wide on\nboth sides of cracks, prepare surface and repair\nwith chicken mesh covered with new plaster and\npaint to match existing paint","m",250,null,{"v":0,"d":"R0.00"}]
[]
[null,{"v":163,"d":"163 "},null,"Make good holes, chips, dents and cracks\nexceeding 0,1m2 but not exceeding 0,3m2 in\nexisting plaster including removing damaged\nsections and patching with new plaster to flush and\nmatch existing","No",100,null,{"v":0,"d":"R0.00"}]
[]
[null,{"v":164,"d":"164 "},null,"Make good holes, chips, dents and cracks\nexceeding 0,3m2 but not exceeding 0,5m2 in\nexisting plaster including removing damaged\nsections and patching with new plaster to flush and\nmatch existing","No",100,null,{"v":0,"d":"R0.00"}]
[]
[null,{"v":165,"d":"165 "},null,"Make good holes, chips, dents and cracks\nexceeding 0,5m2 but not exceeding 1,0m2 in\nexisting plaster including removing damaged\nsections and patching with new plaster to flush and\nmatch existing","No",100,null,{"v":0,"d":"R0.00"}]
[]
[null,{"v":166,"d":"166 "},null,"Carefully hack out and remove damp, loose, flaking\nor cracked plaster to walls exceeding 1,0m2 and\nprepare surface of wall to receive new plaster (New\nplaster elsewhere measured)","m2",300,null,{"v":0,"d":"R0.00"}]
[]
[{"$nulls":3},"EXTERNAL PLASTER"]
[]
[null,{"v":167,"d":"167 "},null,"Fill cracks not more than 5mm wide with poly-filler\nand touch-up paint to match existing colour","m",250,null,{"v":0,"d":"R0.00"}]
[]
[null,{"v":168,"d":"168 "},null,"Make good cracks more than 5mm wide by hacking\nout and removing existing plaster 150mm wide\non both sides of cracks, prepare surface and repair\nwith chicken mesh covered with new plaster and\npaint to match existing paint","m",250,null,{"v":0,"d":"R0.00"}]
[]
[null,{"v":169,"d":"169 "},null,"Make good holes, chips, dents and cracks not\nexceeding 0,1m2 in existing plaster including\nremoving damaged sections and patching with new\nplaster to flush and match existing","No",100,null,{"v":0,"d":"R0.00"}]
[]
[null,{"v":170,"d":"170 "},null,"Make good holes, chips, dents and cracks\nexceeding 0,1m2 but not exceeding 0,3m2 in\nexisting plaster including removing damaged\nsections and patching with new plaster to flush and\nmatch existing","No",100,null,{"v":0,"d":"R0.00"}]
[]
[null,{"v":171,"d":"171 "},null,"Make good holes, chips, dents and cracks\nexceeding 0,3m2 but not exceeding 0,5m2 in\nexisting plaster including removing damaged\nsections and patching with new plaster to flush and\nmatch existing","No",100,null,{"v":0,"d":"R0.00"}]
[]
[null,{"v":172,"d":"172 "},null,"Make good holes, chips, dents and cracks\nexceeding 0,5m2 but not exceeding 1,0m2 in\nexisting plaster including removing damaged\nsections and patching with new plaster to flush and\nmatch existing","No",100,null,{"v":0,"d":"R0.00"}]
[]
[null,{"v":173,"d":"173 "},null,"Carefully hack out and remove damp, loose, flaking\nor cracked plaster to walls exceeding 1,0m2 and\nprepare surface of wall to receive new plaster (New\nplaster elsewhere measured)","m2",1000,null,{"v":0,"d":"R0.00"}]
[]
[null,{"v":174,"d":"174 "},null,"Cutting out joints of existing brickwork to receive","m2",100,null,{"v":0,"d":"R0.00"}]
[{"$nulls":3},"plaster",{"$nulls":3},{"v":0,"d":"R0.00"}]
[]
[null,{"v":175,"d":"175 "},null,"Hacking face of existing concrete columns, beams,\netc to receive plaster","m2",100,null,{"v":0,"d":"R0.00"}]
[]
[null,{"v":176,"d":"176 "},null,"Making good defects in existing screeded floors\nwith \"Pavelite\"","m2",250,null,{"v":0,"d":"R0.00"}]
[]
[{"$nulls":3},"Damp proof treatment"]
[]
[null,{"v":177,"d":"177 "},null,"Hack-off plaster, apply damp repellant and replaster\nand paint to match existing","m2",1000,null,{"v":0,"d":"R0.00"}]
[]
[{"$nulls":3},"Making good rainwater pipes."]
[]
[null,{"v":178,"d":"178 "},null,"Carefully cut out and remove damaged sections of existing galvanised downpipes and replace with new to match existing profile, make water-tight at joining, prepare and paint to match existing ","m",200,null,{"v":0,"d":"R0.00"}]
[]
[null,{"v":179,"d":"179 "},null,"Carefully cut and remove damaged existing galvanised eaves offset and replace with new to match existing profile, make water-tight at joining, prepare and paint to match existing ","No",150,null,{"v":0,"d":"R0.00"}]
[]
[null,{"v":180,"d":"180 "},null,"Carefully cut and remove damaged existing galvanised shoe and replace with new to match existing profile, make water-tight at joining, prepare and paint to match existing","No",150,null,{"v":0,"d":"R0.00"}]
[]
[null,{"v":181,"d":"181 "},null,"Carefully cut and remove damaged galvanised bends / elbow and replace with new to match existing profile, make water-tight at joining, prepare and paint to match existing ","No",150,null,{"v":0,"d":"R0.00"}]
[]
[null,{"v":182,"d":"182 "},null,"Carefully cut and remove damaged galvanised box head and replace with new to match existing profile, make good flashing and counter flashing and make water-tight at joining, prepare and paint to match existing ","No",150,null,{"v":0,"d":"R0.00"}]
[]
[{"$nulls":3},"Repair leaking water supply pipes"]
[]
[{"$nulls":3},"Shut off water supply to affected pipes, cut out and remove damaged sections of existing pipes in and replace with new including all necessary fittings."]
[]
[null,{"v":183,"d":"183 "},null,"15mm Copper pipes","m",500,null,{"v":0,"d":"R0.00"}]
[]
[null,{"v":184,"d":"184 "},null,"22mm Copper pipes","m",500,null,{"$f":"F491*G491","v":{"v":0,"d":"R0.00"}}]
[]
[null,{"v":185,"d":"185 "},null,"28mm Copper pipes","m",500,null,{"v":0,"d":"R0.00"}]
[]
[null,{"v":186,"d":"186 "},null,"32mm Copper pipes","m",500,null,{"v":0,"d":"R0.00"}]
[]
[null,{"v":187,"d":"187 "},null,"50mm Copper pipes","m",500,null,{"v":0,"d":"R0.00"}]
[]
[{"$nulls":3},"Shut off water supply to affected pipes, cut out and remove damaged fittings to existing pipes and replace with new including making good all works disturbed. "]
[]
[null,{"v":188,"d":"188 "},null,"15mm Copper fittings","No",250,null,{"v":0,"d":"R0.00"}]
[]
[null,{"v":189,"d":"189 "},null,"22mm Copper fittings","No",250,null,{"v":0,"d":"R0.00"}]
[]
[null,{"v":190,"d":"190 "},null,"28mm Copper fittings","No",250,null,{"v":0,"d":"R0.00"}]
[]
[null,{"v":191,"d":"191 "},null,"32mm Copper fittings","No",250,null,{"v":0,"d":"R0.00"}]
[]
[null,{"v":192,"d":"192 "},null,"50mm Copper fittings","No",250,null,{"v":0,"d":"R0.00"}]
[]
[{"$nulls":3},"Shut off water supply to affected pipes, cut out and remove damaged sections of existing pipes in and replace with new including all necessary fittings.",{"$nulls":3},{"v":0,"d":"R0.00"}]
[]
[null,{"v":193,"d":"193 "},null,"15mm Galvanised pipes","m",500,null,{"v":0,"d":"R0.00"}]
[]
[null,{"v":194,"d":"194 "},null,"22mm Galvanised pipes","m",500,null,{"v":0,"d":"R0.00"}]
[]
[null,{"v":195,"d":"195 "},null,"28mm Galvanised pipes","m",500,null,{"v":0,"d":"R0.00"}]
[]
[null,{"v":196,"d":"196 "},null,"32mm Galvanised pipes","m",500,null,{"v":0,"d":"R0.00"}]
[]
[null,{"v":197,"d":"197 "},null,"50mm Galvanised pipes","m",500,null,{"v":0,"d":"R0.00"}]
[]
[null,{"v":198,"d":"198 "},null,"65mm Galvanised pipes","m",500,null,{"v":0,"d":"R0.00"}]
[]
[{"$nulls":3},"Shut off water supply to affected pipes, cut out and remove damaged fittings to existing pipes and replace with new including making good all works disturbed. "]
[]
[null,{"v":199,"d":"199 "},null,"15mm Galvanised fittings","No",250,null,{"v":0,"d":"R0.00"}]
[]
[null,{"v":200,"d":"200 "},null,"22mm Galvanised fittings","No",250,null,{"v":0,"d":"R0.00"}]
[]
[null,{"v":201,"d":"201 "},null,"28mm Galvanised fittings","No",250,null,{"v":0,"d":"R0.00"}]
[]
[null,{"v":202,"d":"202 "},null,"32mm Galvanised fittings","No",250,null,{"v":0,"d":"R0.00"}]
[]
[null,{"v":203,"d":"203 "},null,"50mm Galvanised fittings","No",250,null,{"v":0,"d":"R0.00"}]
[]
[null,{"v":204,"d":"204 "},null,"65mm Galvanised fittings","No",250,null,{"v":0,"d":"R0.00"}]
[]
[{"$nulls":3},"Shut off water supply to affected pipes, cut out and remove damaged sections of existing pipes in and replace with new including all necessary fittings."]
[]
[null,{"v":205,"d":"205 "},null,"15mm uPVC pipes","m",500,null,{"v":0,"d":"R0.00"}]
[]
[null,{"v":206,"d":"206 "},null,"22mm uPVC pipes","m",500,null,{"v":0,"d":"R0.00"}]
[]
[null,{"v":207,"d":"207 "},null,"28mm uPVC pipes","m",500,null,{"v":0,"d":"R0.00"}]
[]
[null,{"v":208,"d":"208 "},null,"32mm uPVC pipes","m",500,null,{"v":0,"d":"R0.00"}]
[]
[null,{"v":209,"d":"209 "},null,"50mm uPVC pipes","m",500,null,{"v":0,"d":"R0.00"}]
[]
[null,{"v":210,"d":"210 "},null,"65mm uPVC pipes","m",500,null,{"v":0,"d":"R0.00"}]
[]
[{"$nulls":3},"Shut off water supply to affected pipes, cut out and remove damaged fittings to existing pipes and replace with new including making good all works disturbed. "]
[]
[null,{"v":211,"d":"211 "},null,"15mm uPVC fittings","No",250,null,{"$f":"F555*G555","v":{"v":0,"d":"R0.00"}}]
[]
[null,{"v":212,"d":"212 "},null,"22mm uPVC fittings","No",250,null,{"v":0,"d":"R0.00"}]
[]
[null,{"v":213,"d":"213 "},null,"28mm uPVC fittings","No",250,null,{"v":0,"d":"R0.00"}]
[]
[null,{"v":214,"d":"214 "},null,"32mm uPVC fittings","No",250,null,{"v":0,"d":"R0.00"}]
[]
[null,{"v":215,"d":"215 "},null,"50mm uPVC fittings","No",250,null,{"v":0,"d":"R0.00"}]
[]
[null,{"v":216,"d":"216 "},null,"65mm uPVC fittings","No",250,null,{"v":0,"d":"R0.00"}]
[]
[{"$nulls":3},"Cut out and remove damaged sections of existing pipes and replace with new including all necessary joining fittings."]
[]
[null,{"v":217,"d":"217 "},null,"50mm diameter uPVC pipe","No",100,null,{"v":0,"d":"R0.00"}]
[]
[null,{"v":218,"d":"218 "},null,"100mm diameter uPVC pipe","No",100,null,{"v":0,"d":"R0.00"}]
[]
[{"$nulls":3},"Cut out and remove damaged fittings on existing pipes and replace with new including making good all works disturbed."]
[]
[null,{"v":219,"d":"219 "},null,"50mm diameter uPVC fittings","No",100,null,{"v":0,"d":"R0.00"}]
[]
[null,{"v":220,"d":"220 "},null,"100mm diameter uPVC fittings","No",100,null,{"v":0,"d":"R0.00"}]
[]
[{"$nulls":3},"Cut out and remove damaged sections of existing pipes and replace with new including all necessary joining fittings."]
[]
[null,{"v":221,"d":"221 "},null,"50mm diameter Cast Iron pipes","m",100,null,{"v":0,"d":"R0.00"}]
[]
[null,{"v":222,"d":"222 "},null,"100mm diameter Cast Iron pipes","m",100,null,{"v":0,"d":"R0.00"}]
[]
[{"$nulls":3},"Cut out and remove damaged fittings on existing pipes and replace with new including making good all works disturbed."]
[]
[null,{"v":223,"d":"223 "},null,"50mm diameter Cast Iron fittings","No",100,null,{"v":0,"d":"R0.00"}]
[]
[null,{"v":224,"d":"224 "},null,"100mm diameter Cast Iron fittings","No",100,null,{"v":0,"d":"R0.00"}]
[]
[{"$nulls":3},"Locate and unblock blocked waste and sewer pipes and\nmake good all works disturbed."]
[]
[null,{"v":225,"d":"225 "},null,"50mm diameter uPVC or cast iron pipes","m",100,null,{"v":0,"d":"R0.00"}]
[]
[null,{"v":226,"d":"226 "},null,"100mm diameter uPVC or cast iron pipes","m",100,null,{"v":0,"d":"R0.00"}]
[]
[{"$nulls":3},"Fix firmly into position loose/shaking sanitary\nfittings, etc"]
[]
[null,{"v":227,"d":"227 "},null,"Wash hand basin","No",100,null,{"v":0,"d":"R0.00"}]
[]
[null,{"v":228,"d":"228 "},null,"Wash hand basin on pedestal","No",100,null,{"v":0,"d":"R0.00"}]
[]
[null,{"v":229,"d":"229 "},null,"Pedestal only","No",100,null,{"v":0,"d":"R0.00"}]
[]
[null,{"v":230,"d":"230 "},null,"WC pan only","No",100,null,{"v":0,"d":"R0.00"}]
[]
[null,{"v":231,"d":"231 "},null,"WC pan with cistern","No",100,null,{"v":0,"d":"R0.00"}]
[]
[null,{"v":232,"d":"232 "},null,"WC pan with flush valve","No",100,null,{"v":0,"d":"R0.00"}]
[]
[null,{"v":233,"d":"233 "},null,"Cistern and internal flushing mechanism","No",100,null,{"v":0,"d":"R0.00"}]
[]
[null,{"v":234,"d":"234 "},null,"Cistern only","No",100,null,{"v":0,"d":"R0.00"}]
[]
[null,{"v":235,"d":"235 "},null,"Cistern internal flushing mechanism only","No",100,null,{"v":0,"d":"R0.00"}]
[]
[null,{"v":236,"d":"236 "},null,"WC seat and cover","No",100,null,{"v":0,"d":"R0.00"}]
[]
[null,{"v":237,"d":"237 "},null,"WC pan connector","No",100,null,{"$f":"F619*G619","v":{"v":0,"d":"R0.00"}}]
[]
[null,{"v":238,"d":"238 "},null,"Wall hung urinal with flush valve","No",100,null,{"v":0,"d":"R0.00"}]
[]
[null,{"v":239,"d":"239 "},null,"Wall hung urinal only","No",100,null,{"v":0,"d":"R0.00"}]
[]
[null,{"v":240,"d":"240 "},null,"Urinal flush valve","No",100,null,{"v":0,"d":"R0.00"}]
[]
[{"$nulls":3},"TRAPS ETC"]
[]
[{"$nulls":3},"Carefully remove the following traps, make water\ntight and make good all works disturbed"]
[]
[null,{"v":241,"d":"241 "},null,"32mm Reseal \"P\" or \"S\" trap","No",150,null,{"v":0,"d":"R0.00"}]
[]
[null,{"v":242,"d":"242 "},null,"40mm Bath trap complete with overflow outlet and\npipe","No",150,null,{"v":0,"d":"R0.00"}]
[]
[null,{"v":243,"d":"243 "},null,"40 x 300mm Sink combination for double bowl with\ndeepseal \"P\" trap","No",150,null,{"v":0,"d":"R0.00"}]
[]
[null,{"v":244,"d":"244 "},null,"40mm Anti-vac bottle trap","No",150,null,{"v":0,"d":"R0.00"}]
[]
[{"$nulls":3},"Approved Chromium plated"]
[]
[null,{"v":245,"d":"245 "},null,"40mm Chrome plated Bottle trap","No",150,null,{"v":0,"d":"R0.00"}]
[]
[null,{"v":246,"d":"246 "},null,"75mm Chrome Plated hinged urinal domical grating","No",150,null,{"v":0,"d":"R0.00"}]
[]
[{"$nulls":3},"TAPS, VALVES, ETC"]
[]
[{"$nulls":3},"Shut off water supply and carefully remove the following existing taps, valves, e.t.c, not exceeding 50mm diameter"]
[]
[{"$nulls":3},"Brass"]
[]
[null,{"v":247,"d":"247 "},null,"Stopcock","No",150,null,{"v":0,"d":"R0.00"}]
[]
[null,{"v":248,"d":"248 "},null,"Fullway gate valve","No",150,null,{"v":0,"d":"R0.00"}]
[]
[null,{"v":249,"d":"249 "},null,"Bibcock with hose union","No",150,null,{"v":0,"d":"R0.00"}]
[]
[null,{"v":250,"d":"250 "},null,"Non-return valve","No",150,null,{"v":0,"d":"R0.00"}]
[]
[{"$nulls":3},"Approved Chromium plated"]
[]
[null,{"v":251,"d":"251 "},null,"Chrome Plated angle regulating valve","No",150,null,{"v":0,"d":"R0.00"}]
[]
[null,{"v":252,"d":"252 "},null,"Chrome Plated stopcock","No",150,null,{"v":0,"d":"R0.00"}]
[]
[null,{"v":253,"d":"253 "},null,"Chrome Plated \"Star\" underwall pattern stopcock","No",150,null,{"v":0,"d":"R0.00"}]
[]
[null,{"v":254,"d":"254 "},null,"Fullway gate valve","No",150,null,{"v":0,"d":"R0.00"}]
[]
[null,{"v":255,"d":"255 "},null,"Bibcock","No",150,null,{"v":0,"d":"R0.00"}]
[]
[null,{"v":256,"d":"256 "},null,"Bibcock with hose union","No",150,null,{"v":0,"d":"R0.00"}]
[]
[null,{"v":257,"d":"257 "},null,"Chrome Plated bibcock","No",150,null,{"v":0,"d":"R0.00"}]
[]
[null,{"v":258,"d":"258 "},null,"Chrome Plated pillarcock","No",150,null,{"v":0,"d":"R0.00"}]
[]
[null,{"v":259,"d":"259 "},null,"Chrome Plated single taphole basin mixer","No",150,null,{"v":0,"d":"R0.00"}]
[]
[null,{"v":260,"d":"260 "},null,"Chrome Plated sink mixer","No",150,null,{"v":0,"d":"R0.00"}]
[]
[null,{"v":261,"d":"261 "},null,"Chrome Plated bath mixer","No",150,null,{"v":0,"d":"R0.00"}]
[]
[null,{"v":262,"d":"262 "},null,"Chrome Plated bath mixer with hand shower","No",150,null,{"$f":"F683*G683","v":{"v":0,"d":"R0.00"}}]
[]
[null,{"v":263,"d":"263 "},null,"Chrome Plated shower mixer","No",150,null,{"v":0,"d":"R0.00"}]
[]
[null,{"v":264,"d":"264 "},null,"Chrome Plated shower rose","No",150,null,{"v":0,"d":"R0.00"}]
[]
[null,{"v":265,"d":"265 "},null,"Chrome Plated overhead shower arm","No",150,null,{"v":0,"d":"R0.00"}]
[]
[null,{"v":266,"d":"266 "},null,"In-line strainer","No",150,null,{"v":0,"d":"R0.00"}]
[]
[null,{"v":267,"d":"267 "},null,"Chrome Plated fullway ballcock","No",150,null,{"v":0,"d":"R0.00"}]
[]
[null,{"v":268,"d":"268 "},null,"Fullway ballcock","No",150,null,{"v":0,"d":"R0.00"}]
[]
[null,{"v":269,"d":"269 "},null,"PB1.10RB vacuum breaker","No",150,null,{"v":0,"d":"R0.00"}]
[]
[null,{"v":270,"d":"270 "},null,"PA1.1RB \"Kwikflo\" 400 kPa pressure reducing\nvalve","No",150,null,{"v":0,"d":"R0.00"}]
[]
[null,{"v":271,"d":"271 "},null,"Flushmaster Junior toilet flush valve","No",150,null,{"v":0,"d":"R0.00"}]
[]
[null,{"v":272,"d":"272 "},null,"Flushmaster Junior urinal flush valve","No",150,null,{"v":0,"d":"R0.00"}]
[]
[null,{"v":273,"d":"273 "},null,"Flushmaster toilet flush valve","No",150,null,{"v":0,"d":"R0.00"}]
[]
[{"$nulls":3},"Fix firmly into position existing loose/shaking taps,\nvalves, etc not exceeding 50mm diameter"]
[]
[{"$nulls":3},"Brass"]
[]
[null,{"v":274,"d":"274 "},null,"Stopcock","No",150,null,{"v":0,"d":"R0.00"}]
[]
[null,{"v":275,"d":"275 "},null,"Fullway gate valve","No",150,null,{"v":0,"d":"R0.00"}]
[]
[null,{"v":276,"d":"276 "},null,"Bibcock with hose union","No",150,null,{"v":0,"d":"R0.00"}]
[]
[null,{"v":277,"d":"277 "},null,"Non-return valve","No",150,null,{"v":0,"d":"R0.00"}]
[]
[{"$nulls":3},"Approved Chromium plated"]
[]
[null,{"v":278,"d":"278 "},null,"Chrome Plated angle regulating valve","No",150,null,{"v":0,"d":"R0.00"}]
[]
[null,{"v":279,"d":"279 "},null,"Chrome Plated stopcock","No",150,null,{"v":0,"d":"R0.00"}]
[]
[null,{"v":280,"d":"280 "},null,"Chrome Plated \"Star\" underwall pattern stopcock","No",150,null,{"v":0,"d":"R0.00"}]
[]
[null,{"v":281,"d":"281 "},null,"Fullway gate valve","No",150,null,{"v":0,"d":"R0.00"}]
[]
[null,{"v":282,"d":"282 "},null,"Bibcock","No",150,null,{"v":0,"d":"R0.00"}]
[]
[null,{"v":283,"d":"283 "},null,"Bibcock with hose union","No",150,null,{"v":0,"d":"R0.00"}]
[]
[null,{"v":284,"d":"284 "},null,"Chrome Plated bibcock","No",150,null,{"v":0,"d":"R0.00"}]
[]
[null,{"v":285,"d":"285 "},null,"Chrome Plated pillarcock","No",150,null,{"v":0,"d":"R0.00"}]
[]
[null,{"v":286,"d":"286 "},null,"Chrome Plated single taphole basin mixer","No",150,null,{"v":0,"d":"R0.00"}]
[]
[null,{"v":287,"d":"287 "},null,"Chrome Plated sink mixer","No",150,null,{"v":0,"d":"R0.00"}]
[]
[null,{"v":288,"d":"288 "},null,"Chrome Plated bath mixer","No",150,null,{"v":0,"d":"R0.00"}]
[]
[null,{"v":289,"d":"289 "},null,"Chrome Plated bath mixer with hand shower","No",150,null,{"v":0,"d":"R0.00"}]
[]
[null,{"v":290,"d":"290 "},null,"Chrome Plated shower mixer","No",150,null,{"v":0,"d":"R0.00"}]
[]
[null,{"v":291,"d":"291 "},null,"Chrome Plated shower rose","No",150,null,{"$f":"F747*G747","v":{"v":0,"d":"R0.00"}}]
[]
[null,{"v":292,"d":"292 "},null,"Chrome Plated overhead shower arm","No",150,null,{"v":0,"d":"R0.00"}]
[]
[null,{"v":293,"d":"293 "},null,"In-line strainer","No",150,null,{"v":0,"d":"R0.00"}]
[]
[null,{"v":294,"d":"294 "},null,"Chrome Plated fullway ballcock","No",150,null,{"v":0,"d":"R0.00"}]
[]
[null,{"v":295,"d":"295 "},null,"Fullway ballcock","No",150,null,{"v":0,"d":"R0.00"}]
[]
[null,{"v":296,"d":"296 "},null,"PB1.10RB vacuum breaker","No",150,null,{"v":0,"d":"R0.00"}]
[]
[null,{"v":297,"d":"297 "},null,"PA1.1RB \"Kwikflo\" 400 kPa pressure reducing\nvalve","No",150,null,{"v":0,"d":"R0.00"}]
[]
[null,{"v":298,"d":"298 "},null,"Flushmaster Junior toilet flush valve","No",150,null,{"v":0,"d":"R0.00"}]
[]
[null,{"v":299,"d":"299 "},null,"Flushmaster Junior urinal flush valve","No",150,null,{"v":0,"d":"R0.00"}]
[]
[null,{"v":300,"d":"300 "},null,"Flushmaster toilet flush valve","No",150,null,{"v":0,"d":"R0.00"}]
[]
[{"$nulls":3},"Fix firmly into position existing loose/shaking fire\nappliances"]
[]
[null,{"v":301,"d":"301 "},null,"\"Everyway\" hose reel complete with 30m rubber\nhose, chromium plated stopcock, shut-off nozzle\nand wall bracket","No",150,null,{"v":0,"d":"R0.00"}]
[]
[null,{"v":302,"d":"302 "},null,"4.5kg Dry chemical fire extinguisher","No",150,null,{"v":0,"d":"R0.00"}]
[]
[null,{"v":303,"d":"303 "},null,"9kg Dry chemical fire extinguisher","No",150,null,{"v":0,"d":"R0.00"}]
[]
[{"$nulls":3},"Carefully remove the following fire appliances"]
[]
[null,{"v":304,"d":"304 "},null,"\"Everyway\" hose reel complete with 30m rubber hose, chromium plated stopcock, shut-off nozzle and wall bracket","No",150,null,{"v":0,"d":"R0.00"}]
[]
[null,{"v":305,"d":"305 "},null,"4.5kg Dry chemical fire extinguisher","No",150,null,{"v":0,"d":"R0.00"}]
[]
[null,{"v":307,"d":"307 "},null,"9kg Dry chemical fire extinguisher","No",150,null,{"v":0,"d":"R0.00"}]
[]
[{"$nulls":3},"Service the following appliances and leave in perfect\nworking order including making good all works\ndisturbed"]
[]
[null,{"v":308,"d":"308 "},null,"\"Everyway\" hose reel complete with 30m rubber hose, chromium plated stopcock, shut-off nozzle and wall bracket","No",150,null,{"v":0,"d":"R0.00"}]
[]
[null,{"v":309,"d":"309 "},null,"4.5kg Dry chemical fire extinguisher","No",150,null,{"v":0,"d":"R0.00"}]
[]
[null,{"v":310,"d":"310 "},null,"9kg Dry chemical fire extinguisher","No",150,null,{"v":0,"d":"R0.00"}]
[]
[{"$nulls":3},"MAKING GOOD OF FINISHES ETC"]
[]
[{"$nulls":3},"TILING"]
[]
[null,{"v":311,"d":"311 "},null,"Carefully hack out and remove damaged sections of existing ceramic wall tiles not exceeding 1,0m2 and replace with new pointed neat to match existing","No",100,null,{"v":0,"d":"R0.00"}]
[]
[null,{"v":312,"d":"312 "},null,"Carefully hack out and remove damaged sections of existing ceramic wall tiles exceeding 1,0m2 and prepare surface to receive new wall tiles (New wall tiles elsewhere measured)","m2",250,null,{"v":0,"d":"R0.00"}]
[]
[null,{"v":313,"d":"313 "},null,"Carefully hack out and remove damaged sections of existing ceramic floor tiles not exceeding 1m2 and replace with new  pointed neat to match existing","No",100,null,{"v":0,"d":"R0.00"}]
[]
[null,{"v":314,"d":"314 "},null,"Carefully hack out and remove damaged sections of existing ceramic floor tiles exceeding 1,0m2 and prepare surface to receive new floor tiles (New floor tiles elsewhere measured)","m2",250,null,{"v":0,"d":"R0.00"}]
[]
[{"$nulls":3},"FACE BRICKWORK IN REPAIRS"]
[]
[{"$nulls":3},"External facings in approved face bricks (FBS) with\na PC Amount of R3 000.00 (Three thousand rand)\nper thousand bricks delivered to site (excluding\nVAT) pointed with square recessed horizontal and\nvertical joints"]
[]
[null,{"v":315,"d":"315 "},null,"Half brick wall in facings in patchwork including all bonding to existing facebrickwork (full value item)","m2",250,null,{"v":0,"d":"R0.00"}]
[]
[{"$nulls":3},"Examination and repair of existing roof covering"]
[]
[null,{"v":316,"d":"316 "},null,"Carefully examine/check existing sheet metal roof covering, replace/make good any defective sheets and check roof screws/bolts and replace where necessary (to ensure watertightness of roofs) ","m2",1000,null,{"$f":"F811*G811","v":{"v":0,"d":"R0.00"}}]
[]
[null,{"v":317,"d":"317 "},null,"Carefully examine/check existing vertical sheet metal cladding, replace/make good any defective sheets and check roof screws/bolts and replace where necessary (to ensure watertightness of roofs)","m2",1000,null,{"v":0,"d":"R0.00"}]
[]
[null,{"v":318,"d":"318 "},null,"Carefully examine/check/clean existing gutters, replace/make good any defective gutters and check roof joints and replace where necessary (to ensure watertightness of gutters) ","m2",1000,null,{"v":0,"d":"R0.00"}]
[]
[{"$nulls":3},"Cut off and remove damaged timbers at eaves"]
[]
[null,{"v":319,"d":"319 "},null,"Cut off 38 x 114mm roof trusses in repairs","m",200,null,{"v":0,"d":"R0.00"}]
[]
[null,{"v":320,"d":"320 "},null,"Cut off 38 x 152mm roof trusses in repairs","m",200,null,{"v":0,"d":"R0.00"}]
[]
[null,{"v":321,"d":"321 "},null,"Cut off 50 x 76mm Purlins","m",200,null,{"v":0,"d":"R0.00"}]
[]
[{"$nulls":3},"Supply and installation of new sawn SAP Grade 6 timbers in repair works in roof space including all necessary propping, insertion of new roof timbers, all cutting, bolting, etc required in executing repair works "]
[]
[null,{"v":322,"d":"322 "},null,"38 x 114mm Bolted roof truss members in length not exceeding 2400mm","m",100,null,{"v":0,"d":"R0.00"}]
[]
[null,{"v":323,"d":"323 "},null,"38 x 114mm Bolted roof truss members in length exceeding 2400mm and not exceeding 3900mm","m",100,null,{"v":0,"d":"R0.00"}]
[]
[null,{"v":324,"d":"324 "},null,"38 x 152mm Bolted roof truss members in lengths not exceeding 2400mm","m",100,null,{"v":0,"d":"R0.00"}]
[]
[null,{"v":325,"d":"325 "},null,"38 x 152mm Bolted roof truss members in lengths exceeding 2400mm and not exceeding 3900mm","m",100,null,{"v":0,"d":"R0.00"}]
[]
[null,{"v":326,"d":"326 "},null,"50 x 76mm Purlins","m",100,null,{"v":0,"d":"R0.00"}]
[]
[{"$nulls":3},"OPENINGS THROUGH EXISTING WALLS ETC"]
[]
[{"$nulls":3},"Altering openings"]
[]
[]
[]
[]
[{"$nulls":7},{"$f":"SUM(H45:H843)","v":{"v":0,"d":"R0.00"}}]
[{"$nulls":3},"Section : Carried forward to sectional summary page"]

{"sheet":"S2 - B2 EarthWorks","index":4,"n_rows":76,"n_cols":9,"rows_kept":76,"merged":[[0,1,0,4]]}
[null,"CITY OF TSWANE - GROUP PROPERTY DEPARTMENT\nTENDER NO: GPM 03 – 2023/24\nTENDER:  MAINTENANCE "]
[]
[null,"ITEM NO","PAYMENT CLAUSE","LI","DESCRIPTION","UNIT","QTY","RATE","TENDER AMOUNT"]
[]
[{"$nulls":4},"SECTION 2 "]
[]
[{"$nulls":4},"BILL NO 2"]
[]
[{"$nulls":4},"EARTHWORKS (PROVISIONAL)"]
[]
[{"$nulls":4},"SUPPLEMENTARY PREAMBLES"]
[]
[{"$nulls":4},"Nature of ground"]
[]
[{"$nulls":4},"Use \"assumed to be\" if no trial holes, soils investigations, etc have been carried out - discuss with engineer. Use \"Trial holes indicate that\" where the ground has been investigated by means of trial holes"]
[]
[{"$nulls":4},"Nature of ground"]
[]
[{"$nulls":4},"A soils investigation has been carried out on site by the engineer and the report is annexed to these bills of quantities. Descriptions of excavations shall be deemed to include all ground conditions classifiable as \"earth\" described in the above report and where conditions of a more difficult character are indicated these are separately measured"]
[]
[{"$nulls":4},"Carting away of excavated material"]
[]
[{"$nulls":4},"Descriptions of carting away of excavated material shall be deemed to include loading excavated material onto trucks directly from the excavations or, alternatively, from stock piles situated on the building site"]
[]
[{"$nulls":4},"SITE CLEARANCE ETC"]
[]
[{"$nulls":4},"Site clearance"]
[]
[null,{"v":1,"d":"1 "},null,null,"Digging up and removing rubble, debris, vegetation, hedges, shrubs, and trees not exceeding 200mm girth, bush, etc ","m³",100,null,{"$f":"G29*H29","v":{"v":0,"d":"R0.00"}}]
[]
[null,{"v":2,"d":"2 "},null,null,"Stripping average 100mm thick layer of topsoil and stockpiling on site","m³",100,null,{"$f":"G31*H31","v":{"v":0,"d":"R0.00"}}]
[]
[]
[{"$nulls":4},"REMOVAL OF TREES ETC"]
[]
[{"$nulls":4},"Taking out and removing, grubbing up roots and filling in holes"]
[]
[null,{"v":3,"d":"3 "},null,null,"Tree stump exceeding 200mm and not exceeding 500mm girth ","No",300,null,{"v":0,"d":"R0.00"}]
[]
[null,{"v":4,"d":"4 "},null,null,"Tree stump exceeding 500mm and not exceeding 1.00m girth","No",300,null,{"v":0,"d":"R0.00"}]
[]
[{"$nulls":4},"Cutting down and removing, grubbing up roots and filling in holes"]
[]
[{"$nulls":4},"Hedge not exceeding 1000mm high","m",300,null,{"v":0,"d":"R0.00"}]
[]
[null,{"v":5,"d":"5 "},null,null,"Hedge exceeding 1000mm and not exceeding 2000mm high ","m",300,null,{"v":0,"d":"R0.00"}]
[]
[null,{"v":6,"d":"6 "},null,null,"Hedge exceeding 2000mm and not exceeding 3000mm high ","m",300,null,{"v":0,"d":"R0.00"}]
[]
[null,{"v":7,"d":"7 "},null,null,"Tree exceeding 200mm and not exceeding 500mm girth ","Unit",300,null,{"v":0,"d":"R0.00"}]
[]
[null,{"v":8,"d":"8 "},null,null,"Tree with two trunks, Unit exceeding 200mm and not  exceeding 500mm girth","Unit",300,null,{"v":0,"d":"R0.00"}]
[]
[null,{"v":9,"d":"9 "},null,null,"Tree exceeding 500mm and not exceeding 1000mm girth","Unit",300,null,{"v":0,"d":"R0.00"}]
[]
[null,{"v":10,"d":"10 "},null,null,"Tree exceeding 1000mm and not exceeding 1500mmm girth","Unit",300,null,{"v":0,"d":"R0.00"}]
{"$rows_empty":19}
[{"$nulls":4},"Section  B2 - Earthworks: Carried forward to sectional summary page",{"$nulls":3},{"$f":"SUM(I29:I71)","v":{"v":0,"d":"R0.00"}}]

{"sheet":"S2 - B3 Concrete etc)","index":5,"n_rows":155,"n_cols":9,"rows_kept":155,"merged":[[0,1,0,4]]}
[null,"CITY OF TSWANE - GROUP PROPERTY DEPARTMENT\nTENDER NO: GPM 03 – 2023/24\nTENDER:  MAINTENANCE "]
[]
[null,"ITEM NO","PAYMENT CLAUSE","LI","DESCRIPTION","UNIT","QTY","RATE","TENDER AMOUNT"]
[]
[{"$nulls":4},"SECTION 2 "]
[]
[{"$nulls":4},"BILL NO 3"]
[]
[{"$nulls":4},"CONCRETE, FORMWORK AND"]
[{"$nulls":4},"REINFORCEMENT"]
[]
[{"$nulls":4},"NOTE : Tenderers are advised to study the Model Preambles for Trades before pricing this bill\n"]
[]
[{"$nulls":4},"SUPPLEMENTARY PREAMBLES"]
[]
[{"$nulls":4},"Cost of tests"]
[]
[{"$nulls":4},"The costs of making, storing and testing of concrete test cubes as required under clause 7 \"Tests\" of SABS 1200 G shall include the cost of providing cube moulds necessary for the purpose, for testing costs and for submitting reports on the tests to the Representative/Agent. The testing shall be undertaken by an independent firm or institution nominated by the contractor to the approval of the Engineer. (Test cubes are measured separately)"]
[]
[{"$nulls":4},"Formwork"]
[]
[{"$nulls":4},"Descriptions of formwork shall be deemed to include use and waste only (except where described as \"left in\" or \"permanent\"), for fitting together in the required forms, wedging, plumbing and fixing to true angles and surfaces as necessary to ensure easy release during stripping and for re-conditioning as necessary before reuse "]
[]
[{"$nulls":4},"The vertical strutting shall be carried down to such construction as is sufficiently strong to afford the required support without damage and shall remain in position until the newly constructed work is able to support itself."]
[]
[{"$nulls":4},"Formwork to soffits of solid slabs, etc shall be deemed to be to slabs not exceeding 250mm thick unless otherwise described"]
[]
[{"$nulls":4},"UNREINFORCED CONCRETE"]
[]
[{"$nulls":4},"25MPa/19mm concrete"]
[]
[null,{"v":1,"d":"1 "},null,null,"Ramps","m3",100,null,{"$f":"G32*H32","v":{"v":0,"d":"R0.00"}}]
[]
[null,{"v":2,"d":"2 "},null,null,"Steps, urinal steps, cupboard platforms, etc","m3",100,null,{"$f":"G34*H34","v":{"v":0,"d":"R0.00"}}]
[]
[{"$nulls":4},"UNREINFORCED CONCRETE CAST AGAINST"]
[{"$nulls":4},"EXCAVATED SURFACES"]
[]
[{"$nulls":4},"25MPa/19mm concrete"]
[]
[null,{"v":3,"d":"3 "},null,null,"Surface blinding under footings and bases","m3",100,null,{"v":0,"d":"R0.00"}]
[]
[null,{"v":4,"d":"4 "},null,null,"Strip footings","m3",100,null,{"v":0,"d":"R0.00"}]
[]
[null,{"v":5,"d":"5 "},null,null,"Surface beds","m3",100,null,{"v":0,"d":"R0.00"}]
[]
[null,{"v":6,"d":"6 "},null,null,"Surface beds on waterproofing","m3",100,null,{"v":0,"d":"R0.00"}]
[]
[null,{"v":7,"d":"7 "},null,null,"Surface beds cast in panels","m3",100,null,{"v":0,"d":"R0.00"}]
[]
[null,{"v":8,"d":"8 "},null,null,"Surface beds cast in panels on waterproofing","m3",100,null,{"v":0,"d":"R0.00"}]
[]
[null,{"v":9,"d":"9 "},null,null,"Ramps","m3",100,null,{"v":0,"d":"R0.00"}]
[]
[{"$nulls":4},"REINFORCED CONCRETE"]
[]
[{"$nulls":4},"30MPa/19mm concrete"]
[]
[null,{"v":10,"d":"10 "},null,null,"Strip footings","m3",100,null,{"v":0,"d":"R0.00"}]
[]
[null,{"v":11,"d":"11 "},null,null,"Bases","m3",100,null,{"v":0,"d":"R0.00"}]
[]
[null,{"v":12,"d":"12 "},null,null,"Foundation beams","m3",100,null,{"v":0,"d":"R0.00"}]
[]
[null,{"v":13,"d":"13 "},null,null,"Surface beds on waterproofing","m3",100,null,{"v":0,"d":"R0.00"}]
[]
[null,{"v":14,"d":"14 "},null,null,"Surface beds cast in panels","m3",100,null,{"v":0,"d":"R0.00"}]
[]
[null,{"v":15,"d":"15 "},null,null,"Surface beds cast in panels on waterproofing","m3",100,null,{"v":0,"d":"R0.00"}]
[]
[{"$nulls":4},"REINFORCED CONCRETE CAST AGAINST"]
[{"$nulls":4},"EXCAVATED SURFACES"]
[]
[{"$nulls":4},"30MPa/19mm concrete"]
[]
[null,{"v":16,"d":"16 "},null,null,"Slabs including beams and inverted beams","m3",100,null,{"v":0,"d":"R0.00"}]
[]
[null,{"v":17,"d":"17 "},null,null,"Isolated beams","m3",100,null,{"v":0,"d":"R0.00"}]
[]
[null,{"v":18,"d":"18 "},null,null,"Stairs including landings, beams and inverted beams","m3",100,null,{"v":0,"d":"R0.00"}]
[]
[null,{"v":19,"d":"19 "},null,null,"Columns in foundations (Provisional)","m3",100,null,{"v":0,"d":"R0.00"}]
[]
[null,{"v":20,"d":"20 "},null,null,"Columns","m3",100,null,{"v":0,"d":"R0.00"}]
[]
[]
[{"$nulls":4},"TEST BLOCKS"]
[]
[null,{"v":21,"d":"21 "},null,null,"Making and testing 150 x 150 x 150mm concrete strength test cube (Provisional)","No",{"v":150,"d":"150 "},null,{"v":0,"d":"R0.00"}]
[]
[{"$nulls":4},"CONCRETE SUNDRIES"]
[]
[{"$nulls":4},"Finishing top surfaces of concrete smooth with a"]
[{"$nulls":4},"wood float"]
[]
[null,{"v":22,"d":"22 "},null,null,"Surface beds, slabs, etc","m2",{"v":1000,"d":"1,000 "},null,{"v":0,"d":"R0.00"}]
[]
[{"$nulls":4},"Finishing top surfaces of concrete smooth with a"]
[{"$nulls":4},"steel trowel"]
[]
[null,{"v":23,"d":"23 "},null,null,"Surface beds, slabs, etc","m2",{"v":1000,"d":"1,000 "},null,{"$f":"G101*H101","v":{"v":0,"d":"R0.00"}}]
[]
[{"$nulls":4},"Finishing top surfaces of concrete smooth with a"]
[{"$nulls":4},"power float"]
[]
[null,{"v":24,"d":"24 "},null,null,"Surface beds, slabs, etc","m2",{"v":1000,"d":"1,000 "},null,{"v":0,"d":"R0.00"}]
[]
[{"$nulls":4},"ROUGH FORMWORK (DEGREE OF ACCURACY"]
[{"$nulls":4},"III)"]
[]
[null,{"v":25,"d":"25 "},null,null,"Rough formwork to sides","m2",{"v":250,"d":"250 "},null,{"v":0,"d":"R0.00"}]
[]
[null,{"v":26,"d":"26 "},null,null,"Foundation beams (Provisional)","m2",{"v":250,"d":"250 "},null,{"v":0,"d":"R0.00"}]
[]
[null,{"v":27,"d":"27 "},null,null,"Rectangular columns","m2",{"v":350,"d":"350 "},null,{"v":0,"d":"R0.00"}]
[]
[null,{"v":28,"d":"28 "},null,null,"Beams","m2",{"v":250,"d":"250 "},null,{"v":0,"d":"R0.00"}]
[]
[{"$nulls":4},"Smooth formwork to circular columns"]
[]
[null,{"v":29,"d":"29 "},null,null,"500mm Diameter column 3000m high","m2",{"v":100,"d":"100 "},null,{"v":0,"d":"R0.00"}]
[]
[{"$nulls":4},"Rough formwork to soffits"]
[]
[null,{"v":30,"d":"30 "},null,null,"Slabs propped up not exceeding 1.5m high","m2",{"v":300,"d":"300 "},null,{"v":0,"d":"R0.00"}]
[]
[{"$nulls":4},"Rough formwork to sides and soffits"]
[]
[null,{"v":31,"d":"31 "},null,null,"Beams propped up not exceeding 1.5m high","m2",{"v":300,"d":"300 "},null,{"v":0,"d":"R0.00"}]
[]
[{"$nulls":4},"REINFORCEMENT"]
[]
[{"$nulls":4},"REINFORCEMENT (PROVISIONAL)"]
[]
[{"$nulls":4},"Mild steel reinforcement to structural concrete work"]
[]
[null,{"v":32,"d":"32 "},null,null,"40mm Diameter bars","t",{"v":15,"d":"15 "},null,{"v":0,"d":"R0.00"}]
[]
[null,{"v":33,"d":"33 "},null,null,"32mm Diameter bars","t",{"v":15,"d":"15 "},null,{"v":0,"d":"R0.00"}]
[]
[null,{"v":34,"d":"34 "},null,null,"25mm Diameter bars","t",{"v":15,"d":"15 "},null,{"v":0,"d":"R0.00"}]
[]
[null,{"v":35,"d":"35 "},null,null,"20mm Diameter bars","t",{"v":15,"d":"15 "},null,{"v":0,"d":"R0.00"}]
[]
[null,{"v":36,"d":"36 "},null,null,"16mm Diameter bars","t",{"v":15,"d":"15 "},null,{"v":0,"d":"R0.00"}]
[]
[null,{"v":37,"d":"37 "},null,null,"12mm Diameter bars","t",{"v":15,"d":"15 "},null,{"v":0,"d":"R0.00"}]
[]
[null,{"v":38,"d":"38 "},null,null,"10mm Diameter bars","t",{"v":15,"d":"15 "},null,{"v":0,"d":"R0.00"}]
[]
[null,{"v":39,"d":"39 "},null,null,"8mm Diameter bars","t",{"v":15,"d":"15 "},null,{"v":0,"d":"R0.00"}]
[]
[]
[]
[{"$nulls":4},"Section B3 -Concrete, Formwork and Reinforcement: Carried forward to sectional summary page",{"$nulls":3},{"$f":"SUM(I4:I153)","v":{"v":0,"d":"R0.00"}}]

{"sheet":"S2 - B4 Masonry","index":6,"n_rows":149,"n_cols":9,"rows_kept":149,"merged":[[0,1,0,4]]}
[null,"CITY OF TSWANE - GROUP PROPERTY DEPARTMENT\nTENDER NO: GPM 03 – 2023/24\nTENDER:  MAINTENANCE "]
[]
[null,"ITEM NO","PAYMENT CLAUSE","LI","DESCRIPTION","UNIT","QTY","RATE","TENDER AMOUNT"]
[]
[{"$nulls":4},"SECTION 2 "]
[]
[{"$nulls":4},"BILL NO 4"]
[]
[{"$nulls":4},"MASONRY"]
[]
[{"$nulls":4},"SUPPLEMENTARY PREAMBLES"]
[]
[{"$nulls":4},"BRICKWORK"]
[]
[{"$nulls":4},"Sizes in descriptions"]
[]
[{"$nulls":4},"Where sizes in descriptions are given in brick units, \"one brick\" shall represent the length and \"half brick\" the width of a brick"]
[]
[{"$nulls":4},"Hollow walls etc"]
[]
[{"$nulls":4},"Descriptions of hollow walls shall be deemed to include leaving every fifth perpend of the bottom course of the external skin open as a weep hole."]
[]
[{"$nulls":4},"Walls in two skins described as \"bagged and sealed\" shall be deemed to include having the outer face of the inner skin bagged with 1:6 cement and sand mixture and sealed with two coats \"Brixeal\" bitumen emulsion waterproofing coating."]
[]
[{"$nulls":4},"Face bricks"]
[]
[{"$nulls":4},"Bricks shall be ordered timeously to obtain uniformity in size and colour"]
[]
[{"$nulls":4},"Pointing"]
[]
[{"$nulls":4},"Descriptions of recessed pointing to fair face brickwork and face brickwork shall be deemed to include square recessed, hollow recessed, weathered pointing, etc"]
[]
[{"$nulls":4},"BLOCKWORK"]
[]
[{"$nulls":4},"Concrete masonry units"]
[]
[{"$nulls":4},"Blocks are to be either solid or hollow modular dense concrete masonry units having a compressive strength of 7 MPa"]
[]
[{"$nulls":4},"Wall ties for blockwork"]
[]
[{"$nulls":4},"Wall ties shall be polypropylene \"Permaties\" complying with BS 76377. Ties for hollow walls shall be of sufficient length to allow not less than 75mm of each end to be built into the blockwork. Ties are to be spaced at intervals of not more than 1m in the horizontal direction and not more than 400mm staggered in the vertical direction except at openings, vertical joints or ends of walls where they are to be placed vertically bove each other"]
[]
[{"$nulls":4},"Blockwork"]
[]
[{"$nulls":4},"Blockwork shall comply with SABS 0145 \"Concrete\nMasonry Construction\""]
[]
[{"$nulls":4},"Surfaces to be plastered shall have joints raked out to a depth of at least 10mm to provide a key. Cavities of hollow walls shall be kept free of mortar droppings or other undesirable matter. Every second perpend of the bottom course of the external skin of hollow walls shall be left open as a weep hole"]
[]
[{"$nulls":4},"Standard complementary blocks"]
[]
[{"$nulls":4},"Descriptions of blockwork shall be deemed to include standard complementary blocks such as corner, threequarter, half and quarter blocks required in the construction of corners, reveals, jambs, ends, etc to solid and hollow walls and for bonding as necessary"]
[]
[{"$nulls":4},"DECORATIVE BLOCKS"]
[]
[{"$nulls":4},"Blocks shall be of approved manufacture, sound, well burnt or cured and uniform and true in size, shape and colour"]
[]
[{"$nulls":4},"SAMPLES"]
[]
[{"$nulls":4},"Samples of all masonry building units, except those for walls described as \"load bearing\", shall consist of a minimum of 6 units. Samples of building units to be used in walls described as \"load bearing\" shall consist of 30 units from every 30 000 units delivered to site"]
[]
[{"$nulls":4},"FOUNDATIONS"]
[]
[{"$nulls":4},"Brickwork of NFP bricks in class II mortar"]
[]
[null,{"v":1,"d":"1 "},null,null,"Piers","m3",100,null,{"$f":"G65*H65","v":{"v":0,"d":"R0.00"}}]
[]
[null,{"$f":"+B65+1","v":{"v":2,"d":"2 "}},null,null,"Half brick walls","m2",500,null,{"$f":"G67*H67","v":{"v":0,"d":"R0.00"}}]
[]
[null,{"v":3,"d":"3 "},null,null,"Half brick walls in beamfilling","m2",500,null,{"v":0,"d":"R0.00"}]
[]
[null,{"v":4,"d":"4 "},null,null,"One brick walls","m2",500,null,{"v":0,"d":"R0.00"}]
[]
[{"$nulls":4},"SUPERSTRUCTURE"]
[]
[{"$nulls":4},"Brickwork of NFX bricks (14 MPa nominal compressive strength) in class I mortar"]
[]
[null,{"v":5,"d":"5 "},null,null,"Piers","m3",100,null,{"v":0,"d":"R0.00"}]
[]
[null,{"v":6,"d":"6 "},null,null,"Half brick walls","m2",1500,null,{"v":0,"d":"R0.00"}]
[]
[null,{"v":7,"d":"7 "},null,null,"Half brick walls circular on plan","m2",250,null,{"v":0,"d":"R0.00"}]
[]
[null,{"v":8,"d":"8 "},null,null,"Half brick walls against existing surfaces","m2",350,null,{"v":0,"d":"R0.00"}]
[]
[null,{"v":9,"d":"9 "},null,null,"Half brick walls against waterproofing","m2",350,null,{"v":0,"d":"R0.00"}]
[]
[null,{"v":10,"d":"10 "},null,null,"Half brick walls against water proofing circular on plan","m2",100,null,{"v":0,"d":"R0.00"}]
[]
[null,{"v":11,"d":"11 "},null,null,"Half brick walls in beamfilling","m2",250,null,{"v":0,"d":"R0.00"}]
[]
[null,{"v":12,"d":"12 "},null,null,"Half brick walls in beamfilling circular on plan","m2",150,null,{"v":0,"d":"R0.00"}]
[]
[null,{"v":13,"d":"13 "},null,null,"Onebrick wall","m2",1500,null,{"v":0,"d":"R0.00"}]
[]
[null,{"v":14,"d":"14 "},null,null,"One brick walls circular on plan","m2",250,null,{"v":0,"d":"R0.00"}]
[]
[null,{"v":15,"d":"15 "},null,null,"One brick walls against existing surfaces","m2",350,null,{"v":0,"d":"R0.00"}]
[]
[null,{"v":16,"d":"16 "},null,null,"One brick walls in beamfilling","m2",250,null,{"v":0,"d":"R0.00"}]
[]
[null,{"v":17,"d":"17 "},null,null,"One brick walls in beamfilling circular on plan","m2",150,null,{"v":0,"d":"R0.00"}]
[]
[null,{"v":18,"d":"18 "},null,null,"One and half brick walls","m2",500,null,{"v":0,"d":"R0.00"}]
[]
[null,{"v":19,"d":"19 "},null,null,"One and half brick walls circular on plan","m2",100,null,{"v":0,"d":"R0.00"}]
[]
[null,{"v":20,"d":"20 "},null,null,"One and half brick walls against existing surfaces","m2",100,null,{"v":0,"d":"R0.00"}]
[]
[null,{"v":21,"d":"21 "},null,null,"Brick-on-edge header course sill laid sloping and slighly projecting","m",500,null,{"v":0,"d":"R0.00"}]
[]
[{"$nulls":4},"BRICKWORK SUNDRIES"]
[]
[{"$nulls":4},"Joint forming material in movement joints"]
[]
[null,{"v":22,"d":"22 "},null,null,"10mm Bitumen impregnated soft board built in\nvertically between / through brick skins","m2",500,null,{"v":0,"d":"R0.00"}]
[]
[{"$nulls":4},"Brickwork reinforcement"]
[]
[null,{"v":23,"d":"23 "},null,null,"75mm Wide reinforcement built in horizontally","m",3200,null,{"v":0,"d":"R0.00"}]
[]
[null,{"v":24,"d":"24 "},null,null,"75mm Wide reinforcement built in horizontally circular on plan","m",950,null,{"v":0,"d":"R0.00"}]
[]
[null,{"v":25,"d":"25 "},null,null,"150mm Wide reinforcement built in horizontally","m",4850,null,{"v":0,"d":"R0.00"}]
[]
[null,{"v":26,"d":"26 "},null,null,"150mm Wide reinforcement built in horizontally circular on plan","m",1000,null,{"v":0,"d":"R0.00"}]
[]
[null,{"v":27,"d":"27 "},null,null,"230mm Wide reinforcement built in horizontally","m",500,null,{"v":0,"d":"R0.00"}]
[]
[{"$nulls":4},"Galvanised hoop iron cramps, ties, etc"]
[]
[null,{"v":28,"d":"28 "},null,null,"30 x 1,6mm Wall tie 500mm long with one end shot pinned to concrete and other end built into brickwork","no",300,null,{"$f":"G131*H131","v":{"v":0,"d":"R0.00"}}]
[]
[{"$nulls":4},"FACE BRICKWORK"]
[]
[{"$nulls":4},"Face bricks pointed with recessed horizontal and vertical joints to match existing (PC Sum R5 500.00/1000 delivered to site)"]
[]
[null,{"v":29,"d":"29 "},null,null,"Extra over brickwork for face brickwork","m2",1500,null,{"v":0,"d":"R0.00"}]
[]
[null,{"v":30,"d":"30 "},null,null,"Extra over brickwork for face brickwork circular on plan","m2",250,null,{"v":0,"d":"R0.00"}]
[]
[null,{"v":31,"d":"31 "},null,null,"Extra over brick-on-edge header course sill laid sloping and slighly projecting","m",100,null,{"v":0,"d":"R0.00"}]
[]
[null,{"v":32,"d":"32 "},null,null,"Extra over brick-on-edge header course lintel","m",100,null,{"v":0,"d":"R0.00"}]
[]
[null,{"v":33,"d":"33 "},null,null,"Cutting toothings and bonding new face brickwork to existing","m2",100,null,{"v":0,"d":"R0.00"}]
[]
[]
[]
[{"$nulls":4},"Section B4 - Masonry : Carried forward to sectional summary page",{"$nulls":3},{"$f":"SUM(I63:I146)","v":{"v":0,"d":"R0.00"}}]

{"sheet":"S2 - B5 Waterproofing","index":7,"n_rows":73,"n_cols":9,"rows_kept":73,"merged":[[0,1,0,4]]}
[null,"CITY OF TSWANE - GROUP PROPERTY DEPARTMENT\nTENDER NO: GPM 03 – 2023/24\nTENDER:  MAINTENANCE "]
[]
[null,"ITEM NO","PAYMENT CLAUSE","LI","DESCRIPTION","UNIT","QTY","RATE","TENDER AMOUNT"]
[]
[{"$nulls":4},"SECTION 2 "]
[]
[{"$nulls":4},"BILL NO 5"]
[]
[{"$nulls":4},"WATERPROOFING"]
[]
[{"$nulls":4},"SUPPLEMENTARY PREAMBLES"]
[]
[{"$nulls":4},"Waterproofing"]
[]
[{"$nulls":4},"Waterproofing of roofs, basements, etc shall be laid under a ten year guarantee. Waterproofing to roofs shall be laid to even falls to outlets etc with necessary ridges, hips and valleys. Descriptions of sheet or membrane waterproofing shall be deemed to include additional labour to turn-ups and turn-downs "]
[]
[{"$nulls":4},"DAMP-PROOFING OF WALLS AND FLOORS"]
[]
[{"$nulls":4},"One layer of 375 micron \"Consol Plastics Brikgrip\nDPC\" embossed damp proof course"]
[]
[null,{"v":1,"d":"1 "},null,null,"110mm In walls","m",500,null,{"$f":"G21*H21","v":{"v":0,"d":"R0.00"}}]
[]
[null,{"v":2,"d":"2 "},null,null,"230mm In walls","m",500,null,{"$f":"G23*H23","v":{"v":0,"d":"R0.00"}}]
[]
[{"$nulls":4},"One layer of 250 micron \"Consol Plastics Gunplas USB Green\" waterproof sheeting sealed at laps with \"Gunplas Pressure Sensitive Tape\""]
[]
[null,{"v":3,"d":"3 "},null,null,"Under surface beds, ramps, pavings, steps e.t.c","m2",600,null,{"v":0,"d":"R0.00"}]
[]
[{"$nulls":4},"WATERPROOFING TO ROOFS, BASEMENTS,"]
[{"$nulls":4},"ETC"]
[]
[{"$nulls":4},"Two layers 4mm torch type fully bonded waterproofing including turn-ups and turn-downs at edges well jointed to existing."]
[]
[null,{"v":4,"d":"4 "},null,null,"On flat roof slabs","m2",1500,null,{"v":0,"d":"R0.00"}]
[]
[null,{"v":5,"d":"5 "},null,null,"On walls","m2",100,null,{"v":0,"d":"R0.00"}]
[]
[null,{"v":6,"d":"6 "},null,null,"On bottoms and sides of ducts, channels, etc","m2",100,null,{"v":0,"d":"R0.00"}]
[]
[null,{"v":7,"d":"7 "},null,null,"On bottoms and sides of box gutters","m2",100,null,{"v":0,"d":"R0.00"}]
[]
[null,{"v":8,"d":"8 "},null,null,"On bottoms and sides of planter boxes","m2",100,null,{"v":0,"d":"R0.00"}]
[]
[null,{"v":9,"d":"9 "},null,null,"Flashing strip not exceeding 300mm girth at turnups including sealing top edge into groove with mastic","m",1000,null,{"v":0,"d":"R0.00"}]
[]
[{"$nulls":4},"PROTECTIVE STONE DRESSING"]
[]
[{"$nulls":4},"25mm Crushed stone dressing evenly spread with larger stones around outlets"]
[]
[null,{"v":10,"d":"10 "},null,null,"50mm Thick on waterproofing to flat roofs","m2",1000,null,{"v":0,"d":"R0.00"}]
[]
[{"$nulls":4},"20mm River stone pebble dressing evenly spread with larger stones around outlets"]
[]
[null,{"v":11,"d":"11 "},null,null,"50mm Thick on waterproofing to flat roofs","m2",1000,null,{"v":0,"d":"R0.00"}]
[]
[{"$nulls":4},"PROTECTIVE ROOFING PAINT"]
[]
[{"$nulls":4},"Two coats \"roof\" bituminous aluminium paint"]
[]
[null,{"v":12,"d":"12 "},null,null,"On waterproofing to roofs","m2",1000,null,{"v":0,"d":"R0.00"}]
[]
[null,{"v":13,"d":"13 "},null,null,"On waterproofing to box gutters","m2",1000,null,{"v":0,"d":"R0.00"}]
[]
[{"$nulls":4},"JOINT SEALANTS ETC"]
[]
[{"$nulls":4},"Thioflex 600 two-part grey polysulphide sealing compound including backing cord, bond breaker, primer, etc "]
[]
[null,{"v":14,"d":"14 "},null,null,"10 x 10mm in vertical/horizontal expansion joints in concrete work/brickwork","m",500,null,{"v":0,"d":"R0.00"}]
[]
[null,{"v":15,"d":"15 "},null,null,"10 x 10mm in vertical/horizontal expansion joints in concrete work/brickwork including raking out existing expansion joint filler as necessary","m",500,null,{"v":0,"d":"R0.00"}]
[]
[]
[{"$nulls":4},"Section B5 -Waterproofing: Carried forward to sectional summary page",{"$nulls":3},{"$f":"SUM(I20:I71)","v":{"v":0,"d":"R0.00"}}]

{"sheet":"S2 - B6 Roof Covering","index":8,"n_rows":102,"n_cols":8,"rows_kept":102,"merged":[[0,1,0,3]]}
[null,"CITY OF TSWANE - GROUP PROPERTY DEPARTMENT\nTENDER NO: GPM 03 – 2023/24\nTENDER:  MAINTENANCE "]
[]
[null,"ITEM NO","LI","DESCRIPTION","UNIT","QTY","RATE","TENDER AMOUNT"]
[]
[{"$nulls":3},"SECTION 2 "]
[]
[{"$nulls":3},"BILL NO 6"]
[]
[{"$nulls":3},"ROOF COVERING ETC"]
[]
[{"$nulls":3},"Sundries"]
[]
[{"$nulls":3},"Galvanised hoop iron cramps, ties, etc"]
[]
[null,{"v":1,"d":"1 "},null,"30 x 1,6mm Metal perforated strip roof tie 1500mm long with one end shot pinned to concrete work / brickwork and other end nailed around roof timber trusses","No",1000,null,{"$f":"F15*G15","v":{"v":0,"d":"R0.00"}}]
[]
[null,{"v":2,"d":"2 "},null,"1,6mm Truss hangers nailed to fasten timber trusses","No",1000,null,{"$f":"F17*G17","v":{"v":0,"d":"R0.00"}}]
[]
[null,{"v":3,"d":"3 "},null,"1,6mm Hurricane clips nailed to fasten timber trusses","No",1000,null,{"v":0,"d":"R0.00"}]
[]
[null,{"v":4,"d":"4 "},null,"150 x 100 x 1,6mm Fasteners nailed to fasten roof timber trusses at joints","No",1000,null,{"v":0,"d":"R0.00"}]
[]
[null,{"v":5,"d":"5 "},null,"10mm diameter bolt and nut","No",1000,null,{"v":0,"d":"R0.00"}]
[]
[{"$nulls":3},"TILES"]
[]
[{"$nulls":3},"330 x 420mm roof tiles to match existing concrete tiles laid on and including underlay of 150 micron \"Yellow polyethene\" plastic sheeting with 75mm lapped and sealed joints and nailed through underlay with non-corrosive tile nails and/or fixed with suitable non-corrosive clips as required nailed through underlay to 38 x 38mm sawn softwood battens at 300mm centres "]
[]
[null,{"v":6,"d":"6 "},null,"Roof covering with pitch not exceeding 25 degrees","m2",1000,null,{"v":0,"d":"R0.00"}]
[]
[null,{"v":7,"d":"7 "},null,"Ridge tiles to match roofing tiles bedded and pointed in 1:3 cement mortar tinted to match tile colour","m",1000,null,{"v":0,"d":"R0.00"}]
[]
[null,{"v":8,"d":"8 "},null,"Hip tiles to match roofing tiles bedded and pointed in 1:3 cement mortar tinted to match tile colour ","m",1000,null,{"v":0,"d":"R0.00"}]
[]
[null,{"v":9,"d":"9 "},null,"Verge capping tiles to match roofing tiles fixed with non-corrosive fixing accessories","m",1000,null,{"v":0,"d":"R0.00"}]
[]
[{"$nulls":3},"TILE SLATES"]
[]
[{"$nulls":3},"Roof Tile Slates to match existing laid on and including underlay of 150 micron \"Yellow polyethene\" plastic sheeting with 75mm lapped and sealed joints and nailed through underlay with non-corrosive slate nails and/or fixed with suitable non-corrosive clips as required nailed through underlay to 38 x 38mm sawn softwood battens at 300mm centres "]
[]
[null,{"v":10,"d":"10 "},null,"Roof covering with pitch not exceeding 25 degrees","m2",1000,null,{"v":0,"d":"R0.00"}]
[]
[null,{"v":11,"d":"11 "},null,"Ridge slates to match roofing slates bedded and pointed in 1:3 cement mortar tinted to match slate colour","m",1000,null,{"v":0,"d":"R0.00"}]
[]
[null,{"v":12,"d":"12 "},null,"Hip slates to match roofing slates bedded and pointed in 1:3 cement mortar tinted to match slate colour ","m",1000,null,{"v":0,"d":"R0.00"}]
[]
[null,{"v":13,"d":"13 "},null,"Verge capping slates to match roofing slates fixed with non-corrosive fixing accessories","m",1000,null,{"v":0,"d":"R0.00"}]
[]
[{"$nulls":3},"THATCH"]
[]
[{"$nulls":3},"Thatch to match existing laid on and including underlay of 150 micron \"Yellow polyethene\" plastic sheeting with 75mm lapped and sealed joints including all accessories"]
[]
[null,{"v":14,"d":"14 "},null,"Roof covering with pitch not exceeding 25 degrees","m2",100,null,{"v":0,"d":"R0.00"}]
[]
[]
[{"$nulls":3},"PROFILED METAL SHEETING AND"]
[{"$nulls":3},"ACCESSORIES"]
[]
[{"$nulls":3},"0,6mm Corrugated Z275 spelter galvanised sheet steel or similar to match existing profile fixed to timber/steel purlins or rails "]
[]
[null,{"v":15,"d":"15 "},null,"Roof covering with pitch not exceeding 25 degrees","m2",1000,null,{"v":0,"d":"R0.00"}]
[]
[null,{"v":16,"d":"16 "},null,"Side cladding","m2",500,null,{"v":0,"d":"R0.00"}]
[]
[null,{"v":17,"d":"17 "},null,"Ridge capping 450mm girth","m",1000,null,{"v":0,"d":"R0.00"}]
[]
[null,{"v":18,"d":"18 "},null,"Side wall flashing 450mm girth","m",1000,null,{"v":0,"d":"R0.00"}]
[]
[null,{"v":19,"d":"19 "},null,"Head wall flashing 450mm girth","m",1000,null,{"v":0,"d":"R0.00"}]
[]
[null,{"v":20,"d":"20 "},null,"Gable trim 250mm girth","m",1000,null,{"v":0,"d":"R0.00"}]
[]
[null,{"v":21,"d":"21 "},null,"Apex flashing 450mm girth","m",1000,null,{"v":0,"d":"R0.00"}]
[]
[{"$nulls":3},"0,6mm roof sheets to match existing Z275 spelter galvanised ribbed sheet steel in single lengths fixed to timber/steel purlins or rails. "]
[]
[null,{"v":22,"d":"22 "},null,"Roof covering with pitch not exceeding 25 degrees","m2",1000,null,{"v":0,"d":"R0.00"}]
[]
[null,{"v":23,"d":"23 "},null,"Side cladding","m2",500,null,{"v":0,"d":"R0.00"}]
[]
[null,{"v":24,"d":"24 "},null,"Ridge capping 450mm girth","m",1000,null,{"$f":"F81*G81","v":{"v":0,"d":"R0.00"}}]
[]
[null,{"v":25,"d":"25 "},null,"Side wall flashing 450mm girth","m",1000,null,{"v":0,"d":"R0.00"}]
[]
[null,{"v":26,"d":"26 "},null,"Head wall flashing 450mm girth","m",1000,null,{"v":0,"d":"R0.00"}]
[]
[null,{"v":27,"d":"27 "},null,"Gable trim 250mm girth","m",1000,null,{"v":0,"d":"R0.00"}]
[]
[null,{"v":28,"d":"28 "},null,"Apex flashing 450mm girth","m",1000,null,{"v":0,"d":"R0.00"}]
[]
[{"$nulls":3},"ROOF AND WALL INSULATION"]
[]
[{"$nulls":3},"\"Sisalation\" 420 heavy industrial grade aluminium foil based insulation"]
[]
[null,{"v":29,"d":"29 "},null,"Insulation ladi taut over purlins (at approximately 600mm centres) and fixed concurrent with roof covering including galvanised steel straining wires","m2",1000,null,{"v":0,"d":"R0.00"}]
[]
[]
[]
[]
[]
[]
[{"$nulls":3},"Section B6 - Roof Covering: Carried forward to sectional summary page",{"$nulls":3},{"$f":"SUM(H15:H100)","v":{"v":0,"d":"R0.00"}}]

{"sheet":"S2 - B7 Carpentry & Joinery)","index":9,"n_rows":106,"n_cols":8,"rows_kept":106,"merged":[[0,1,0,3]]}
[null,"CITY OF TSWANE - GROUP PROPERTY DEPARTMENT\nTENDER NO: GPM 03 – 2023/24\nTENDER:  MAINTENANCE "]
[]
[null,"ITEM NO","LI","DESCRIPTION","UNIT","QTY","RATE","TENDER AMOUNT"]
[]
[{"$nulls":3},"SECTION 2 "]
[]
[{"$nulls":3},"BILL NO 7"]
[]
[{"$nulls":3},"CARPENTRY AND JOINERY"]
[]
[{"$nulls":3},"SUPPLEMENTARY PREAMBLES"]
[]
[{"$nulls":3},"Particle board:"]
[]
[{"$nulls":3},"Particle board shall comply with the following\nspecifications:"]
[]
[{"$nulls":3},"a) SABS 1300 Particle board: exterior and flooring type"]
[]
[{"$nulls":3},"b) SABS 1301 Particle board: interior type"]
[]
[{"$nulls":3},"Joinery:"]
[]
[{"$nulls":3},"Descriptions of frames shall be deemed to include frames, transomes, mullions, rails, etc"]
[]
[{"$nulls":3},"Descriptions of hardwood joinery shall be deemed to include pelleting of bolt holes"]
[]
[{"$nulls":3},"Fixing"]
[]
[{"$nulls":3},"Items described as \"nailed\" shall be deemed to be fixed with hardened steel nails or shot pins to brickwork or concrete"]
[]
[{"$nulls":3},"Decorative laminate finish:"]
[]
[{"$nulls":3},"Laminate finish shall be glued under pressure. Edge strips shall be butt jointed at junctions with adjacent similar finish"]
[]
[{"$nulls":3},"EAVES , VERGES , ETC"]
[]
[{"$nulls":3},"Pressed nutec-cement"]
[]
[null,{"v":1,"d":"1 "},null,"12 x 225mm Fascias and barge boards including galvanised steel H-profile jointing strips","m",1000,null,{"$f":"F39*G39","v":{"v":0,"d":"R0.00"}}]
[{"$nulls":3},"3000 x 80 x 200mm Fibre cement barge boards","m",1000,null,{"$f":"F40*G40","v":{"v":0,"d":"R0.00"}}]
[]
[{"$nulls":3},"SKIRTINGS"]
[]
[{"$nulls":3},"Wrought meranti"]
[]
[null,{"v":2,"d":"2 "},null,"19 x 76mm Skirting including 19mm quadrant bead nailed","m",1000,null,{"v":0,"d":"R0.00"}]
[]
[{"$nulls":3},"DOORS ETC"]
[]
[{"$nulls":3},"Wrought meranti"]
[]
[null,{"v":3,"d":"3 "},null,"Meranti framed batten external single door (PC R2200.00/No)","No",200,null,{"v":0,"d":"R0.00"}]
[]
[null,{"v":4,"d":"4 "},null,"Meranti framed batten external double door (PC R4250.00/No)","No",200,null,{"v":0,"d":"R0.00"}]
[]
[null,{"v":5,"d":"5 "},null,"Approved timber framed glazed single door (PCR4650.00/No)","No",200,null,{"v":0,"d":"R0.00"}]
[]
[null,{"v":6,"d":"6 "},null,"Approved timber framed glazed double door (PC R7250.00/No)","No",200,null,{"v":0,"d":"R0.00"}]
[]
[null,{"v":7,"d":"7 "},null,"Approved solid core flush single door (PCR2650.00/No)","No",200,null,{"v":0,"d":"R0.00"}]
[]
[null,{"v":8,"d":"8 "},null,"Approved solid core flush double door (PCR4850.00/No)","No",200,null,{"v":0,"d":"R0.00"}]
[]
[null,{"v":9,"d":"9 "},null,"Approved semi-solid core flush single door (PC R1650.00/No)","No",200,null,{"v":0,"d":"R0.00"}]
[]
[null,{"v":10,"d":"10 "},null,"Approved semi-solid core flush double door (PCR3800.00/No)","No",200,null,{"v":0,"d":"R0.00"}]
[]
[null,{"v":11,"d":"11 "},null,"Approved Hollow core flush single door (PCR650.00/No)","No",200,null,{"v":0,"d":"R0.00"}]
[]
[null,{"v":12,"d":"12 "},null,"Approved hollow core flush double door (PCR1550.00/No)","No",200,null,{"v":0,"d":"R0.00"}]
[]
[{"$nulls":3},"FITTINGS"]
[]
[{"$nulls":3},"General"]
[]
[{"$nulls":3},"The following cupboard fittings have been measured as complete units i.e. the components of the units have not been separately measured. The descriptions, therefore, of such units shall be deemed to include all components, assembling, housing, notching, glueing, blocking, planting on and screwing with countersunk screws, edge strips, decorative plastic finish, glass, ironmongery, metalwork, paint or varnish finishes, etc (refer Architect's drawings as attached to the back of these Bills of Quantities) "]
[]
[{"$nulls":3},"ROOFS ETC"]
[]
[{"$nulls":3},"Plate nailed timber roof truss construction"]
[]
[null,{"v":13,"d":"13 "},null,"Truss construction to double pitched roof with hipped or gable ends and 2100mm high extreme including wall plates, trusses, jack rafters, permanent bracing including 38 x 38mm purlins/battens at not exceeding 300mm centres for concrete roof tile covering ","m2",100,null,{"v":0,"d":"R0.00"}]
[]
[null,{"v":14,"d":"14 "},null,"Truss construction to double pitched roof with hipped or gable ends and 2100mm high extreme including wall plates, trusses, jack rafters, permanent bracing including 38 x 52mm purlins/battens at not exceeding 900mm centres for corrugated roofing sheets","m2",100,null,{"v":0,"d":"R0.00"}]
[]
[null,{"v":15,"d":"15 "},null,"Truss construction to double pitched roof with hipped or gable ends and 2100mm high extreme including wall plates, trusses, jack rafters, permanent bracing including 38 x 52mm purlins/battens at not exceeding 1500mm centres for IBR roofing sheets","m2",100,null,{"v":0,"d":"R0.00"}]
[]
[{"$nulls":3},"Sawn softwood"]
[]
[null,{"v":16,"d":"16 "},null,"38 x 76mm Wall plates","m",250,null,{"v":0,"d":"R0.00"}]
[]
[null,{"v":17,"d":"17 "},null,"38 x 114mm Wall plates","m",250,null,{"v":0,"d":"R0.00"}]
[]
[{"$nulls":3},"Sawn softwood grade 4"]
[]
[null,{"v":18,"d":"18 "},null,"38 x 76mm Runners (Provisional)","m",250,null,{"v":0,"d":"R0.00"}]
[]
[null,{"v":19,"d":"19 "},null,"50 x 76mm Runners (Provisional)","m",250,null,{"v":0,"d":"R0.00"}]
[]
[null,{"v":20,"d":"20 "},null,"38 x 114mm Cross bracing (Provisional)","m",250,null,{"v":0,"d":"R0.00"}]
[]
[null,{"v":21,"d":"21 "},null,"50 x 152mm Geyser bearers on truss tie beams","m",250,null,{"v":0,"d":"R0.00"}]
[]
[]
[]
[{"$nulls":3},"Section B7 -Carpentry & Joinery: Carried forward to sectional summary page",{"$nulls":3},{"$f":"SUM(H39:H103)","v":{"v":0,"d":"R0.00"}}]

{"sheet":"S2 - B8 Ceilings etc","index":10,"n_rows":110,"n_cols":8,"rows_kept":110,"merged":[[0,1,0,3]]}
[null,"CITY OF TSWANE - GROUP PROPERTY DEPARTMENT\nTENDER NO: GPM 03 – 2023/24\nTENDER:  MAINTENANCE "]
[]
[null,"ITEM NO","LI","DESCRIPTION","UNIT","QTY","RATE","TENDER AMOUNT"]
[]
[{"$nulls":3},"SECTION 2 "]
[]
[{"$nulls":3},"BILL NO 8"]
[]
[{"$nulls":3},"CEILINGS, PARTITIONS AND ACCESS FLOORING"]
[]
[{"$nulls":3},"SUPPLEMENTARY PREAMBLES"]
[]
[{"$nulls":3},"Descriptions:"]
[]
[{"$nulls":3},"The Contractor must read each description throughout this bill of quantities in conjunction with the relevant specifications and in the context of the obligations, requirements and specifications stated in the descriptions, the Model Preambles for Trades (2008 edition) and any Supplementary Preambles to the Model Preambles forming part of these Bills of Quantities."]
[]
[{"$nulls":3},"No claim arising from brevity of description of items fully described in the said Model Preambles for Trades and any Supplementary Preambles to the Model Preambles will be granted."]
[]
[{"$nulls":3},"SUPPLEMENTARY PREAMBLES"]
[]
[{"$nulls":3},"Fixing"]
[]
[{"$nulls":3},"Items described as \"nailed\" shall be deemed to be fixed with hardened steel nails or pins, or to be shot-pinned, to brickwork or concrete"]
[]
[{"$nulls":3},"Items described as \"plugged\" shall be deemed to include screwing to fibre, plastic or metal plugs at not exceeding 500mm centres, and where described as \"bolted\", the bolts have been given elsewhere"]
[]
[{"$nulls":3},"Ceilings"]
[]
[{"$nulls":3},"Unless otherwise described ceilings shall be deemed to be horizontal"]
[]
[{"$nulls":3},"Bulkheads"]
[]
[{"$nulls":3},"Unless otherwise described bulkheads shall be deemed to be horizontal along the length"]
[]
[{"$nulls":3},"Steel components"]
[]
[{"$nulls":3},"All steel components for ceilings, partitions, etc. are to be galvanised in accordance with SANS 121"]
[]
[{"$nulls":3},"CEILINGS, ETC"]
[]
[{"$nulls":3},"Insulation"]
[]
[null,{"v":1,"d":"1 "},null,"75mm Insulation closely fitted and laid on top of brandering between roof timbers, etc.","m²",100,null,{"$f":"F43*G43","v":{"v":0,"d":"R0.00"}}]
[]
[{"$nulls":3},"6,4mm gypsum plasterboard with H-type pressed steel jointing strips"]
[]
[null,{"v":2,"d":"2 "},null,"Ceilings including 38 x 38mm sawn softwood brandering at 400mm centres","m2",1000,null,{"$f":"F47*G47","v":{"v":0,"d":"R0.00"}}]
[]
[null,{"v":3,"d":"3 "},null,"Sloping ceilings including 38 x 38mm sawn softwood brandering at 400mm centres","m2",100,null,{"v":0,"d":"R0.00"}]
[]
[null,{"v":4,"d":"4 "},null,"Extra over ceiling for 650 x 650mm trap door of 38 x 50mm wrought softwood rebated framing with one 38 x 50mm sawn softwood cross brander covered with ceiling board and fitted flush in opening","no",100,null,{"v":0,"d":"R0.00"}]
[]
[{"$nulls":3},"SUSPENDED CEILINGS"]
[]
[{"$nulls":3},"600 x 600 x 3mm Pre-painted acoustic panels on exposed suspension grid system including hangers, necessary hold-down clips and wedges, etc."]
[]
[null,{"v":5,"d":"5 "},null,"Ceilings suspended not exceeding 1m below concrete soffits, to match existing","m²",100,null,{"v":0,"d":"R0.00"}]
[]
[{"$nulls":3},"600 x 1200 x 3mm Pre-painted acoustic panels on exposed suspension grid system including hangers, necessary hold-down clips and wedges, etc."]
[]
[null,{"v":6,"d":"6 "},null,"Ceilings suspended not exceeding 1m below concrete soffits, to match existing","m²",100,null,{"v":0,"d":"R0.00"}]
[]
[null,{"v":7,"d":"7 "},null,"Extra over ceiling for 600 x 600mm trap door with wrought softwood rebated  framing with one sawn softwood cross brander covered with ceiling board and fitted flush in opening","No",100,null,{"v":0,"d":"R0.00"}]
[]
[{"$nulls":3},"Gypsum plasterboard cornices"]
[]
[{"$nulls":3},"Cornices, perimeter trims, etc. to suspended ceilings"]
[]
[null,{"v":8,"d":"8 "},null,"Pre-painted wall angles, plugged","m",120,null,{"v":0,"d":"R0.00"}]
[]
[{"$nulls":3},"PARTITIONS ETC"]
[]
[{"$nulls":3},"\"Dry wall\" partition systems"]
[]
[{"$nulls":3},"Drywall partitioning shall comprise steel studding formed of 63.5mm top and bottom tracks with vertical studs at maximum 450mm centres, friction fitted or pop-riveted to the top and bottom tracks with similar additional vertical studs as necessary at abutments, ends, etc and covered as described with wallboard screed to studding with \"Drywall\" screws at maximum 220mm centres, Boards are to be butt jointed and finished with \"Rhino\" tape and \"Readymix D\" jointing compound all in accordance with the manufacture's instructions. Intersections and abutments are measured separately and descriptions shall be deemed to include any additional studs, corner beads, jointing compound, tape, etc"]
[]
[{"$nulls":3},"Note: Wall paper and / or paint and varnish finishes are measured elsewhere"]
[]
[null,{"v":9,"d":"9 "},null,"\"Dry wall system\" steel stud partitioning with 2 x 12,7mm \"Rhyno Plasterboard\" on each side","m2",1000,null,{"v":0,"d":"R0.00"}]
[]
[null,{"v":10,"d":"10 "},null,"Extra over partition 3.67m high for vertical abutment","No",50,null,{"v":0,"d":"R0.00"}]
[]
[{"$nulls":3},"Doors"]
[]
[null,{"v":11,"d":"11 "},null,"Extra over partition for 8.5mm glass for framed door 860 x 2092mm high with hung to and including hinges and preparation for lock and handle (measured elsewhere) all as per manufactures specification","No",50,null,{"v":0,"d":"R0.00"}]
[]
[{"$nulls":3},"Insulation"]
[]
[null,{"v":12,"d":"12 "},null,"50mm Thick \"Mineral wool\" insulation blanket in cavity of partitioning","m2",600,null,{"v":0,"d":"R0.00"}]
[]
[{"$nulls":3},"WALL PROTECTION"]
[]
[{"$nulls":3},"SABS Approved bump rails"]
[]
[null,{"v":13,"d":"13 "},null,"WG 200 Vinyl coated wall mounted absorbing protection system, mounted using continuous retainers, bump rail width 200mm and 35mm depth. Colour to Architect and Clients approval, to be installed strictly in accordance with manufacturer's recommendations. All to be SABS approved.","m",200,null,{"v":0,"d":"R0.00"}]
[]
[null,{"v":14,"d":"14 "},null,"WG 200 Vinyl coated wall mounted absorbing protection system bottom rail, mounted using continuous retainers, bump rail width 200mm and 35mm depth. Colour to Architect and Clients approval, to be installed strictly in accordance with manufacturer's recommendations. All to be SABS approved.","m",200,null,{"v":0,"d":"R0.00"}]
[]
[null,{"v":15,"d":"15 "},null,"32mm Diameter x 2mm thick Tubular stainless steel bump rail, grade 304 stainless steel (Grade 316 external) fully seam welded joints. Tube welded to stanchions fixing plates with screws / bolts of same grade. Flanges to be 6mm thick ( to be installed strictly in accordance with manufacturer's recommendations.","m",200,null,{"v":0,"d":"R0.00"}]
[]
[{"$nulls":3},"Gypsum plasterboard cornices"]
[]
[null,{"v":16,"d":"16 "},null,"75mm Coved cornices","m",1000,null,{"v":0,"d":"R0.00"}]
[]
[]
[]
[]
[]
[]
[{"$nulls":3},"Section B8 - Ceilings, Partitions and Access Flooring: Carried forward to sectional summary page",{"$nulls":3},{"$f":"SUM(H43:H109)","v":{"v":0,"d":"R0.00"}}]

{"sheet":"S2 - B9 Floor Covering","index":11,"n_rows":44,"n_cols":8,"rows_kept":44,"merged":[[0,1,0,3]]}
[null,"CITY OF TSWANE - GROUP PROPERTY DEPARTMENT\nTENDER NO: GPM 03 – 2023/24\nTENDER:  MAINTENANCE "]
[]
[null,"ITEM NO","LI","DESCRIPTION","UNIT","QTY","RATE","TENDER AMOUNT"]
[]
[{"$nulls":3},"SECTION 2 "]
[]
[{"$nulls":3},"BILL NO 9"]
[]
[{"$nulls":3},"FLOOR COVERINGS, PLASTIC LININGS, ETC"]
[]
[{"$nulls":3},"The Contractor must read each description throughout this bill of quantities in conjunction with the relevant specifications and in the context of the obligations, requirements and specifications stated in the descriptions, the Model Preambles for Trades (2008 edition) and any Supplementary Preambles to the Model Preambles forming part of these Bills of Quantities."]
[]
[{"$nulls":3},"No claim arising from brevity of description of items fully described in the said Model Preambles for Trades and Supplementary Preambles to the Model Preambles will be granted."]
[]
[{"$nulls":3},"FLOOR COVERINGS"]
[]
[{"$nulls":3},"Carpets"]
[]
[null,{"v":1,"d":"1 "},null,"On floors, to match existing","m²",{"v":1000,"d":"1,000 "},null,{"$f":"F19*G19","v":{"v":0,"d":"R0.00"}}]
[]
[{"$nulls":3},"2,5mm vinyl sheeting to match\nexisting fully flexible vinyl sheeting (with welded\njoints)"]
[]
[null,{"v":2,"d":"2 "},null,"New Vinyl sheeting to match existing where damaged sections of Vinyl floor sheetings had been removed and well bonded to existing ","m2",{"v":1000,"d":"1,000 "},null,{"$f":"F23*G23","v":{"v":0,"d":"R0.00"}}]
[]
[null,{"v":3,"d":"3 "},null,"New Vinyl sheeting","m2",{"v":1000,"d":"1,000 "},null,{"v":0,"d":"R0.00"}]
[]
[{"$nulls":3},"300 x 300 x 2.0mm  or similar to\nmatch existing semi-flexible vinyl tiles"]
[]
[null,{"v":4,"d":"4 "},null,"New Vinyl sheeting to match existing where damaged sections of Vinyl floor sheetings had been removed and well bonded to existing ","m2",{"v":1000,"d":"1,000 "},null,{"v":0,"d":"R0.00"}]
[]
[null,{"v":5,"d":"5 "},null,"New Vinyl sheeting","m2",{"v":1000,"d":"1,000 "},null,{"v":0,"d":"R0.00"}]
[]
[{"$nulls":3},"POLISH, SEALERS, ETC"]
[]
[null,{"v":6,"d":"6 "},null,"Three coats wax polish on vinyl flooring","m2",{"v":1000,"d":"1,000 "},null,{"v":0,"d":"R0.00"}]
{"$rows_empty":8}
[{"$nulls":3},"Section B9 - Floor Covering: Carried forward to sectional summary page",{"$nulls":3},{"$f":"SUM(H14:H36)","v":{"v":0,"d":"R0.00"}}]

{"sheet":"S2 - B10 Ironmongery","index":12,"n_rows":231,"n_cols":9,"rows_kept":231,"merged":[[0,1,0,4]]}
[null,"CITY OF TSWANE - GROUP PROPERTY DEPARTMENT\nTENDER NO: GPM 03 – 2023/24\nTENDER:  MAINTENANCE "]
[]
[null,"ITEM NO","PAYMENT CLAUSE","LI","DESCRIPTION","UNIT","QTY","RATE","TENDER AMOUNT"]
[]
[{"$nulls":4},"SECTION 2 "]
[]
[{"$nulls":4},"BILL NO 10"]
[]
[{"$nulls":4},"IRONMONGERY"]
[]
[{"$nulls":4},"The Contractor must read each description throughout this bill of quantities in conjunction with the relevant specifications and in the context of the obligations, requirements and specifications stated in the descriptions, the Model Preambles for Trades (2008 edition) and any Supplementary Preambles to the Model Preambles forming part of these Bills of Quantities."]
[]
[{"$nulls":4},"No claim arising from brevity of description of items fully described in the said Model Preambles for Trades and Supplementary Preambles to the Model Preambles will be granted."]
[]
[{"$nulls":4},"SUPPLEMENTARY PREAMBLES"]
[]
[{"$nulls":4},"Items, materials or methods to be used specified by trade names or catalogue numbers are only an indication of the quality required. Items, materials or other approved may be used with prior approval from the Architect."]
[]
[{"$nulls":4},"Proprietary items"]
[]
[{"$nulls":4},"Where applicable the manufacturers' names or product catalogue titles are given in sub-headings preceding the items  Prices are to be based on the specific products/articles specified.  If tenderers wish to offer alternative products/articles for certain items, these items are to be clearly marked and the alternative specification given with supporting brochures etc. clarifying the features of the products/articles offered  On request returnable samples are to be provided to the supervisor for consideration"]
[]
[{"$nulls":4},"Finishes to ironmongery"]
[]
[{"$nulls":4},"Where applicable finishes to ironmongery are indicated by suffixes in accordance with the following list:"]
[]
[{"$nulls":4},"BS \tSatin bronze lacquered CH \tChromium plated SC \tSatin chromium plated AN \tAnodised natural AB \tAnodised bronze ABL \tAnodised black PB \tPolished brass PT \tEpoxy coated"]
[]
[{"$nulls":4},"IRONMONGERY"]
[]
[{"$nulls":4},"HINGES, BOLTS, ETC"]
[]
[{"$nulls":4},"New Ironmongery fittings, supply and install to be similar and or approved"]
[]
[null,{"v":1,"d":"1 "},null,null,"Door hinges","No",{"v":100,"d":"100 "},null,{"$f":"G35*H35","v":{"v":0,"d":"R0.00"}}]
[]
[null,{"v":2,"d":"2 "},null,null,"Single action floor spring hinges","No",{"v":100,"d":"100 "},null,{"$f":"G37*H37","v":{"v":0,"d":"R0.00"}}]
[]
[null,{"v":3,"d":"3 "},null,null,"Double action floor spring hinges","No",{"v":100,"d":"100 "},null,{"v":0,"d":"R0.00"}]
[]
[null,{"v":4,"d":"4 "},null,null,"Barrel bolt with keep fixed to metal/concrete","No",{"v":100,"d":"100 "},null,{"v":0,"d":"R0.00"}]
[]
[null,{"v":5,"d":"5 "},null,null,"Flush bolt with keep fixed to metal/concrete","No",{"v":100,"d":"100 "},null,{"v":0,"d":"R0.00"}]
[]
[null,{"v":6,"d":"6 "},null,null,"WC indicator bolt with keep fixed to metal/concrete","No",{"v":100,"d":"100 "},null,{"v":0,"d":"R0.00"}]
[]
[null,{"v":7,"d":"7 "},null,null,"Panic bolt for single door with one keep let into concrete","No",{"v":100,"d":"100 "},null,{"v":0,"d":"R0.00"}]
[]
[null,{"v":8,"d":"8 "},null,null,"Panic bolt for double door with one keep let into concrete","No",{"v":100,"d":"100 "},null,{"v":0,"d":"R0.00"}]
[]
[{"$nulls":4},"CATCHES, CABIN HOOKS, ETC"]
[]
[{"$nulls":4},"New Ironmongery fittings, supply and install to be similar and or approved"]
[]
[null,{"v":9,"d":"9 "},null,null,"Ball catch","No",{"v":100,"d":"100 "},null,{"v":0,"d":"R0.00"}]
[]
[null,{"v":10,"d":"10 "},null,null,"Single roller catch","No",{"v":100,"d":"100 "},null,{"v":0,"d":"R0.00"}]
[]
[null,{"v":11,"d":"11 "},null,null,"Double roller catch","No",{"v":100,"d":"100 "},null,{"v":0,"d":"R0.00"}]
[]
[null,{"v":12,"d":"12 "},null,null,"Fanlight catch","No",{"v":100,"d":"100 "},null,{"v":0,"d":"R0.00"}]
[]
[null,{"v":13,"d":"13 "},null,null,"Fanlight stay","No",{"v":100,"d":"100 "},null,{"v":0,"d":"R0.00"}]
[]
[null,{"v":14,"d":"14 "},null,null,"Fanlight friction sliding arm","No",{"v":100,"d":"100 "},null,{"v":0,"d":"R0.00"}]
[]
[null,{"v":15,"d":"15 "},null,null,"Fanlight opener with cord and cleat","No",{"v":100,"d":"100 "},null,{"v":0,"d":"R0.00"}]
[]
[null,{"v":16,"d":"16 "},null,null,"Cabin hook and eye","No",{"v":100,"d":"100 "},null,{"v":0,"d":"R0.00"}]
[]
[{"$nulls":4},"LOCKS"]
[]
[{"$nulls":4},"New Ironmongery fittings, supply and install to be"]
[{"$nulls":4},"similar and or approved"]
[]
[null,{"v":17,"d":"17 "},null,null,"Padlock","No",{"v":500,"d":"500 "},null,{"v":0,"d":"R0.00"}]
[]
[null,{"v":18,"d":"18 "},null,null,"Night latch","No",{"v":500,"d":"500 "},null,{"v":0,"d":"R0.00"}]
[]
[null,{"v":19,"d":"19 "},null,null,"Bathroom lockset","No",{"v":500,"d":"500 "},null,{"v":0,"d":"R0.00"}]
[]
[null,{"v":20,"d":"20 "},null,null,"Bathroom lockset with striking plate fixed to metal/timber","No",{"v":500,"d":"500 "},null,{"v":0,"d":"R0.00"}]
[]
[null,{"v":21,"d":"21 "},null,null,"Three lever deadlock","No",{"v":500,"d":"500 "},null,{"v":0,"d":"R0.00"}]
[]
[null,{"v":22,"d":"22 "},null,null,"Three lever rebated deadlock","No",{"v":500,"d":"500 "},null,{"v":0,"d":"R0.00"}]
[]
[null,{"v":23,"d":"23 "},null,null,"Four lever deadlock","No",{"v":500,"d":"500 "},null,{"v":0,"d":"R0.00"}]
[]
[null,{"v":24,"d":"24 "},null,null,"Four lever rebated deadlock","No",{"v":500,"d":"500 "},null,{"v":0,"d":"R0.00"}]
[]
[null,{"v":25,"d":"25 "},null,null,"Two lever lockset","No",{"v":500,"d":"500 "},null,{"v":0,"d":"R0.00"}]
[]
[null,{"v":26,"d":"26 "},null,null,"Two lever lockset with striking plate fixed to metal/timber","No",{"v":500,"d":"500 "},null,{"v":0,"d":"R0.00"}]
[]
[null,{"v":27,"d":"27 "},null,null,"Two lever rebated lockset","No",{"v":500,"d":"500 "},null,{"v":0,"d":"R0.00"}]
[]
[null,{"v":28,"d":"28 "},null,null,"Three lever lockset","No",{"v":500,"d":"500 "},null,{"v":0,"d":"R0.00"}]
[]
[null,{"v":29,"d":"29 "},null,null,"Three lever lockset with striking plate fixed to metal/timber","No",{"v":500,"d":"500 "},null,{"$f":"G100*H100","v":{"v":0,"d":"R0.00"}}]
[]
[null,{"v":30,"d":"30 "},null,null,"Three lever rebated lockset","No",{"v":500,"d":"500 "},null,{"v":0,"d":"R0.00"}]
[]
[null,{"v":31,"d":"31 "},null,null,"Four lever lockset","No",{"v":500,"d":"500 "},null,{"v":0,"d":"R0.00"}]
[]
[null,{"v":32,"d":"32 "},null,null,"Four lever lockset with striking plate fixed to metal/timber","No",{"v":500,"d":"500 "},null,{"v":0,"d":"R0.00"}]
[]
[null,{"v":33,"d":"33 "},null,null,"Four lever rebated lockset","No",{"v":500,"d":"500 "},null,{"v":0,"d":"R0.00"}]
[]
[null,{"v":34,"d":"34 "},null,null,"Three lever sliding door lock","No",{"v":500,"d":"500 "},null,{"v":0,"d":"R0.00"}]
[]
[null,{"v":35,"d":"35 "},null,null,"Four lever sliding door lock","No",{"v":500,"d":"500 "},null,{"v":0,"d":"R0.00"}]
[]
[null,{"v":36,"d":"36 "},null,null,"Single cylinder deadlock","No",{"v":500,"d":"500 "},null,{"v":0,"d":"R0.00"}]
[]
[null,{"v":37,"d":"37 "},null,null,"Single cylinder rebated deadlock","No",{"v":500,"d":"500 "},null,{"v":0,"d":"R0.00"}]
[]
[null,{"v":38,"d":"38 "},null,null,"Double cylinder deadlock","No",{"v":500,"d":"500 "},null,{"v":0,"d":"R0.00"}]
[]
[null,{"v":39,"d":"39 "},null,null,"Double cylinder rebated deadlock","No",{"v":500,"d":"500 "},null,{"v":0,"d":"R0.00"}]
[]
[null,{"v":40,"d":"40 "},null,null,"Single cylinder lockset","No",{"v":500,"d":"500 "},null,{"v":0,"d":"R0.00"}]
[]
[null,{"v":41,"d":"41 "},null,null,"Single cylinder lockset with striking plate fixed to metal/timber","No",{"v":500,"d":"500 "},null,{"v":0,"d":"R0.00"}]
[]
[null,{"v":42,"d":"42 "},null,null,"Single cylinder rebated lockset","No",{"v":500,"d":"500 "},null,{"v":0,"d":"R0.00"}]
[]
[null,{"v":43,"d":"43 "},null,null,"Double cylinder lockset","No",{"v":500,"d":"500 "},null,{"v":0,"d":"R0.00"}]
[]
[null,{"v":44,"d":"44 "},null,null,"Double cylinder lockset with striking plate fixed to metal/timber","No",{"v":500,"d":"500 "},null,{"v":0,"d":"R0.00"}]
[]
[null,{"v":45,"d":"45 "},null,null,"Double cylinder rebated lockset","No",{"v":500,"d":"500 "},null,{"v":0,"d":"R0.00"}]
[]
[null,{"v":46,"d":"46 "},null,null,"Single cylinder sliding door lock","No",{"v":500,"d":"500 "},null,{"v":0,"d":"R0.00"}]
[]
[null,{"v":47,"d":"47 "},null,null,"Double cylinder sliding door lock","No",{"v":500,"d":"500 "},null,{"v":0,"d":"R0.00"}]
[]
[{"$nulls":4},"HANDLES"]
[]
[{"$nulls":4},"New Ironmongery fittings, supply and install to be similar and or approved"]
[]
[null,{"v":48,"d":"48 "},null,null,"Door flush handle","No",{"v":100,"d":"100 "},null,{"v":0,"d":"R0.00"}]
[]
[null,{"v":49,"d":"49 "},null,null,"Door knob","No",{"v":100,"d":"100 "},null,{"v":0,"d":"R0.00"}]
[]
[null,{"v":50,"d":"50 "},null,null,"Door pull handle","No",{"v":100,"d":"100 "},null,{"v":0,"d":"R0.00"}]
[]
[null,{"v":51,"d":"51 "},null,null,"Set of two door pull handles fixed back to back","No",{"v":100,"d":"100 "},null,{"v":0,"d":"R0.00"}]
[]
[{"$nulls":4},"PUSH PLATES AND KICKING PLATES"]
[]
[{"$nulls":4},"New Ironmongery fittings, supply and install to be similar and or approved"]
[]
[null,{"v":52,"d":"52 "},null,null,"Aluminium plates not exceeding 0,1m2","No",{"v":100,"d":"100 "},null,{"v":0,"d":"R0.00"}]
[]
[null,{"v":53,"d":"53 "},null,null,"Aluminium plates exceeding 0,1m2 but notexceeding 0,3m2","No",{"v":100,"d":"100 "},null,{"v":0,"d":"R0.00"}]
[]
[null,{"v":54,"d":"54 "},null,null,"Aluminium plates exceeding 0,3m2 but not exceeding 0,5m2","No",{"v":100,"d":"100 "},null,{"v":0,"d":"R0.00"}]
[]
[{"$nulls":4},"DOOR CLOSERS"]
[]
[{"$nulls":4},"New Ironmongery fittings, supply and install to be similar and or approved"]
[]
[null,{"v":55,"d":"55 "},null,null,"Door closer","No",{"v":100,"d":"100 "},null,{"$f":"G164*H164","v":{"v":0,"d":"R0.00"}}]
[]
[null,{"v":56,"d":"56 "},null,null,"Door closer with bracket","No",{"v":100,"d":"100 "},null,{"v":0,"d":"R0.00"}]
[]
[null,{"v":57,"d":"57 "},null,null,"Concealed door closer","No",{"v":100,"d":"100 "},null,{"v":0,"d":"R0.00"}]
[]
[null,{"v":58,"d":"58 "},null,null,"Concealed door closer with bracket","No",{"v":100,"d":"100 "},null,{"v":0,"d":"R0.00"}]
[]
[{"$nulls":4},"LETTERS, NAME PLATES, ETC"]
[]
[{"$nulls":4},"New Ironmongery fittings, supply and install to be similar and or approved"]
[]
[null,{"v":59,"d":"59 "},null,null,"Brass or plastic letters/numerals","No",{"v":100,"d":"100 "},null,{"v":0,"d":"R0.00"}]
[]
[null,{"v":60,"d":"60 "},null,null,"Perspex plate with engraved or painted letters/numerals/symbols not exceeding 0,1m2","No",{"v":100,"d":"100 "},null,{"v":0,"d":"R0.00"}]
[]
[null,{"v":61,"d":"61 "},null,null,"Aluminium plate with engraved or painted letters/numerals/symbols not exceeding 0,1m2","No",{"v":100,"d":"100 "},null,{"v":0,"d":"R0.00"}]
[]
[{"$nulls":4},"BATHROOM FITTINGS"]
[]
[{"$nulls":4},"New Ironmongery fittings, supply and install to be similar and or approved"]
[]
[null,{"v":62,"d":"62 "},null,null,"Chromium plated curtain or hanging rail not exceeding 1,0m long","No",{"v":100,"d":"100 "},null,{"v":0,"d":"R0.00"}]
[]
[null,{"v":63,"d":"63 "},null,null,"Chromium plated curtain or hanging rail exceeding 1,0m but not exceeding 2,0m long","No",{"v":100,"d":"100 "},null,{"v":0,"d":"R0.00"}]
[]
[null,{"v":64,"d":"64 "},null,null,"Chromium plated towel rail not exceeding 1,0m long","No",{"v":100,"d":"100 "},null,{"v":0,"d":"R0.00"}]
[]
[null,{"v":65,"d":"65 "},null,null,"Toilet roll holder","No",{"v":100,"d":"100 "},null,{"v":0,"d":"R0.00"}]
[]
[null,{"v":66,"d":"66 "},null,null,"Lockable toilet roll holder","No",{"v":100,"d":"100 "},null,{"v":0,"d":"R0.00"}]
[]
[null,{"v":67,"d":"67 "},null,null,"Soap holder","No",{"v":100,"d":"100 "},null,{"v":0,"d":"R0.00"}]
[]
[null,{"v":68,"d":"68 "},null,null,"Back grab rail not exceeding 1,0m long","No",{"v":100,"d":"100 "},null,{"v":0,"d":"R0.00"}]
[]
[null,{"v":69,"d":"69 "},null,null,"Side grab rail not exceeding 1,0m girth","No",{"v":100,"d":"100 "},null,{"v":0,"d":"R0.00"}]
[]
[null,{"v":70,"d":"70 "},null,null,"Bathroom cabinet","No",{"v":100,"d":"100 "},null,{"v":0,"d":"R0.00"}]
[]
[null,{"v":71,"d":"71 "},null,null,"Soap dispenser","No",{"v":100,"d":"100 "},null,{"v":0,"d":"R0.00"}]
[]
[null,{"v":72,"d":"72 "},null,null,"Electric hand-drier","No",{"v":100,"d":"100 "},null,{"v":0,"d":"R0.00"}]
[]
[{"$nulls":4},"SUNDRIES"]
[]
[{"$nulls":4},"New Ironmongery fittings, supply and install to be similar and or approved"]
[]
[null,{"v":73,"d":"73 "},null,null,"Doorstop, to match existing","No",{"v":250,"d":"250 "},null,{"v":0,"d":"R0.00"}]
[]
[{"$nulls":4},"STEEL LOCKERS"]
[]
[{"$nulls":4},"Steel lockers with standard baked enamel finish"]
[]
[null,{"v":74,"d":"74 "},null,null,"GB002 locker 300 x 450 x 1800mm high","No",{"v":100,"d":"100 "},null,{"v":0,"d":"R0.00"}]
[]
[{"$nulls":4},"WRITING BOARDS, PINNING BOARD, ETC"]
[]
[{"$nulls":4},"Virtreous enamelled writing boards, etc to SABS CSK-36-1980"]
[]
[null,{"v":75,"d":"75 "},null,null,"Green writing board 4 800 x 1 140mm high consisting of two fixed panels each 2 400 x 1 140mm high complete with aluminium chalk rail, etc, plugged","No",{"v":100,"d":"100 "},null,{"v":0,"d":"R0.00"}]
[]
[{"$nulls":4},"Carpet bulletin boards"]
[]
[null,{"v":76,"d":"76 "},null,null,"2 400 x 1 200mm Aluminium framed carpet bulletin board","No",{"v":100,"d":"100 "},null,{"$f":"G228*H228","v":{"v":0,"d":"R0.00"}}]
[]
[]
[{"$nulls":4},"Section B10 - Ironmongery: Carried forward to sectional summary page",{"$nulls":3},{"$f":"SUM(I35:I230)","v":{"v":0,"d":"R0.00"}}]

{"sheet":"S2 - B11 Metalwork","index":13,"n_rows":148,"n_cols":9,"rows_kept":148,"merged":[[0,1,0,4]]}
[null,"CITY OF TSWANE - GROUP PROPERTY DEPARTMENT\nTENDER NO: GPM 03 – 2023/24\nTENDER:  MAINTENANCE "]
[]
[null,"ITEM NO","PAYMENT CLAUSE","LI","DESCRIPTION","UNIT","QTY","RATE","TENDER AMOUNT"]
[]
[{"$nulls":4},"SECTION 2 "]
[]
[{"$nulls":4},"BILL NO 11"]
[]
[{"$nulls":4},"METALWORK"]
[]
[{"$nulls":4},"SUPPLEMENTARY PREAMBLES"]
[]
[{"$nulls":4},"Descriptions"]
[]
[{"$nulls":4},"Descriptions of bolts shall be deemed to include nuts and washers"]
[]
[{"$nulls":4},"Descriptions of expansion anchors and bolts and chemical anchors and bolts shall be deemed to include nuts, washers and mortices in brickwork or concrete "]
[]
[{"$nulls":4},"Metalwork described as\"holed for bolt(s)\" shall be deemed to exclude the bolts unless otherwise described"]
[]
[{"$nulls":4},"WELDED SCREENS, GATES, ETC"]
[]
[{"$nulls":4},"Steel gates and frames"]
[]
[null,{"v":1,"d":"1 "},null,null,"Single gate 0.80 x 2.00m high of 50 x 6mm flat outer frame and 25 x 25 x 3mm angle inner frame welded to outer frame, filled in with “Mentis Flatex” type 352 expanded metal panel fixed all round to inner frame with 20 x 20 x 3mm angle fixing beads bolted on with and including 6mm bolts at 500mm centers and fitted with a pair of suitable hinges welded to post and lockable sliding bolt with keep in gate post.","No",100,null,{"$f":"G25*H25","v":{"v":0,"d":"R0.00"}}]
[]
[null,{"v":2,"d":"2 "},null,null,"Single gate 0.80 x 2.00m high of 50 x 50 x 2mm square hollow section frame in with 100 x 100 x 6.3mm (2.45kg/m2) welded mesh welded to frame, fitted with a pair of suitable hinges welded to post and lock box/ultra lock","No",100,null,{"$f":"G27*H27","v":{"v":0,"d":"R0.00"}}]
[]
[null,{"v":3,"d":"3 "},null,null,"Single gate 0.80 x 2.00m high of 50 x 50 x 2mm square hollow section frame and 76 x 25 x 2mm rectangular hollow section horizontal middle rail, filled in with 25 x 25 x 2mm square hollow section vertical paling at 150mm centers and fitted with a pair of suitable hinges welded to post and with locking bolt welded on.","No",100,null,{"v":0,"d":"R0.00"}]
[]
[null,{"v":4,"d":"4 "},null,null,"Double gate 2.40 x 2.00m high Unit leaf of 50 x 50 x 2mm square hollow section frame and 75 x 25 x 2mm rectangular hollow section horizontal middle rail, filled in with 25 x 25 x 2mm square hollow section vertical paling at 150mm centers, fitted with a pair of suitable hinges bolted to wall with and including two 16mm expansion bolts and the gate with hasp and staple and 12mm drop bolt welded on.","No",100,null,{"v":0,"d":"R0.00"}]
[]
[{"$nulls":4},"PRESSED STEEL DOOR FRAMES"]
[]
[{"$nulls":4},"1,6mm Double rebated frames suitable for half brick walls"]
[]
[{"$nulls":4},"Frame for door 813 x 2 032mm high","No",{"v":100,"d":"100 "},null,{"v":0,"d":"R0.00"}]
[]
[{"$nulls":4},"1,6mm Double rebated frames suitable for one brick walls with two 100mm steel butt hinges per leaf"]
[]
[null,{"v":5,"d":"5 "},null,null,"Frame for door size 813 x 2030mm high.","No",{"v":100,"d":"100 "},null,{"v":0,"d":"R0.00"}]
[]
[null,{"v":6,"d":"6 "},null,null,"Frame for double door size 1610 x 2030mm high.","No",{"v":100,"d":"100 "},null,{"v":0,"d":"R0.00"}]
[]
[{"$nulls":4},"PRESSED STEEL COMBINATION DOORS AND FRAMES"]
[]
[{"$nulls":4},"Purpose made louvred steel doors and frame fully coated with primer as per manufacturers specification inclusive of all supporting accessories"]
[]
[null,{"v":7,"d":"7 "},null,null,"Type AV door 0.81 x 2.03m high with louvred ventilation panel and rebated frame suitable for 230mm wall.","No",100,null,{"v":0,"d":"R0.00"}]
[]
[null,{"v":8,"d":"8 "},null,null,"Type DV double door 1.83 x 2.44m high with louvred ventilation panel and rebated frame suitable for 230mm wall.","No",100,null,{"v":0,"d":"R0.00"}]
[]
[{"$nulls":4},"The Following in louvres and other supporting accessories"]
[]
[null,{"v":9,"d":"9 "},null,null,"Type ALU louvre unit 0.90 x 0.75 m high with double rebated frame suitable for 230mm wall.","No",100,null,{"v":0,"d":"R0.00"}]
[]
[null,{"v":10,"d":"10 "},null,null,"Type BLU louvre unit 1.59 x 0.75m high with double rebated frame suitable for 230mm wall.","No",100,null,{"v":0,"d":"R0.00"}]
[]
[]
[{"$nulls":4},"ALUMINIUM WINDOWS, DOORS, ETC"]
[]
[null,{"v":11,"d":"11 "},null,null,"Aluminum windows, doors, and shopfront: Type PT612 window 0.59 x 1.19m high.","No",200,null,{"v":0,"d":"R0.00"}]
[]
[null,{"v":12,"d":"12 "},null,null,"Aluminum windows, doors, and shopfront: Type PT912 window 0.89 x 1.19m high.","No",200,null,{"v":0,"d":"R0.00"}]
[]
[null,{"v":13,"d":"13 "},null,null,"Aluminum windows, doors, and shopfront: Type PT1212 window 1.19 x 1.19m high.","No",200,null,{"v":0,"d":"R0.00"}]
[]
[null,{"v":14,"d":"14 "},null,null,"Aluminum windows, doors, and shopfront: Type PT1512 window 1.49 x 1.19m high.","No",200,null,{"v":0,"d":"R0.00"}]
[]
[null,{"v":15,"d":"15 "},null,null,"Aluminum windows, doors, and shopfront: Type PTT612 window 0.59 x 1.19m high.","No",200,null,{"v":0,"d":"R0.00"}]
[]
[null,{"v":16,"d":"16 "},null,null,"Aluminum windows, doors, and shopfront: Type PTT912 window 0.89 x 1.19m high.","No",200,null,{"v":0,"d":"R0.00"}]
[]
[null,{"v":17,"d":"17 "},null,null,"Aluminum windows, doors, and shopfront: Type PTT1212 window 1.19 x 1.19m high.","No",200,null,{"v":0,"d":"R0.00"}]
[]
[null,{"v":18,"d":"18 "},null,null,"Aluminum windows, doors, and shopfront: Type PTT1512 window 1.49 x 1.19m high.","No",200,null,{"v":0,"d":"R0.00"}]
[]
[null,{"v":19,"d":"19 "},null,null,"Aluminum windows, doors, and shopfront: Type PTT1812 window 1.79 x 1.19m high.","No",200,null,{"v":0,"d":"R0.00"}]
[]
[null,{"v":20,"d":"20 "},null,null,"Aluminum windows, doors, and shopfront: Type PTT2112 window 2.09 x 1.19m high.","No",200,null,{"v":0,"d":"R0.00"}]
[]
[{"$nulls":4},"STEEL WINDOWS, DOORS, ETC"]
[]
[{"$nulls":4},"Standard industrial doors"]
[]
[null,{"v":21,"d":"21 "},null,null,"Type A door 0.81 x 2.03m high rebated frame suitable for 230mm wall.","No",100,null,{"v":0,"d":"R0.00"}]
[]
[null,{"v":22,"d":"22 "},null,null,"Type D double door 1.83 x 2.44m high with rebated frame suitable for 230mm wall.","No",100,null,{"v":0,"d":"R0.00"}]
[]
[{"$nulls":4},"NEW STEEL ROLLER SHUTTERS ETC"]
[]
[{"$nulls":4},"Push-up galvanised mild steel roller shutter with slatted roller shutter including overhead box fixed to steel beams"]
[]
[null,{"v":23,"d":"23 "},null,null,"Chain operated slatted roller shutter for 2400 x 2100mm high opening","No",{"v":200,"d":"200 "},null,{"$f":"G94*H94","v":{"v":0,"d":"R0.00"}}]
[]
[null,{"v":24,"d":"24 "},null,null,"Chain operated slatted roller shutter for high opening various sizes","m2",{"v":1000,"d":"1,000 "},null,{"v":0,"d":"R0.00"}]
[]
[{"$nulls":4},"EXISTING STEEL ROLLER SHUTTERS ETC"]
[]
[{"$nulls":4},"Curtain Slats"]
[]
[null,{"v":25,"d":"25 "},null,null,"Removal of existing damaged curtain slats","m",{"v":200,"d":"200 "},null,{"v":0,"d":"R0.00"}]
[]
[null,{"v":26,"d":"26 "},null,null,"Supply and install new Solid Galvanized 75mm x 0.8mm curtain slats","m",{"v":200,"d":"200 "},null,{"v":0,"d":"R0.00"}]
[]
[null,{"v":27,"d":"27 "},null,null,"Supply and install new Perforated Galvanized 75mm x 0.8mm curtain slat","m",{"v":200,"d":"200 "},null,{"v":0,"d":"R0.00"}]
[]
[null,{"v":28,"d":"28 "},null,null,"Supply and install new  Fenestra Galvanized 75mm x 1mm curtain slat","m",{"v":200,"d":"200 "},null,{"v":0,"d":"R0.00"}]
[]
[{"$nulls":4},"T-Bars"]
[]
[null,{"v":29,"d":"29 "},null,null,"Repair existing damaged T-Bars","No",{"v":200,"d":"200 "},null,{"v":0,"d":"R0.00"}]
[]
[null,{"v":30,"d":"30 "},null,null,"Supply and Install new T-bar Steel 40mm x 40mm x 2mm Angle iron with stick on weather strip","m",{"v":200,"d":"200 "},null,{"v":0,"d":"R0.00"}]
[]
[null,{"v":31,"d":"31 "},null,null,"Supply and Install new T-bar Aluminium 40mm x 40mm x 2mm with slide in rubber strip","m",{"v":200,"d":"200 "},null,{"v":0,"d":"R0.00"}]
[]
[{"$nulls":4},"End Plates"]
[]
[null,{"v":32,"d":"32 "},null,null,"Repair existing damaged End Plates","No",{"v":200,"d":"200 "},null,{"v":0,"d":"R0.00"}]
[]
[null,{"v":33,"d":"33 "},null,null,"Supply and Install new end plate 300 x 300 x 3mm for push up doors up to 2200mm high","No",{"v":500,"d":"500 "},null,{"v":0,"d":"R0.00"}]
[]
[null,{"v":34,"d":"34 "},null,null,"Supply and Install new end plate 400 x 400 x 4mm for all doors higher than 4200mm","No",{"v":500,"d":"500 "},null,{"v":0,"d":"R0.00"}]
[]
[{"$nulls":4},"Canopy Covers"]
[]
[null,{"v":35,"d":"35 "},null,null,"Repair existing damaged Canopy Covers","No",{"v":200,"d":"200 "},null,{"v":0,"d":"R0.00"}]
[]
[null,{"v":36,"d":"36 "},null,null,"Supply and Install new canopy cover galvanized or cold roller steel 0.8mm thick 300mm x 300mm","No",{"v":500,"d":"500 "},null,{"v":0,"d":"R0.00"}]
[]
[null,{"v":37,"d":"37 "},null,null,"Supply and Install new canopy cover galvanized or cold roller steel 0.8mm thick 350mm x 350mm","No",{"v":500,"d":"500 "},null,{"v":0,"d":"R0.00"}]
[]
[null,{"v":38,"d":"38 "},null,null,"Supply and Install new canopy cover galvanized or cold roller steel 0.8mm thick 400mm x 400mm","No",{"v":500,"d":"500 "},null,{"v":0,"d":"R0.00"}]
[]
[{"$nulls":4},"Shaft Assembly"]
[]
[null,{"v":39,"d":"39 "},null,null,"Repair shaft assembly remove and refit","No",{"v":500,"d":"500 "},null,{"v":0,"d":"R0.00"}]
[]
[{"$nulls":4},"Tension Spring"]
[]
[null,{"v":40,"d":"40 "},null,null,"Repair tension spring remove and refit","No",{"v":500,"d":"500 "},null,{"v":0,"d":"R0.00"}]
[]
[]
[]
[]
[]
[{"$nulls":4},"Section B11 - Metalwork : Carried forward to sectional summary page",{"$nulls":3},{"$f":"SUM(I25:I147)","v":{"v":0,"d":"R0.00"}}]

{"sheet":"S2 - B12 Structural Steel","index":14,"n_rows":75,"n_cols":9,"rows_kept":75,"merged":[[0,1,0,4]]}
[null,"CITY OF TSWANE - GROUP PROPERTY DEPARTMENT\nTENDER NO: GPM 03 – 2023/24\nTENDER:  MAINTENANCE "]
[]
[null,"ITEM NO","PAYMENT CLAUSE","LI","DESCRIPTION","UNIT","QTY","RATE","TENDER AMOUNT"]
[]
[{"$nulls":4},"SECTION 2 "]
[]
[{"$nulls":4},"BILL NO 12"]
[]
[{"$nulls":4},"STRUCTURAL STEEL"]
[]
[{"$nulls":4},"SUPPLEMENTARY PREAMBLES"]
[]
[{"$nulls":4},"Descriptions"]
[]
[{"$nulls":4},"Note:"]
[]
[{"$nulls":4},"All rates are to include for the preparaiton of shop drawings, supplying, manufacturing, erecting and fabricationg complete the following structural steelwork including all cleats, base plates, end plates, gussets, stiffeners, spacers, fixing bolts, holing, welding, cranking, notching, etc. with all welds smooth and even in accordance with theEngineers specification"]
[]
[{"$nulls":4},"Ultra-span light gauge steel roof trusses desinged in accordance with part \"A\" and \"L\" of  the national building regulations."]
[]
[{"$nulls":4},"The following trusses should meet the following minimum requirements:"]
[{"$nulls":4},"Top Chord Dead Load: 0,100 kN/m2"]
[{"$nulls":4},"Bottom Chord Dead Load: 0,250 kN/m2"]
[{"$nulls":4},"Wind Terrain Category: C"]
[{"$nulls":4},"Wind Speed: 36m/s"]
[{"$nulls":4},"Wind Pressure: 0,354N/m2"]
[{"$nulls":4},"Default Pitch: 5,0"]
[{"$nulls":4},"Default Truss centres : 1,400mm"]
[{"$nulls":4},"Default Purlin centres : 1,150mm"]
[{"$nulls":4},"Default Overhang Length: 500mm"]
[]
[{"$nulls":4},"STEEL TRUSSES ETC"]
[]
[{"$nulls":4},"Roof trusses formed of galvanised angle section rails, struts, braces, cleats, etc all as per manufacturers specifications"]
[]
[null,{"v":1,"d":"1 "},null,null,"Design supply and installation of steel roof structure complete to receive metal roof sheeting (measured elsewhere)","m2",{"v":100,"d":"100 "},null,{"$f":"G36*H36","v":{"v":0,"d":"R0.00"}}]
[]
[null,{"v":2,"d":"2 "},null,null,"Design supply and installation of steel roof structure for walkways attached to ditto, complete to receive metal roof sheeting (measured elsewhere)","m2",{"v":100,"d":"100 "},null,{"$f":"G38*H38","v":{"v":0,"d":"R0.00"}}]
[]
[{"$nulls":4},"STEEL COLUMNS AND BEAMS"]
[]
[{"$nulls":4},"Welded columns in single lengths with flat section base, top, bearer and connection plates bolted to concrete"]
[]
[null,{"v":3,"d":"3 "},null,null,"80 x 80mm Square hollow section columns","t",6,null,{"v":0,"d":"R0.00"}]
[]
[null,{"v":4,"d":"4 "},null,null,"100 x 50mm x 10.1kg/m PFC- section columns and beams in lenghts not exceeding 13m","t",0.4,null,{"v":0,"d":"R0.00"}]
[]
[{"$nulls":4},"Bolts to columns, beams, etc"]
[]
[null,{"v":5,"d":"5 "},null,null,"Four 650mm long anchor rods threaded on each side including loose nuts bolted to two 250 x 30 x10mm thick plats cast in concrete and welded to base plate (base plate elsewhere measured)","No",50,null,{"v":0,"d":"R0.00"}]
[]
[null,{"v":6,"d":"6 "},null,null,"12mm Expansion anchor with loose bolt","No",50,null,{"v":0,"d":"R0.00"}]
[]
[{"$nulls":4},"PURLINS, GIRTS, BRACING, ETC"]
[]
[{"$nulls":4},"Purlins and girts bolted to steel"]
[]
[null,{"v":7,"d":"7 "},null,null,"100 x 75 x20mm lipped channel section purlins","t",1.5,null,{"v":0,"d":"R0.00"}]
[]
[{"$nulls":4},"Welded bracing etc with flat section connection plates bolted to steel"]
[]
[null,{"v":8,"d":"8 "},null,null,"100 x 75mm Angle section cleat","t",0.2,null,{"v":0,"d":"R0.00"}]
[]
[{"$nulls":4},"SUNDRIES"]
[]
[null,{"v":9,"d":"9 "},null,null,"6mm Plate four times holed for bolts","t",0.2,null,{"v":0,"d":"R0.00"}]
[]
[{"$nulls":4},"PAINTING OF STEELWORK (elsewhere measured)",{"$nulls":3},{"v":0,"d":"R0.00"}]
[{"$nulls":8},{"v":0,"d":"R0.00"}]
[{"$nulls":4},"Note:  The rates for painting are to allow for all values of colour grading in accordance with the munsell system as defined in the SABS Specification",{"$nulls":3},{"v":0,"d":"R0.00"}]
[{"$nulls":8},{"v":0,"d":"R0.00"}]
[]
[]
[]
[{"$nulls":4},"Section B12- Structural Steel: Carried forward to sectional summary page",{"$nulls":3},{"$f":"SUM(I36:I74)","v":{"v":0,"d":"R0.00"}}]

{"sheet":"S2 - B13 Plastering)","index":15,"n_rows":100,"n_cols":9,"rows_kept":100,"merged":[[0,1,0,4]]}
[null,"CITY OF TSWANE - GROUP PROPERTY DEPARTMENT\nTENDER NO: GPM 03 – 2023/24\nTENDER:  MAINTENANCE "]
[]
[null,"ITEM NO","PAYMENT CLAUSE","LI","DESCRIPTION","UNIT","QTY","RATE","TENDER AMOUNT"]
[]
[{"$nulls":4},"SECTION 2 "]
[]
[{"$nulls":4},"BILL NO 13"]
[]
[{"$nulls":4},"PLASTERING"]
[]
[{"$nulls":4},"SUPPLEMENTARY PREAMBLES"]
[]
[{"$nulls":4},"Descriptions"]
[]
[]
[{"$nulls":4},"The Contractor must read each description throughout this bill of quantities in conjunction with the relevant specifications and in the context of the obligations, requirements and specifications stated in the descriptions, the Model Preambles for Trades (2008 edition) and any Supplementary Preambles to the Model Preambles forming part of these Bills of Quantities."]
[]
[{"$nulls":4},"No claim arising from brevity of description of items fully described in the said Model Preambles for Trades and Supplementary Preambles to the Model Preambles will be granted."]
[]
[{"$nulls":4},"SUPPLEMENTARY PREAMBLES"]
[]
[{"$nulls":4},"GRANOLITHIC"]
[]
[{"$nulls":4},"Method"]
[]
[{"$nulls":4},"The method to be used shall be either the monolithic method or the bonded method"]
[]
[{"$nulls":4},"Preparation"]
[]
[{"$nulls":4},"For granolithic applied monolithically, the concrete floor shall be swept clean after bleeding of the concrete has ceased and the slab has begun to stiffen; any remaining bleed water shall be removed and the granolithic applied immediately thereafter. For granolithic to be bonded to the floor slab after it has hardened, the slab surface shall be hacked (preferably by mechanical means) until all laitance, dirt, oil, etc. is dislodged and swept clean of all loose matter. The slab shall then be wetted and kept damp for at least six hours before applying the granolithic"]
[]
[{"$nulls":4},"Mix"]
[]
[{"$nulls":4},"Granolithic shall attain a compressive strength of at least 41MPa. The coarse aggregate shall comply with SANS 1083 and shall generally be capable of passing a 10mm mesh sieve. Where the thickness of the granolithic exceeds 25mm, the size of the coarse aggregate shall be increased to the maximum size compatible with the thickness of the granolithic"]
[]
[{"$nulls":4},"Panels"]
[]
[{"$nulls":4},"Granolithic shall be laid in panels not exceeding 14mÂ² for monolithic finishes, not exceeding 9,5mÂ² for bonded finishes and not exceeding 6mÂ² for all external granolithic. Wherever possible, panels shall be square but at no time should the length of the panel exceed 1,5 times its width"]
[]
[{"$nulls":4},"Where possible joints between panels shall be positioned over joints in the floor slab and shall be at least 3mm wide through the full thickness of the finish, separated by strips of wood or fibreboard and finished with V-joints"]
[]
[{"$nulls":4},"Laying"]
[]
[{"$nulls":4},"Monolithic granolithic shall be applied to the partially set slab and thoroughly compacted and lightly wood floated to the required levels"]
[]
[{"$nulls":4},"Bonded granolithic shall be applied to the slab after applying a 1:1 sand-and-cement slurry brushed over the surface and allowed to partially set before applying the granolithic. The granolithic shall be thoroughly compacted and lightly wood floated to the required levels"]
[]
[{"$nulls":4},"After wood floating, the monolithic and bonded granolithic shall remain undisturbed until bleeding has ceased and the surface has stiffened. Any remaining bleed water and laitance shall then be removed and the surface steel trowelled or power floated"]
[]
[{"$nulls":4},"Curing, seasoning and protection"]
[]
[{"$nulls":4},"Granolithic shall be covered with clean hessian with waterproof building foil over and kept wet for at least seven days after laying"]
[]
[{"$nulls":4},"GRANOLITHIC"]
[]
[{"$nulls":4},"Untinted granolithic on concrete"]
[]
[null,{"v":1,"d":"1 "},null,null,"50mm Thick Average on floors and landings","m2",{"v":1000,"d":"1,000 "},null,{"$f":"G58*H58","v":{"v":0,"d":"R0.00"}}]
[]
[{"$nulls":4},"Tinted granolithic on concrete"]
[]
[null,{"v":2,"d":"2 "},null,null,"50mm Thick Average on floors and landings","m2",{"v":1000,"d":"1,000 "},null,{"$f":"G62*H62","v":{"v":0,"d":"R0.00"}}]
[]
[{"$nulls":4},"SCREEDS"]
[]
[{"$nulls":4},"Cement plaster screeds wood floated on concrete"]
[]
[null,{"v":3,"d":"3 "},null,null,"50mm Thick Average on floors and landings","m2",{"v":1000,"d":"1,000 "},null,{"v":0,"d":"R0.00"}]
[]
[{"$nulls":4},"Cement plaster screeds steel trowelled on concrete"]
[]
[null,{"v":4,"d":"4 "},null,null,"50mm Thick Average on floors and landings","m2",{"v":1000,"d":"1,000 "},null,{"v":0,"d":"R0.00"}]
[]
[null,{"v":5,"d":"5 "},null,null,"50 X 50mm Triangular fillet","m",{"v":350,"d":"350 "},null,{"v":0,"d":"R0.00"}]
[]
[{"$nulls":4},"INTERNAL PLASTER"]
[]
[{"$nulls":4},"Cement plaster on brickwork/concrete"]
[]
[null,{"v":6,"d":"6 "},null,null,"On walls","m²",{"v":2500,"d":"2,500 "},null,{"v":0,"d":"R0.00"}]
[]
[null,{"v":7,"d":"7 "},null,null,"On narrow widths","m²",{"v":350,"d":"350 "},null,{"v":0,"d":"R0.00"}]
[]
[{"$nulls":4},"EXTERNAL PLASTER"]
[]
[{"$nulls":4},"Cement plaster on brickwork/concrete"]
[]
[null,{"v":8,"d":"8 "},null,null,"On walls","m²",{"v":1000,"d":"1,000 "},null,{"v":0,"d":"R0.00"}]
[]
[null,{"v":9,"d":"9 "},null,null,"On narrow widths","m²",{"v":200,"d":"200 "},null,{"v":0,"d":"R0.00"}]
{"$rows_empty":9}
[{"$nulls":4},"Section B13 - Plastering: Carried forward to sectional summary page",{"$nulls":3},{"$f":"SUM(I58:I99)","v":{"v":0,"d":"R0.00"}}]

{"sheet":"S2 - B14 Tiling","index":16,"n_rows":82,"n_cols":9,"rows_kept":82,"merged":[[0,1,0,4]]}
[null,"CITY OF TSWANE - GROUP PROPERTY DEPARTMENT\nTENDER NO: GPM 03 – 2023/24\nTENDER:  MAINTENANCE "]
[]
[null,"ITEM NO","PAYMENT CLAUSE","LI","DESCRIPTION","UNIT","QTY","RATE","TENDER AMOUNT"]
[]
[{"$nulls":4},"SECTION 2 "]
[]
[{"$nulls":4},"BILL NO 14"]
[]
[{"$nulls":4},"TILING"]
[]
[{"$nulls":4},"SUPPLEMENTARY PREAMBLES"]
[]
[{"$nulls":4},"Descriptions"]
[]
[{"$nulls":4},"The Contractor must read each description throughout this bill of quantities in conjunction with the relevant specifications and in the context of the obligations, requirements and specifications stated in the descriptions, the Model Preambles for Trades (2008 edition) and any Supplementary Preambles to the Model Preambles forming part of these Bills of Quantities."]
[]
[{"$nulls":4},"No claim arising from brevity of description of items fully described in the said Model Preambles for Trades and Supplementary Preambles to the Model Preambles will be granted."]
[]
[{"$nulls":4},"SUPPLEMENTARY PREAMBLES"]
[]
[{"$nulls":4},"Patterns"]
[]
[{"$nulls":4},"Unless otherwise described, tiles shall be laid with continuous joints in both directions"]
[]
[{"$nulls":4},"Fixing"]
[]
[{"$nulls":4},"Unless described as \"fixed with adhesive to plaster (plaster elsewhere)\" descriptions of tiling on brick or concrete walls, columns, etc. shall be deemed to include 1:4 cement plaster backing and descriptions of tiling on concrete floors etc. shall be deemed to include 1:3 plaster bedding"]
[]
[{"$nulls":4},"Tiling described as \"fixed with adhesive on power floated concrete\" shall be deemed to include for approved tiling key-coat"]
[]
[{"$nulls":4},"Ceramic, porcelain, marble and granite tiles are to be fixed and grouted with suitable adhesives and grouts as recommended by the manufacturer of the tiles"]
[]
[{"$nulls":4},"Note:"]
[]
[{"$nulls":4},"All porcelain tiles to be cut with diamond cutter."]
[]
[{"$nulls":4},"WALL TILING"]
[]
[{"$nulls":4},"Ceramic wall tiles, supplied and delivered to site, laid with approved tile adhesive and water resistant grouting to plaster (Elsewhere)"]
[]
[null,{"v":1,"d":"1 "},null,null,"On Walls","m2",{"v":1000,"d":"1,000 "},null,{"$f":"G41*H41","v":0}]
[]
[null,{"v":2,"d":"2 "},null,null,"On narrow widths","m2",{"v":150,"d":"150 "},null,{"$f":"G43*H43","v":0}]
[]
[null,{"v":3,"d":"3 "},null,null,"Fair exposed cutting and fitting around pipe exceeding 50mm and not exceeding 100mm internal diameter (Provisional)","No",{"v":100,"d":"100 "},null,0]
[]
[null,{"v":4,"d":"4 "},null,null,"Fair exposed cutting and fitting around pipe not exceeding 50mm internal diameter (Provisional)","No",{"v":100,"d":"100 "},null,0]
[]
[{"$nulls":4},"Porcelain Wall tiles, supplied and delivered to site, laid with approved tile adhesive and water resistant grouting to plaster (Elsewhere) and with jointing compound"]
[null,{"v":5,"d":"5 "},null,null,"On Walls","m2",{"v":1000,"d":"1,000 "},null,0]
[]
[null,{"v":6,"d":"6 "},null,null,"On narrow widths","m2",{"v":150,"d":"150 "},null,0]
[]
[null,{"v":7,"d":"7 "},null,null,"Fair exposed cutting and fitting around pipe exceeding 50mm and not exceeding 100mm internal diameter (Provisional)","No",{"v":100,"d":"100 "},null,0]
[]
[null,{"v":8,"d":"8 "},null,null,"Fair exposed cutting and fitting around pipe not exceeding 50mm internal diameter (Provisional)","No",{"v":100,"d":"100 "},null,0]
[]
[{"$nulls":4},"FLOOR TILING"]
[]
[{"$nulls":4},"Ceramic floor tiles, supplied and delivered to site, laid with approved tile adhesive and water resistant grouting to plaster (Elsewhere) and with jointing compound"]
[]
[null,{"v":9,"d":"9 "},null,null,"On floors and landings","m2",{"v":1000,"d":"1,000 "},null,0]
[]
[null,{"v":10,"d":"10 "},null,null,"Skirting 200mm high","m",{"v":500,"d":"500 "},null,0]
[]
[{"$nulls":4},"Porcelain floor tiles, supplied and delivered to site, laid with approved tile adhesive and water resistant grouting to plaster (Elsewhere) and with jointing compound"]
[]
[null,{"v":11,"d":"11 "},null,null,"On floors and landings","m2",{"v":1000,"d":"1,000 "},null,0]
[]
[null,{"v":12,"d":"12 "},null,null,"Skirting 200mm high","m",{"v":500,"d":"500 "},null,0]
[]
[{"$nulls":4},"SUNDRIES"]
[]
[null,{"v":13,"d":"13 "},null,null,"27 x 10mm Aluminium straight edge trim","m",{"v":100,"d":"100 "},null,0]
[]
[null,{"v":14,"d":"14 "},null,null,"Tile to Vinyl aluminium self adhesive cover stripe profile","m",{"v":100,"d":"100 "},null,0]
[]
[]
[]
[]
[]
[{"$nulls":4},"Section B14 - Tiling: Carried forward to sectional summary page",{"$nulls":3},{"$f":"SUM(I39:I80)","v":0}]

{"sheet":"S2 - B15 Plumbing and Drainage","index":17,"n_rows":340,"n_cols":9,"rows_kept":340,"merged":[[0,1,0,4]]}
[null,"CITY OF TSWANE - GROUP PROPERTY DEPARTMENT\nTENDER NO: GPM 03 – 2023/24\nTENDER:  MAINTENANCE "]
[]
[null,"ITEM NO","PAYMENT CLAUSE","LI","DESCRIPTION","UNIT","QTY","RATE","TENDER AMOUNT"]
[]
[{"$nulls":4},"SECTION 2 "]
[]
[{"$nulls":4},"BILL NO 15"]
[]
[{"$nulls":4},"PLUMBING AND DRAINAGE"]
[]
[{"$nulls":4},"SUPPLEMENTARY PREAMBLES"]
[]
[{"$nulls":4},"Polycop polypropylene pipes:"]
[]
[{"$nulls":4},"Polypropylene pipes 54mm diameter and under shall be seamless copper coloured class 16 pipes jointed with \"Fast-fuse\" heat welded thermoplastic or brass compression fittings as designed for use with copper pipes as stated "]
[]
[{"$nulls":4},"Pipes shall be firmly fixed to walls etc with coloured nylon snap-in pipe clips with provision for accommodating thermal movement and jointed and fixed strictly in accordance with the manufacturer's instructions"]
[]
[{"$nulls":4},"All pipe diameters are nominal external"]
[]
[{"$nulls":4},"Polylink polypropylene pipes:"]
[]
[{"$nulls":4},"Polypropylene pipes 63mm diameter and over shall be class 12 pipes jointed with cast iron \"Supraclamp\" running joints "]
[]
[{"$nulls":4},"Fusion welded bends, once or twice mitred as\nnecessary, and tees shall be factory manufactured"]
[]
[{"$nulls":4},"Fusion welded bends and tees shall include jointing to pipes with PVC rubber ring double Z joint couplers "]
[]
[{"$nulls":4},"Branch tees shall include flanged and bolted joints to \"Polycop\" branch pipes in addition and for brass compression male iron to copper straight couplers "]
[]
[{"$nulls":4},"Reducers shall include jointing to pipes with PVC rubber ring double Z joint couplers and reducers shall be of sufficient overall length to accommodate same "]
[]
[{"$nulls":4},"All pipes shall be jointed and fixed strictly in accordance with the manufacturer's instructions\n"]
[]
[{"$nulls":4},"All pipe diameters are nominal external"]
[]
[{"$nulls":4},"Concrete pipes:"]
[]
[{"$nulls":4},"Pipes shall be jointed with ogee joints with rubber collars\nor socket and spigot joints with rubber rings"]
[]
[{"$nulls":4},"Vitrified clay pipes:"]
[]
[{"$nulls":4},"Pipes shall rest on solid ground and, where necessary, pockets of sufficient size shall be cut around joints to enable the jointing to be properly performed or, alternatively, pipes shall be bedded full length on and including unreinforced concrete laid in a semi-dry state immediately before pipes are laid "]
[]
[{"$nulls":4},"Sewer and drainage pipes and fittings shall be jointed and sealed with butyl rubber rings"]
[]
[{"$nulls":4},"uPVC pipes and fittings:"]
[]
[{"$nulls":4},"Soil, waste and vent pipes and fittings shall be solvent weld jointed"]
[]
[{"$nulls":4},"uPVC pressure pipes and fittings:"]
[]
[{"$nulls":4},"Pipes for water supply shall be of the class stated"]
[]
[{"$nulls":4},"Pipes of 40mm diameter and smaller shall be plain ended with solvent welded uPVC loose sockets and fittings"]
[]
[{"$nulls":4},"Pipes of 50mm diameter and greater shall have sockets and spigots with push in type integral rubber ring joints. Bends shall be uPVC and all other fittings shall be cast iron, all with similar push-in type joints "]
[]
[{"$nulls":4},"Copper pipes:"]
[]
[{"$nulls":4},"Pipes shall be hard drawn and half-hard pipes of the class stated. Class 0 (thin walled hard drawn) pipes shall not be bent. Class 1 (thin walled half-hard), class 2 (half-hard) and class 3 (heavy walled half-hard) pipes shall only be bent with benders with inner and outer formers. Fittings to copper waste, vent and anti-syphon pipes, capillary solder fittings and compression fittings shall be \"Cobra Watertech\" type. Capillary solder fittings shall comply with ISO 2016. Only compression fittings shall be used in walls or in ground "]
[]
[{"$nulls":4},"Fixing of pipes"]
[]
[{"$nulls":4},"Unless specifically otherwise stated, descriptions of pipes shall be deemed to include fixing to walls etc, casting in, building in or suspending not exceeding 1m below suspension level "]
[]
[{"$nulls":4},"Lead pipes and fittings"]
[]
[{"$nulls":4},"All soldered joints shall be wiped and brass unions shall be used for jointing lead to steel"]
[]
[{"$nulls":4},"Reducing fittings"]
[]
[{"$nulls":4},"Where fittings have reducing ends or branches they are described as \"reducing\". In the case of pipes with diameters not exceeding 60mm only the largest end or branch size is given. Should the contractor wish to use other fittings and bushes or reducers he may do so on the understanding that no claim in this regard will be entertained. In the case of pipes with diameters exceeding 60mm all sizes are given and no claim for extra bushes, reducers, etc will be entertained"]
[]
[{"$nulls":4},"Wire gratings"]
[]
[{"$nulls":4},"Descriptions of gutter outlets etc shall be deemed to include wire balloon gratings"]
[]
[{"$nulls":4},"Septic tanks"]
[]
[{"$nulls":4},"Descriptions of septic tanks shall be deemed to include excavation, bedding and jointing, concrete base slabs, jointing to drains and backfilling, compaction, etc all in accordance with the manufacturer's instructions "]
[]
[{"$nulls":4},"Exposed concrete surfaces"]
[]
[{"$nulls":4},"Exposed surfaces of concrete stormwater channels, cover slabs, inspection eye marker slabs, gulley tops, cleaning eye tops, catchpits, inspection chambers, etc shall be finished smooth with plaster"]
[]
[{"$nulls":4},"Excavations"]
[]
[{"$nulls":4},"No claim for rock excavation will be entertained unless the contractor has timeously notified the quantity surveyor thereof prior to backfilling Excavations \"Soft rock\" and \"hard rock\" shall be as defined in \"Earthworks\""]
[]
[{"$nulls":4},"Laying, backfilling, bedding, etc. of pipes"]
[]
[{"$nulls":4},"Pipes shall be laid and bedded and trenches shall be carefully backfilled in accordance with manufacturers' instructions"]
[]
[{"$nulls":4},"Where no manufacturers' instructions exist pipes shall be laid in accordance with clauses 5.1 and 5.2 of each of the following: SABS 1200 L : Medium-pressure pipelines LD : Sewers LE : Stormwater drainage Pipe trenches etc shall be backfilled in accordance with clauses 3, 5.5, 5.6, 5.7 and 7 of SABS 1200 DB : Earthworks (Pipe trenches) Pipes shall be bedded in accordance with clauses 3.1 to 3.4.1, 5.1 to 5.3 and 7 of SABS 1200 LB : Bedding (Pipes). Unless otherwise described bedding of rigid pipes shall be class B bedding"]
[]
[{"$nulls":4},"Flush pans"]
[]
[{"$nulls":4},"Flush pans shall have straight or side outlets and \"P\" or \"S\" traps as necessary"]
[]
[{"$nulls":4},"Stainless steel basins, sinks, wash troughs, urinals,\netc."]
[]
[{"$nulls":4},"Units shall have standard aprons on all exposed edges and tiling keys against walls where applicable "]
[]
[{"$nulls":4},"Waste unions"]
[]
[{"$nulls":4},"Descriptions of waste unions shall be deemed to include\nrubber or vulcanite plugs and chains fixed to fittings"]
[]
[{"$nulls":4},"Steel sectional water tanks"]
[]
[{"$nulls":4},"Tanks shall comply with SABS CKS 114"]
[]
[{"$nulls":4},"Anti-corrosion tape, spec as per \nmanufacture"]
[]
[{"$nulls":4},"Pipes to be taped shall be coated with the appropriate primer and the tape shall be applied with minimum 15mm lap per spiral unless otherwise described "]
[]
[{"$nulls":4},"Couplings and fittings to pipes shall be taped in strict accordance with the manufacturer's instructions including all mastic, tape, \"Layflat\" sheeting, securing of same, etc"]
[]
[{"$nulls":4},"RAINWATER DISPOSAL"]
[]
[{"$nulls":4},"0,6mm Galvanised sheet iron with chromadek finish"]
[]
[null,{"v":1,"d":"1 "},null,null,"100 x 125mm Galvanised gutter fixed to rafter feet","m",{"v":600,"d":"600 "},null,{"$f":"G123*H123","v":{"v":0,"d":"R0.00"}}]
[]
[null,{"v":2,"d":"2 "},null,null,"Extra on 100 x 125mm square gutter for stop ends","no",{"v":300,"d":"300 "},null,{"$f":"G125*H125","v":{"v":0,"d":"R0.00"}}]
[]
[null,{"v":3,"d":"3 "},null,null,"Extra on 100 x 125mm square gutter for oulet to 60mm diameter downpipe","no",{"v":300,"d":"300 "},null,{"v":0,"d":"R0.00"}]
[]
[null,{"v":4,"d":"4 "},null,null,"60mm diameter rainwater downpipe","m",{"v":600,"d":"600 "},null,{"v":0,"d":"R0.00"}]
[]
[null,{"v":5,"d":"5 "},null,null,"Extra on 60mm rainwater downpipe for shoe","no",{"v":300,"d":"300 "},null,{"v":0,"d":"R0.00"}]
[]
[null,{"v":6,"d":"6 "},null,null,"Extra over 60mm rainwater pipe for eaves offset","no",{"v":300,"d":"300 "},null,{"v":0,"d":"R0.00"}]
[]
[{"$nulls":4},"Fullbore cast iron outlets"]
[]
[null,{"v":7,"d":"7 "},null,null,"76mm diameter 90 Degree side outlet","No",{"v":300,"d":"300 "},null,{"v":0,"d":"R0.00"}]
[]
[{"$nulls":4},"Sundries"]
[]
[null,{"v":8,"d":"8 "},null,null,"50mm diameter x 300mm long galvanised mild\nsteel spout","No",{"v":250,"d":"250 "},null,{"v":0,"d":"R0.00"}]
[]
[{"$nulls":4},"SANITARY FITTINGS ( to be similar or approved)"]
[]
[{"$nulls":4},"New sanitary fittings, to be similar or approved, etc\nincluding connecting pipes to fittings and making\ngood floor and wall finishes"]
[]
[null,{"v":9,"d":"9 "},null,null,"Stainless steel wash hand basin","No",{"v":100,"d":"100 "},null,{"v":0,"d":"R0.00"}]
[]
[null,{"v":10,"d":"10 "},null,null,"Stainless steel sink and drainer","No",{"v":100,"d":"100 "},null,{"v":0,"d":"R0.00"}]
[]
[null,{"v":11,"d":"11 "},null,null,"Wash hand basin","No",{"v":100,"d":"100 "},null,{"v":0,"d":"R0.00"}]
[]
[null,{"v":12,"d":"12 "},null,null,"Wash hand basin on pedestal","No",{"v":100,"d":"100 "},null,{"v":0,"d":"R0.00"}]
[]
[null,{"v":13,"d":"13 "},null,null,"Pedestal only","No",100,null,{"v":0,"d":"R0.00"}]
[]
[null,{"v":14,"d":"14 "},null,null,"WC pan only","No",100,null,{"v":0,"d":"R0.00"}]
[]
[null,{"v":15,"d":"15 "},null,null,"WC pan with cistern","No",100,null,{"v":0,"d":"R0.00"}]
[]
[null,{"v":16,"d":"16 "},null,null,"WC pan with flush valve","No",100,null,{"v":0,"d":"R0.00"}]
[]
[null,{"v":17,"d":"17 "},null,null,"Cistern and internal flushing mechanism","No",100,null,{"v":0,"d":"R0.00"}]
[]
[null,{"v":18,"d":"18 "},null,null,"Cistern only","No",100,null,{"v":0,"d":"R0.00"}]
[]
[null,{"v":19,"d":"19 "},null,null,"Cistern internal flushing mechanism only","No",100,null,{"v":0,"d":"R0.00"}]
[]
[null,{"v":20,"d":"20 "},null,null,"WC seat and cover","No",100,null,{"v":0,"d":"R0.00"}]
[]
[null,{"v":21,"d":"21 "},null,null,"WC pan connector","No",100,null,{"v":0,"d":"R0.00"}]
[]
[null,{"v":22,"d":"22 "},null,null,"Wall hung urinal with flush valve","No",100,null,{"v":0,"d":"R0.00"}]
[]
[null,{"v":23,"d":"23 "},null,null,"Wall hung urinal only","No",100,null,{"v":0,"d":"R0.00"}]
[]
[null,{"v":24,"d":"24 "},null,null,"Urinal flush valve","No",100,null,{"v":0,"d":"R0.00"}]
[]
[{"$nulls":4},"WASTE UNIONS ETC"]
[]
[null,{"v":25,"d":"25 "},null,null,"32mm Bath overflow","No",100,null,{"v":0,"d":"R0.00"}]
[]
[null,{"v":26,"d":"26 "},null,null,"32mm Basin waste","No",100,null,{"v":0,"d":"R0.00"}]
[]
[null,{"v":27,"d":"27 "},null,null,"32mm waste","No",100,null,{"v":0,"d":"R0.00"}]
[]
[null,{"v":28,"d":"28 "},null,null,"38mm bath or sink waste","No",100,null,{"v":0,"d":"R0.00"}]
[]
[{"$nulls":4},"TRAPS ETC"]
[]
[null,{"v":29,"d":"29 "},null,null,"32mm Reseal \"P\" or \"S\" trap","No",150,null,{"$f":"G191*H191","v":{"v":0,"d":"R0.00"}}]
[]
[null,{"v":30,"d":"30 "},null,null,"40mm Bath trap complete with overflow outlet and\npipe","No",150,null,{"v":0,"d":"R0.00"}]
[]
[null,{"v":31,"d":"31 "},null,null,"40 x 300mm Sink combination for double bowl with\ndeepseal \"P\" trap","No",150,null,{"v":0,"d":"R0.00"}]
[]
[null,{"v":32,"d":"32 "},null,null,"40mm Anti-vac bottle trap","No",150,null,{"v":0,"d":"R0.00"}]
[]
[{"$nulls":4},"Approved Chromium plated"]
[]
[null,{"v":33,"d":"33 "},null,null,"40mm Chrome plated Bottle trap","No",150,null,{"v":0,"d":"R0.00"}]
[]
[null,{"v":34,"d":"34 "},null,null,"75mm Chrome Plated hinged urinal domical grating","No",150,null,{"v":0,"d":"R0.00"}]
[]
[{"$nulls":4},"Brass"]
[]
[null,{"v":35,"d":"35 "},null,null,"Stopcock","No",150,null,{"v":0,"d":"R0.00"}]
[]
[null,{"v":36,"d":"36 "},null,null,"Fullway gate valve","No",150,null,{"v":0,"d":"R0.00"}]
[]
[null,{"v":37,"d":"37 "},null,null,"Bibcock with hose union","No",150,null,{"v":0,"d":"R0.00"}]
[]
[null,{"v":38,"d":"38 "},null,null,"Non-return valve","No",150,null,{"v":0,"d":"R0.00"}]
[]
[{"$nulls":4},"Approved Chromium plated"]
[]
[null,{"v":39,"d":"39 "},null,null,"Chrome Plated angle regulating valve","No",150,null,{"v":0,"d":"R0.00"}]
[]
[null,{"v":40,"d":"40 "},null,null,"Chrome Plated stopcock","No",150,null,{"v":0,"d":"R0.00"}]
[]
[null,{"v":41,"d":"41 "},null,null,"Chrome Plated \"Star\" underwall pattern stopcock","No",150,null,{"v":0,"d":"R0.00"}]
[]
[null,{"v":42,"d":"42 "},null,null,"Fullway gate valve","No",150,null,{"v":0,"d":"R0.00"}]
[]
[null,{"v":43,"d":"43 "},null,null,"Bibcock","No",150,null,{"v":0,"d":"R0.00"}]
[]
[null,{"v":44,"d":"44 "},null,null,"Bibcock with hose union","No",150,null,{"v":0,"d":"R0.00"}]
[]
[null,{"v":45,"d":"45 "},null,null,"Chrome Plated bibcock","No",150,null,{"v":0,"d":"R0.00"}]
[]
[null,{"v":46,"d":"46 "},null,null,"Chrome Plated pillarcock","No",150,null,{"v":0,"d":"R0.00"}]
[]
[null,{"v":47,"d":"47 "},null,null,"Chrome Plated single taphole basin mixer","No",150,null,{"v":0,"d":"R0.00"}]
[]
[null,{"v":48,"d":"48 "},null,null,"Chrome Plated sink mixer","No",150,null,{"v":0,"d":"R0.00"}]
[]
[null,{"v":49,"d":"49 "},null,null,"Chrome Plated bath mixer","No",150,null,{"v":0,"d":"R0.00"}]
[]
[null,{"v":50,"d":"50 "},null,null,"Chrome Plated bath mixer with hand shower","No",150,null,{"v":0,"d":"R0.00"}]
[]
[null,{"v":51,"d":"51 "},null,null,"Chrome Plated shower mixer","No",150,null,{"v":0,"d":"R0.00"}]
[]
[null,{"v":52,"d":"52 "},null,null,"Chrome Plated shower rose","No",150,null,{"v":0,"d":"R0.00"}]
[]
[null,{"v":53,"d":"53 "},null,null,"Chrome Plated overhead shower arm","No",150,null,{"v":0,"d":"R0.00"}]
[]
[null,{"v":54,"d":"54 "},null,null,"In-line strainer","No",150,null,{"v":0,"d":"R0.00"}]
[]
[null,{"v":55,"d":"55 "},null,null,"Chrome Plated fullway ballcock","No",150,null,{"v":0,"d":"R0.00"}]
[]
[null,{"v":56,"d":"56 "},null,null,"Fullway ballcock","No",150,null,{"v":0,"d":"R0.00"}]
[]
[null,{"v":57,"d":"57 "},null,null,"PB1.10RB vacuum breaker","No",150,null,{"$f":"G253*H253","v":{"v":0,"d":"R0.00"}}]
[]
[null,{"v":58,"d":"58 "},null,null,"PA1.1RB \"Kwikflo\" 400 kPa pressure reducing\nvalve","No",150,null,{"v":0,"d":"R0.00"}]
[]
[null,{"v":59,"d":"59 "},null,null,"Flushmaster Junior toilet flush valve","No",150,null,{"v":0,"d":"R0.00"}]
[]
[null,{"v":60,"d":"60 "},null,null,"Flushmaster Junior urinal flush valve","No",150,null,{"v":0,"d":"R0.00"}]
[]
[null,{"v":61,"d":"61 "},null,null,"Flushmaster toilet flush valve","No",150,null,{"v":0,"d":"R0.00"}]
[]
[{"$nulls":4},"SANITARY PLUMBING"]
[]
[{"$nulls":4},"uPVC Pipes"]
[]
[null,{"v":62,"d":"62 "},null,null,"40mm Diameter pipes","m",500,null,{"v":0,"d":"R0.00"}]
[]
[null,{"v":63,"d":"63 "},null,null,"50mm Diameter pipes","m",500,null,{"v":0,"d":"R0.00"}]
[]
[null,{"v":64,"d":"64 "},null,null,"110mm Diameter pipes","m",500,null,{"v":0,"d":"R0.00"}]
[]
[{"$nulls":4},"Extra over for uPVC for fittings"]
[]
[null,{"v":65,"d":"65 "},null,null,"40mm Bend","No",100,null,{"v":0,"d":"R0.00"}]
[]
[null,{"v":66,"d":"66 "},null,null,"50mm Bend","No",100,null,{"v":0,"d":"R0.00"}]
[]
[null,{"v":67,"d":"67 "},null,null,"110mm Bend","No",100,null,{"v":0,"d":"R0.00"}]
[]
[null,{"v":68,"d":"68 "},null,null,"40mm Junction","No",100,null,{"v":0,"d":"R0.00"}]
[]
[null,{"v":69,"d":"69 "},null,null,"50mm Junction","No",100,null,{"v":0,"d":"R0.00"}]
[]
[null,{"v":70,"d":"70 "},null,null,"110mm Junction","No",100,null,{"v":0,"d":"R0.00"}]
[]
[null,{"v":71,"d":"71 "},null,null,"40mm Inspection Junction","No",100,null,{"v":0,"d":"R0.00"}]
[]
[null,{"v":72,"d":"72 "},null,null,"50mm Inspection Junction","No",100,null,{"v":0,"d":"R0.00"}]
[]
[null,{"v":73,"d":"73 "},null,null,"110mm Inspection Junction","No",100,null,{"v":0,"d":"R0.00"}]
[]
[null,{"v":74,"d":"74 "},null,null,"50mm Reducing Junction","No",100,null,{"v":0,"d":"R0.00"}]
[]
[null,{"v":75,"d":"75 "},null,null,"110mm Reducing Junction","No",100,null,{"v":0,"d":"R0.00"}]
[]
[null,{"v":76,"d":"76 "},null,null,"110mm Pan connector","No",100,null,{"v":0,"d":"R0.00"}]
[]
[null,{"v":77,"d":"77 "},null,null,"110mm \"GI Two way\" vent valve","No",100,null,{"v":0,"d":"R0.00"}]
[]
[null,{"v":78,"d":"78 "},null,null,"50mm \"GI Two way\" vent valve","No",100,null,{"v":0,"d":"R0.00"}]
[]
[{"$nulls":4},"HOT AND COLD WATER SERVICES"]
[]
[{"$nulls":4},"Class 1 copper (hard drawn) pipes"]
[]
[null,{"v":79,"d":"79 "},null,null,"15mm Pipes to walls etc","m",{"v":500,"d":"500 "},null,{"v":0,"d":"R0.00"}]
[]
[null,{"v":80,"d":"80 "},null,null,"22mm Pipes to walls etc","m",{"v":500,"d":"500 "},null,{"v":0,"d":"R0.00"}]
[]
[null,{"v":81,"d":"81 "},null,null,"28mm Pipes to walls etc","m",{"v":500,"d":"500 "},null,{"v":0,"d":"R0.00"}]
[]
[null,{"v":82,"d":"82 "},null,null,"35mm Pipes to walls etc","m",{"v":500,"d":"500 "},null,{"v":0,"d":"R0.00"}]
[]
[{"$nulls":4},"Extra over class 1 copper (hard drawn) pipes for\ncapillary fittings"]
[]
[null,{"v":83,"d":"83 "},null,null,"15mm Fittings","No",250,null,{"$f":"G317*H317","v":{"v":0,"d":"R0.00"}}]
[]
[null,{"v":84,"d":"84 "},null,null,"22mm Fittings","No",250,null,{"v":0,"d":"R0.00"}]
[]
[null,{"v":85,"d":"85 "},null,null,"28mm Fittings","No",250,null,{"v":0,"d":"R0.00"}]
[]
[null,{"v":86,"d":"86 "},null,null,"35mm Reducer","No",250,null,{"v":0,"d":"R0.00"}]
[]
[null,{"v":87,"d":"87 "},null,null,"35mm Elbow","No",250,null,{"v":0,"d":"R0.00"}]
[]
[null,{"v":88,"d":"88 "},null,null,"35mm Tee","No",250,null,{"v":0,"d":"R0.00"}]
[]
[{"$nulls":4},"Precast Concrete"]
[]
[null,{"v":89,"d":"89 "},null,null,"Precast concrete gulley, overall size 430 x 440mm,\nbedded and jointed in Class II motar and pointed\non all exposed faces.","No",1,null,{"v":0,"d":"R0.00"}]
[]
[{"$nulls":4},"TESTING"]
[]
[null,{"v":90,"d":"90 "},null,null,"Testing water pipe system","item",{"v":1,"d":"1 "},null,{"v":0,"d":"R0.00"}]
[]
[null,{"v":91,"d":"91 "},null,null,"Testing sewer/ waste pipe system","item",{"v":1,"d":"1 "},null,{"v":0,"d":"R0.00"}]
[]
[]
[{"$nulls":4},"Section B15 - Plumbing and Drainage: Carried forward to sectional summary page",{"$nulls":3},{"$f":"SUM(I122:I338)","v":{"v":0,"d":"R0.00"}}]

{"sheet":"S2 - B16 Glazing","index":18,"n_rows":77,"n_cols":9,"rows_kept":77,"merged":[[0,1,0,4]]}
[null,"CITY OF TSWANE - GROUP PROPERTY DEPARTMENT\nTENDER NO: GPM 03 – 2023/24\nTENDER:  MAINTENANCE "]
[]
[null,"ITEM NO","PAYMENT CLAUSE","LI","DESCRIPTION","UNIT","QTY","RATE","TENDER AMOUNT"]
[]
[{"$nulls":4},"SECTION 2 "]
[]
[{"$nulls":4},"BILL NO 16"]
[]
[{"$nulls":4},"GLAZING"]
[]
[{"$nulls":4},"GLAZING TO METAL / WOOD WITH PUTTY OR\nBEADS"]
[]
[{"$nulls":4},"4mm Clear float glass"]
[]
[null,{"v":1,"d":"1 "},null,null,"Panes not exceeding 0,1 m2","m2",100,null,{"$f":"G15*H15","v":{"v":0,"d":"R0.00"}}]
[]
[null,{"v":2,"d":"2 "},null,null,"Panes exceeding 0,1m2 and not exceeding 0,5m2","m2",100,null,{"$f":"G17*H17","v":{"v":0,"d":"R0.00"}}]
[]
[null,{"v":3,"d":"3 "},null,null,"Panes exceeding 0,5m2 and not exceeding 2m2","m2",100,null,{"v":0,"d":"R0.00"}]
[]
[null,{"v":4,"d":"4 "},null,null,"Panes exceeding 2m2 and not exceeding 4m2","m2",100,null,{"v":0,"d":"R0.00"}]
[]
[{"$nulls":4},"4mm Patterned glass"]
[]
[null,{"v":5,"d":"5 "},null,null,"Panes not exceeding 0,1 m2","m2",100,null,{"v":0,"d":"R0.00"}]
[]
[null,{"v":6,"d":"6 "},null,null,"Panes exceeding 0,1m2 and not exceeding 0,5m2","m2",100,null,{"v":0,"d":"R0.00"}]
[]
[null,{"v":7,"d":"7 "},null,null,"Panes exceeding 0,5m2 and not exceeding 2m2","m2",100,null,{"v":0,"d":"R0.00"}]
[]
[null,{"v":8,"d":"8 "},null,null,"Panes exceeding 2m2 and not exceeding 4m2","m2",100,null,{"v":0,"d":"R0.00"}]
[]
[{"$nulls":4},"6mm Georgian wired rough cast glass"]
[]
[null,{"v":9,"d":"9 "},null,null,"Panes not exceeding 0,1 m2","m2",100,null,{"v":0,"d":"R0.00"}]
[]
[null,{"v":10,"d":"10 "},null,null,"Panes exceeding 0,1m2 and not exceeding 0,5m2","m2",100,null,{"v":0,"d":"R0.00"}]
[]
[null,{"v":11,"d":"11 "},null,null,"Panes exceeding 0,5m2 and not exceeding 2m2","m2",100,null,{"v":0,"d":"R0.00"}]
[]
[null,{"v":12,"d":"12 "},null,null,"Panes exceeding 2m2 and not exceeding 4m2","m2",100,null,{"v":0,"d":"R0.00"}]
[]
[{"$nulls":4},"6mm Clear toughened safety glass"]
[]
[null,{"v":13,"d":"13 "},null,null,"Panes not exceeding 0,1 m2","m2",100,null,{"v":0,"d":"R0.00"}]
[]
[null,{"v":14,"d":"14 "},null,null,"Panes exceeding 0,1m2 and not exceeding 0,5m2","m2",100,null,{"v":0,"d":"R0.00"}]
[]
[null,{"v":15,"d":"15 "},null,null,"Panes exceeding 0,5m2 and not exceeding 2m2","m2",100,null,{"v":0,"d":"R0.00"}]
[]
[null,{"v":16,"d":"16 "},null,null,"Panes exceeding 2m2 and not exceeding 4m2","m2",100,null,{"v":0,"d":"R0.00"}]
[]
[{"$nulls":4},"MIRRORS, ETC"]
[]
[null,{"v":17,"d":"17 "},null,null,"New Works"]
[]
[{"$nulls":4},"6mm Silvered float glass copper backed mirrors with 10 mm bevelled and polished edges holed for and fixed with chromium plated dome capped mirror screws with rubber buffers to plugs in brickwork or concrete"]
[]
[null,{"v":18,"d":"18 "},null,null,"Mirror 450 x 450 mm high","No",100,null,{"v":0,"d":"R0.00"}]
[]
[null,{"v":19,"d":"19 "},null,null,"Mirror 450 x 600 mm high","No",100,null,{"v":0,"d":"R0.00"}]
[]
[null,{"v":20,"d":"20 "},null,null,"Mirror 450 x 900 mm high","No",100,null,{"v":0,"d":"R0.00"}]
[]
[null,{"v":21,"d":"21 "},null,null,"Mirror 450 x 1200 mm high","No",100,null,{"v":0,"d":"R0.00"}]
[]
[null,{"v":22,"d":"22 "},null,null,"Mirror 600 x 600 mm high","No",100,null,{"v":0,"d":"R0.00"}]
[]
[null,{"v":23,"d":"23 "},null,null,"Mirror 600 x 900 mm high","No",100,null,{"v":0,"d":"R0.00"}]
[]
[null,{"v":24,"d":"24 "},null,null,"Mirror 600 x 1200 mm high","No",100,null,{"v":0,"d":"R0.00"}]
[]
[null,{"v":25,"d":"25 "},null,null,"Mirror 600 x 1500 mm high","No",100,null,{"v":0,"d":"R0.00"}]
[]
[]
[]
[{"$nulls":4},"Section B16 - Glazing: Carried forward to sectional summary page",{"$nulls":3},{"$f":"SUM(I15:I76)","v":{"v":0,"d":"R0.00"}}]

{"sheet":"S2 - B17 Painting","index":19,"n_rows":206,"n_cols":9,"rows_kept":206,"merged":[[0,1,0,4]]}
[null,"CITY OF TSWANE - GROUP PROPERTY DEPARTMENT\nTENDER NO: GPM 03 – 2023/24\nTENDER:  MAINTENANCE "]
[]
[null,"ITEM NO","PAYMENT CLAUSE","LI","DESCRIPTION","UNIT","QTY","RATE","TENDER AMOUNT"]
[]
[{"$nulls":4},"SECTION 2 "]
[]
[{"$nulls":4},"BILL NO 17"]
[]
[{"$nulls":4},"PAINTWORK"]
[]
[{"$nulls":4},"PREPARATORY WORK TO EXISTING WORK"]
[]
[{"$nulls":4},"Previously painted plastered surfaces"]
[]
[{"$nulls":4},"Surfaces shall be thoroughly washed down and allowed\nto dry completely before any paint is applied. Blistered\nor peeling paint shall be completely removed and cracks\nshall be opened, filled with a suitable filler and finished\nsmooth"]
[]
[{"$nulls":4},"Previously painted metal surfaces"]
[]
[{"$nulls":4},"Surfaces shall be thoroughly rubbed and cleaned down.\nBlistered or peeling paint shall be completely removed\ndown to bare metal"]
[]
[{"$nulls":4},"Previously painted wood surfaces"]
[]
[{"$nulls":4},"Surfaces shall be thoroughly cleaned down. Blistered or\npeeling paint shall be completely removed and cracks\nand crevices shall be primed, filled with suitable filler\nand finished smooth"]
[]
[{"$nulls":4},"PAINTWORK ETC TO PREVIOUSLY PAINTED\nWORK"]
[]
[{"$nulls":4},"Note: All paintwork to be SABS approved\nproduct"]
[]
[{"$nulls":4},"Primers - SANS 312,678,679,723,912,926"]
[{"$nulls":4},"Undercoats - SANS 681"]
[{"$nulls":4},"Finishing - SANS 515,630,1586,684,801,802,887"]
[]
[{"$nulls":4},"On Floated Plaster"]
[]
[{"$nulls":4},"Apply two coats of Acrylic PVA emulsion paint on\nwork previously painted"]
[]
[null,{"v":1,"d":"1 "},null,null,"On internal walls","m2",1500,null,{"$f":"G37*H37","v":{"v":0,"d":"R0.00"}}]
[]
[null,{"v":2,"d":"2 "},null,null,"On external walls","m2",1500,null,{"$f":"G39*H39","v":{"v":0,"d":"R0.00"}}]
[]
[null,{"v":3,"d":"3 "},null,null,"On ceilings and beams","m2",1500,null,{"v":0,"d":"R0.00"}]
[]
[null,{"v":4,"d":"4 "},null,null,"On ceilings and cornices","m2",1500,null,{"v":0,"d":"R0.00"}]
[]
[null,{"v":5,"d":"5 "},null,null,"On fascias and barge boards not exceeding 300\nmm girth","m",1000,null,{"v":0,"d":"R0.00"}]
[]
[{"$nulls":4},"On Smooth Concrete"]
[]
[{"$nulls":4},"Apply two coats of Acrylic PVA emulsion paint on\nwork previously painted"]
[]
[null,{"v":6,"d":"6 "},null,null,"On internal walls","m2",1500,null,{"v":0,"d":"R0.00"}]
[]
[null,{"v":7,"d":"7 "},null,null,"On external walls","m2",1500,null,{"v":0,"d":"R0.00"}]
[]
[null,{"v":8,"d":"8 "},null,null,"On ceilings and beams","m2",1500,null,{"v":0,"d":"R0.00"}]
[]
[null,{"v":9,"d":"9 "},null,null,"On ceilings and cornices","m2",{"v":1500,"d":"1,500 "},null,{"v":0,"d":"R0.00"}]
[]
[{"$nulls":4},"On Fair Faced Brickwork"]
[]
[{"$nulls":4},"Apply two coats of Acrylic PVA emulsion paint on\nwork previously painted"]
[]
[null,{"v":10,"d":"10 "},null,null,"On internal walls","m2",1500,null,{"v":0,"d":"R0.00"}]
[]
[null,{"v":11,"d":"11 "},null,null,"On external walls","m2",1500,null,{"v":0,"d":"R0.00"}]
[]
[{"$nulls":4},"Prepare and apply two coats brick dressing on"]
[]
[null,{"v":12,"d":"12 "},null,null,"Existing surfaces of face brickwork","m2",500,null,{"v":0,"d":"R0.00"}]
[]
[{"$nulls":4},"On Plaster Board"]
[]
[{"$nulls":4},"Apply two coats of Acrylic PVA emulsion paint on\nwork previously painted"]
[]
[null,{"v":13,"d":"13 "},null,null,"On ceilings and cornices","m2",1000,null,{"v":0,"d":"R0.00"}]
[]
[null,{"v":14,"d":"14 "},null,null,"On fascias and barge boards not exceeding 300\nmm girth","m",500,null,{"v":0,"d":"R0.00"}]
[]
[{"$nulls":4},"On Fibre-Cement"]
[]
[{"$nulls":4},"Apply two coats of Acrylic PVA emulsion paint on\nwork previously painted"]
[]
[null,{"v":15,"d":"15 "},null,null,"On ceilings and cornices","m2",1000,null,{"v":0,"d":"R0.00"}]
[]
[null,{"v":16,"d":"16 "},null,null,"On fascias and barge boards not exceeding 300\nmm girth","m",500,null,{"v":0,"d":"R0.00"}]
[]
[{"$nulls":4},"On Metal"]
[]
[{"$nulls":4},"Prepare and apply one undercoat and two finishing\ncoats of gloss paint on metalworks"]
[]
[null,{"v":17,"d":"17 "},null,null,"On doors","m2",300,null,{"v":0,"d":"R0.00"}]
[]
[null,{"v":18,"d":"18 "},null,null,"On door frames","m2",250,null,{"v":0,"d":"R0.00"}]
[]
[null,{"v":19,"d":"19 "},null,null,"On windows (both sides measured flat)","m2",250,null,{"v":0,"d":"R0.00"}]
[]
[null,{"v":20,"d":"20 "},null,null,"On windows with burglar bars (both sides\nmeasured flat)","m2",300,null,{"v":0,"d":"R0.00"}]
[]
[{"$nulls":4},"On Wood"]
[]
[{"$nulls":4},"Prepare and apply one coat wood primer, one\nundercoat and one finishing coat alkyd enamel paint\nin colours which have a value of 7 or less on the\nMunsell system in accordance with SABS 1091"]
[]
[null,{"v":21,"d":"21 "},null,null,"On boarded panelling","m2",1000,null,{"$f":"G103*H103","v":{"v":0,"d":"R0.00"}}]
[]
[null,{"v":22,"d":"22 "},null,null,"On boarded ceilings","m2",1000,null,{"v":0,"d":"R0.00"}]
[]
[null,{"v":23,"d":"23 "},null,null,"On doors","m2",1000,null,{"v":0,"d":"R0.00"}]
[]
[null,{"v":24,"d":"24 "},null,null,"On windows, sash doors and fanlights","m2",500,null,{"v":0,"d":"R0.00"}]
[]
[null,{"v":25,"d":"25 "},null,null,"On door frames etc","m2",300,null,{"v":0,"d":"R0.00"}]
[]
[null,{"v":26,"d":"26 "},null,null,"On roof timbers at eaves and verges","m2",300,null,{"v":0,"d":"R0.00"}]
[]
[null,{"v":27,"d":"27 "},null,null,"On skirtings, rails, etc not exceeding 300 mm girth","m",500,null,{"v":0,"d":"R0.00"}]
[]
[{"$nulls":4},"PAINTWORK ETC TO NEW WORK"]
[]
[{"$nulls":4},"Note: All paintwork to be SABS approved\nproduct"]
[]
[{"$nulls":4},"On Floated Plaster"]
[]
[{"$nulls":4},"Prepare and apply one undercoat and two finishing\ncoats of Acrylic PVA emulsion paint to match\nexisting"]
[]
[null,{"v":28,"d":"28 "},null,null,"On internal walls","m2",1500,null,{"v":0,"d":"R0.00"}]
[]
[null,{"v":29,"d":"29 "},null,null,"On external walls","m2",1500,null,{"v":0,"d":"R0.00"}]
[]
[null,{"v":30,"d":"30 "},null,null,"On ceilings and beams","m2",1500,null,{"v":0,"d":"R0.00"}]
[]
[null,{"v":40,"d":"40 "},null,null,"On ceilings and cornices","m2",1500,null,{"v":0,"d":"R0.00"}]
[]
[null,{"v":41,"d":"41 "},null,null,"On fascias and barge boards not exceeding 300\nmm girth","m",1000,null,{"v":0,"d":"R0.00"}]
[]
[{"$nulls":4},"On Smooth Concrete"]
[]
[{"$nulls":4},"Prepare and apply one undercoat and two finishing\ncoats of Acrylic PVA emulsion paint to match\nexisting"]
[]
[null,{"v":42,"d":"42 "},null,null,"On internal walls","m2",1000,null,{"v":0,"d":"R0.00"}]
[]
[null,{"v":43,"d":"43 "},null,null,"On external walls","m2",1000,null,{"v":0,"d":"R0.00"}]
[]
[null,{"v":44,"d":"44 "},null,null,"On ceilings and beams","m2",1000,null,{"v":0,"d":"R0.00"}]
[]
[null,{"v":45,"d":"45 "},null,null,"On ceilings and cornices","m2",{"v":1000,"d":"1,000 "},null,{"v":0,"d":"R0.00"}]
[]
[{"$nulls":4},"On Fair Faced Brickwork"]
[]
[{"$nulls":4},"Prepare and apply one undercoat and two finishing\ncoats of Acrylic PVA emulsion paint to match\nexisting"]
[]
[null,{"v":46,"d":"46 "},null,null,"On internal walls","m2",1000,null,{"v":0,"d":"R0.00"}]
[]
[null,{"v":47,"d":"47 "},null,null,"On external walls","m2",1000,null,{"v":0,"d":"R0.00"}]
[]
[{"$nulls":4},"Prepare and apply two coats brick dressing on"]
[]
[null,{"v":48,"d":"48 "},null,null,"Existing surfaces of face brickwork","m2",500,null,{"v":0,"d":"R0.00"}]
[]
[{"$nulls":4},"On Plaster Board"]
[]
[{"$nulls":4},"Prepare and apply \"Drikote Sealer\" or similar\napproved clear sealing compound in accordance\nwith manufacturer's instructions on:"]
[]
[null,{"v":49,"d":"49 "},null,null,"On ceilings and cornices","m2",1000,null,{"v":0,"d":"R0.00"}]
[]
[null,{"v":50,"d":"50 "},null,null,"On fascias and barge boards not exceeding 300\nmm girth","m",500,null,{"v":0,"d":"R0.00"}]
[]
[{"$nulls":4},"On Fibre-Cement"]
[]
[{"$nulls":4},"Prepare and apply one undercoat and two finishing\ncoats of Acrylic PVA emulsion paint to match\nexisting"]
[]
[null,{"v":51,"d":"51 "},null,null,"On ceilings and cornices","m2",1000,null,{"$f":"G171*H171","v":{"v":0,"d":"R0.00"}}]
[]
[null,{"v":52,"d":"52 "},null,null,"On fascias and barge boards not exceeding 300\nmm girth","m",500,null,{"v":0,"d":"R0.00"}]
[]
[{"$nulls":4},"On Metal"]
[]
[{"$nulls":4},"Prepare and apply one undercoat and two finishing\ncoats of gloss paint on metalworks"]
[]
[null,{"v":53,"d":"53 "},null,null,"On doors","m2",300,null,{"v":0,"d":"R0.00"}]
[]
[null,{"v":54,"d":"54 "},null,null,"On door frames","m2",250,null,{"v":0,"d":"R0.00"}]
[]
[null,{"v":55,"d":"55 "},null,null,"On windows (both sides measured flat)","m2",250,null,{"v":0,"d":"R0.00"}]
[]
[null,{"v":56,"d":"56 "},null,null,"On windows with burglar bars (both sides\nmeasured flat)","m2",300,null,{"v":0,"d":"R0.00"}]
[]
[{"$nulls":4},"On Wood"]
[]
[{"$nulls":4},"Prepare and apply one coat wood primer, one\nundercoat and one finishing coat alkyd enamel paint\nin colours which have a value of 7 or less on the\nMunsell system in accordance with SABS 1091"]
[]
[null,{"v":57,"d":"57 "},null,null,"On boarded panelling","m2",1000,null,{"v":0,"d":"R0.00"}]
[]
[null,{"v":58,"d":"58 "},null,null,"On boarded ceilings","m2",1000,null,{"v":0,"d":"R0.00"}]
[]
[null,{"v":59,"d":"59 "},null,null,"On doors","m2",1000,null,{"v":0,"d":"R0.00"}]
[]
[null,{"v":60,"d":"60 "},null,null,"On windows, sash doors and fanlights","m2",500,null,{"v":0,"d":"R0.00"}]
[]
[null,{"v":61,"d":"61 "},null,null,"On door frames etc","m2",300,null,{"v":0,"d":"R0.00"}]
[]
[null,{"v":62,"d":"62 "},null,null,"On roof timbers at eaves and verges","m2",300,null,{"v":0,"d":"R0.00"}]
[]
[null,{"v":63,"d":"63 "},null,null,"On skirtings, rails, etc not exceeding 300 mm girth","m",500,null,{"v":0,"d":"R0.00"}]
[]
[]
[{"$nulls":4},"Section B17 - Paiting: Carried forward to sectional summary page",{"$nulls":3},{"$f":"SUM(I37:I205)","v":{"v":0,"d":"R0.00"}}]

{"sheet":"S3 - B1 External works","index":20,"n_rows":45,"n_cols":9,"rows_kept":45,"merged":[[0,1,0,4]]}
[null,"CITY OF TSWANE - GROUP PROPERTY DEPARTMENT\nTENDER NO: GPM 03 – 2023/24\nTENDER:  MAINTENANCE "]
[]
[null,"ITEM NO","PAYMENT CLAUSE","LI","DESCRIPTION","UNIT","QTY","RATE","TENDER AMOUNT"]
[]
[{"$nulls":4},"SECTION 3"]
[]
[{"$nulls":4},"BILL NO 1"]
[]
[{"$nulls":4},"EXTERNAL WORKS"]
[]
[{"$nulls":4},"PAVING"]
[]
[{"$nulls":4},"Existing paving"]
[]
[null,{"v":1,"d":"1 "},null,null,"Removal of damaged paving and making good to receive new paving (elswhere measured)","m2",1000,null,{"$f":"G15*H15","v":{"v":0,"d":"R0.00"}}]
[]
[{"$nulls":4},"New Paving"]
[]
[{"$nulls":4},"Interlocking"]
[]
[null,{"v":2,"d":"2 "},null,null,"60mm Interlocking paving bricks","m2",{"v":1000,"d":"1,000 "},null,{"$f":"G21*H21","v":{"v":0,"d":"R0.00"}}]
[]
[null,{"v":3,"d":"3 "},null,null,"80mm Interlocking paving bricks","m2",{"v":1000,"d":"1,000 "},null,{"v":0,"d":"R0.00"}]
[]
[{"$nulls":4},"Rectangular"]
[]
[null,{"v":4,"d":"4 "},null,null,"50mm rectangular paving bricks","m2",{"v":1000,"d":"1,000 "},null,{"v":0,"d":"R0.00"}]
[]
[null,{"v":5,"d":"5 "},null,null,"80mm rectangular paving bricks","m2",{"v":1000,"d":"1,000 "},null,{"v":0,"d":"R0.00"}]
[]
[null,{"v":6,"d":"6 "},null,null,"Extra over paving for edge bullnose paving","m",1000,null,{"v":0,"d":"R0.00"}]
[]
[{"$nulls":4},"KERBING AND CHANNELLING"]
[]
[{"$nulls":4},"Concrete kerbing"]
[]
[null,{"v":7,"d":"7 "},null,null,"200mm x 180mm (25Mpa/19mm) Concrete in-situ edge restraints, with radius greater than 20m.","m",1000,null,{"v":0,"d":"R0.00"}]
[]
[null,{"v":8,"d":"8 "},null,null,"Transition kerb size 200mm sloping to 180mm wide x 1000mm long","m",1000,null,{"v":0,"d":"R0.00"}]
[]
[]
[]
[]
[]
[{"$nulls":4},"Section 3 - B1 - External Works: Carried forward to sectional summary page",{"$nulls":3},{"$f":"SUM(I15:I44)","v":{"v":0,"d":"R0.00"}}]

{"sheet":"S4 - B1 Provisional Sum","index":21,"n_rows":61,"n_cols":9,"rows_kept":61,"merged":[[0,1,0,4]]}
[null,"CITY OF TSWANE - GROUP PROPERTY DEPARTMENT\nTENDER NO: GPM 03 – 2023/24\nTENDER:  MAINTENANCE "]
[]
[null,"ITEM NO","PAYMENT CLAUSE","LI","DESCRIPTION","UNIT","QTY","RATE","TENDER AMOUNT"]
[]
[{"$nulls":4},"SECTION 4"]
[]
[{"$nulls":4},"BILL NO 1"]
[]
[{"$nulls":4},"PROVISIONAL SUMS"]
[]
[{"$nulls":4},"PROVISIONAL SUMS FOR THE MAIN\nCONTRACT / NOMINATED OR SELECTED\nSUBCONTRACT"]
[]
[{"$nulls":4},"SUPPLEMENTARY PREAMBLES"]
[]
[{"$nulls":4},"General"]
[]
[{"$nulls":4},"All prime cost amounts and provisional sums are net.\nPrime cost amounts include for delivery to site of all\narticles concerned"]
[]
[{"$nulls":4},"Profit"]
[]
[{"$nulls":4},"Where stated, the contractor may allow for profit if\nrequired"]
[]
[{"$nulls":4},"General attendance on selected subcontractors"]
[]
[{"$nulls":4},"The item \"Attendance\" which follows each provisional\nsum for selected subcontractors' work, shall be deemed\nto cover all the contractor's costs incurred in providing\nfree of charge to the selected subcontractors, the\nfollowing:\nGeneral attendance on selected subcontractors\n        1. The services as set out in clause B9 of the\nPreliminaries\n        2. Hoisting of the selected subcontractor's material\nin batches that can be handled by the\ncontractor's hoist or crane during normal\nworking hours\n        3. Making good in all trades and cleaning down\nand removal of rubbish on completion"]
[]
[{"$nulls":4},"Contingency sums"]
[]
[{"$nulls":4},"Work for which contingency sums are allowed will be\nmeasured and valued in accordance with clause 32 of\nthe Principal Building Agreement and deducted in whole\nor in part if not required"]
[]
[{"$nulls":4},"Preliminaries"]
[]
[{"$nulls":4},"The contractor is referred to the Preliminaries for further\namplification of \"Prime Cost Amounts and Provisional\nSums\""]
[]
[{"$nulls":4},"PROVISIONAL SUMS FOR THE MAIN"]
[{"$nulls":4},"CONTRACT / NOMINATED SUBCONTRACT"]
[{"$nulls":4},"WORKS"]
[]
[{"$nulls":4},"NOTE:"]
[]
[{"$nulls":4},"All mechanical works, electrical works, civil works and"]
[{"$nulls":4},"joinery fittings will be priced per project and market"]
[{"$nulls":4},"related prices will be used."]
[]
[{"$nulls":4},"PROVISIONAL SUMS"]
[]
[{"$nulls":4},"HERITAGE CONSERVATION"]
[]
[{"$nulls":4},"Allow the Provisional sum of R 5 000 000,00 (Five Million Rands Only) NET for Heritage conservation","Item",1,null,{"v":5000000,"d":"R5,000,000.00"}]
[]
[{"$nulls":4},"Allow for profit","%",{"v":0.1,"d":"10%"},null,{"$f":"I49*G51","v":{"v":500000,"d":"R500,000.00"}}]
[]
[{"$nulls":4},"Allow for attendance","%",{"v":0.05,"d":"5%"},null,{"$f":"I49*G53","v":{"v":250000,"d":"R250,000.00"}}]
{"$rows_empty":7}
[{"$nulls":4},"Section 4 - B1 - Provisional Sums : Carried forward to sectional summary page",{"$nulls":3},{"$f":"SUM(I49:I59)","v":{"v":5750000,"d":"R5,750,000.00"}}]

{"sheet":"Day Works","index":22,"n_rows":46,"n_cols":7,"rows_kept":46,"merged":[[45,0,45,4]]}
[]
["Item No.","Payment Refers SANS","Description","Unit","Quantity","RATE","TENDER AMOUNT"]
[null,null,"TENDER TO APPOINT CONTRACTORS FOR CIVIL MAINTENANCE AND REPAIRS AT CITY OF TSHWANE BUILDINGS AND FACILITIES FOR A PERIOD OF THREE (3) YEARS AS AND WHEN REQUIRED."]
["B1.0","1200 A","SECTION B: DAYWORKS"]
[]
[null,"PSA 8.7","LABOUR"]
["B1.1","","Foreman","hr",1]
["B1.2","","Steel Fixer","hr",1]
["B1.3","","Concretor","hr",1]
["B1.4","","Chargehand","hr",1]
["B1.5","","Artisan (Welder, Plumber, etc)","hr",1]
["B1.6","","Pipe layer","hr",1]
["B1.7","","Semi Skilled Labourer","hr",1]
["B1.8","","Unskilled Labour","hr",1]
["B1.9",""]
[]
[null,"","MATERIALS"]
["B1.10","","Allow for Materials "," Prov. Sum",1]
["B1.11","","Overheads, charges and profit on item 2.2.1 ","%",{"v":30000,"d":"30,000.00"}]
[]
[null,"","PLANT (RATES INCLUDE ESTABLISHMENTS)"]
[]
["B1.12","","Front-end Loader, approx. flywheel power 145 kW","hr",1]
["B1.13","","Back acting excavator, approx. flywheel power 100 kW","hr",1]
["B1.14","","Hand vibrating compactor, static mass","hr",1]
["B1.15","","Mobile Crane, 5 tonne at 3m radius","hr",1]
["B1.16","","Compressor, 10.3 m3/min including tools and hoses","hr",1]
["B1.17","","Poker vibrator","hr",1]
["B1.18","","Concrete Mixer 0.3 m3 dry mix capacity","hr",1]
["B1.19","","50 mm Water Pump including hoses","hr",1]
["B1.20","","Tipper, 10 m3 capacity","hr",1]
["B1.21","","Tipper, 5 m3 capacity","hr",1]
["B1.22","","Flat bed, 7 tonne capacity","hr",1]
["B1.23","","Flat bed, 5 tonne capacity","hr",1]
["B1.24","","1 tonne LDV","hr",1]
[]
[null,"","Other Plant and Special Item (item with rate only to be entered by the Tenderer)"]
["B1.25",null,"a) Scafolding ( Aluminium ) SANS 10085-1:2004 ","Sum",1]
["B1.26",null,"b)Sky jack: SANS 10295-2 :2015","Sum",1]
["B1.27",null,"High pressure Jetting machine for blocked drains: SANS 347:2012","Sum",1]
["B1.28",null,"d)Leaking detection systems SANS 10254:2012, SANS10252-1:2012","Sum",1]
["B1.29",null,"e)","Sum",0]
["B1.30",null,"f)","Sum",0]
["B1.31",null,"g)","Sum",0]
[null,"",""]
["TOTAL CARRIED FORWARD TO SUMMARY"]